rowid,jurisdiction,Office,District,candidate,expenditure_amount,expenditure_date,recipient,city,state,zip,expenditure_type,explanation
1,ADAMS,SCHOOL BOARD DIRECTOR,ADAMS 12 FIVE STAR SCHOOLS,"ASSAD-LUCAS, AMIRA",12.17,3/9/21 0:00,Godaddy,Scottsdale,AZ,85260,Miscellaneous,
2,ADAMS,SCHOOL BOARD DIRECTOR,ADAMS 12 FIVE STAR SCHOOLS,"ASSAD-LUCAS, AMIRA",25.7,3/29/21 0:00,Stripe,San Francisco,CA,94158,Fundraising Expenses,
3,ADAMS,SCHOOL BOARD DIRECTOR,ADAMS 12 FIVE STAR SCHOOLS,"ASSAD-LUCAS, AMIRA",2.5,4/7/21 0:00,Stripe,San Francisco,CA,94158,Fundraising Expenses,
4,ADAMS,SCHOOL BOARD DIRECTOR,ADAMS 12 FIVE STAR SCHOOLS,"ASSAD-LUCAS, AMIRA",83.88,4/9/21 0:00,Godaddy,Scottsdale,AZ,85260,Miscellaneous,
5,ADAMS,SCHOOL BOARD DIRECTOR,ADAMS 12 FIVE STAR SCHOOLS,"ASSAD-LUCAS, AMIRA",1.5,5/5/21 0:00,Actblue,Somerville,MA,02144-0031,Fundraising Expenses,
6,ADAMS,SCHOOL BOARD DIRECTOR,ADAMS 12 FIVE STAR SCHOOLS,"ASSAD-LUCAS, AMIRA",10.24,5/10/21 0:00,Purebuttons.Com,Medina,OH,44256,Advertising,
7,ADAMS,SCHOOL BOARD DIRECTOR,ADAMS 12 FIVE STAR SCHOOLS,"ASSAD-LUCAS, AMIRA",0.96,5/11/21 0:00,Vantiv Ecommerce,Lowell,MA,1851,Fundraising Expenses,
8,ADAMS,SCHOOL BOARD DIRECTOR,ADAMS 12 FIVE STAR SCHOOLS,"ASSAD-LUCAS, AMIRA",105.88,5/21/21 0:00,Vistaprint North America,Lexington,MA,2421,Advertising,
9,ADAMS,SCHOOL BOARD DIRECTOR,ADAMS 12 FIVE STAR SCHOOLS,"ASSAD-LUCAS, AMIRA",18.38,6/1/21 0:00,Actblue,Somerville,MA,02144-0031,Fundraising Expenses,
10,ADAMS,SCHOOL BOARD DIRECTOR,ADAMS 12 FIVE STAR SCHOOLS,"ASSAD-LUCAS, AMIRA",5.78,6/9/21 0:00,Vantiv Ecommerce,Lowell,MA,1851,Fundraising Expenses,
11,ADAMS,SCHOOL BOARD DIRECTOR,ADAMS 12 FIVE STAR SCHOOLS,"ASSAD-LUCAS, AMIRA",507.95,7/2/21 0:00,Gamino Printing,Denver,CO,80223,Advertising,Campaign Lit
12,ADAMS,SCHOOL BOARD DIRECTOR,ADAMS 12 FIVE STAR SCHOOLS,"ASSAD-LUCAS, AMIRA",6.39,7/6/21 0:00,Actblue,Somerville,MA,02144-0031,Fundraising Expenses,
13,ADAMS,SCHOOL BOARD DIRECTOR,ADAMS 12 FIVE STAR SCHOOLS,"ASSAD-LUCAS, AMIRA",13.86,7/9/21 0:00,Vantiv Ecommerce,Lowell,MA,1851,Fundraising Expenses,
14,ADAMS,SCHOOL BOARD DIRECTOR,ADAMS 12 FIVE STAR SCHOOLS,"ASSAD-LUCAS, AMIRA",149.71,7/20/21 0:00,Gamino Printing,Denver,CO,80223,Office Equipment & Supplies,"Banner, Bres And Business Cards"
15,ADAMS,SCHOOL BOARD DIRECTOR,ADAMS 12 FIVE STAR SCHOOLS,"ASSAD-LUCAS, AMIRA",102.72,7/21/21 0:00,Gamino Printing,Denver,CO,80223,Office Equipment & Supplies,"Banner, Bres And Business Cards"
16,ADAMS,SCHOOL BOARD DIRECTOR,ADAMS 12 FIVE STAR SCHOOLS,"ASSAD-LUCAS, AMIRA",10.14,8/5/21 0:00,Actblue,Somerville,MA,02144-0031,Fundraising Expenses,
17,ADAMS,SCHOOL BOARD DIRECTOR,ADAMS 12 FIVE STAR SCHOOLS,"ASSAD-LUCAS, AMIRA",15.34,8/10/21 0:00,Vantiv Ecommerce,Lowell,MA,1851,Fundraising Expenses,
18,ADAMS,SCHOOL BOARD DIRECTOR,ADAMS 12 FIVE STAR SCHOOLS,"ASSAD-LUCAS, AMIRA",0.82,8/26/21 0:00,Vantiv Ecommerce,Lowell,MA,1851,Fundraising Expenses,
19,ADAMS,SCHOOL BOARD DIRECTOR,ADAMS 12 FIVE STAR SCHOOLS,"ASSAD-LUCAS, AMIRA",2.6,9/9/21 0:00,Vantiv Ecommerce,Lowell,MA,1851,Fundraising Expenses,
20,ARAPAHOE,SCHOOL BOARD DIRECTOR,ADAMS-ARAPAHOE 28J,"GERKIN, DEBBIE",7.78,6/21/21 0:00,Paypal Corporation,San Jose,CA,95131,Bank Fees,Paypal Fee
21,ARAPAHOE,SCHOOL BOARD DIRECTOR,ADAMS-ARAPAHOE 28J,"GERKIN, DEBBIE",3.27,7/26/21 0:00,Paypal Corporation,San Jose,CA,95131,Bank Fees,Paypal Fee
22,ARAPAHOE,SCHOOL BOARD DIRECTOR,ADAMS-ARAPAHOE 28J,"GERKIN, DEBBIE",378.15,8/3/21 0:00,C & D Printing,Denver,CO,80212,Advertising,Walk Cards
23,ARAPAHOE,SCHOOL BOARD DIRECTOR,ADAMS-ARAPAHOE 28J,"GERKIN, DEBBIE",1.25,8/6/21 0:00,Paypal Corporation,San Jose,CA,95131,Bank Fees,Paypal Fee
24,ARAPAHOE,SCHOOL BOARD DIRECTOR,ADAMS-ARAPAHOE 28J,"GERKIN, DEBBIE",1.99,8/26/21 0:00,Paypal Corporation,San Jose,CA,95131,Bank Fees,
25,ARAPAHOE,SCHOOL BOARD DIRECTOR,ADAMS-ARAPAHOE 28J,"GERKIN, DEBBIE",1.99,8/26/21 0:00,Paypal Corporation,San Jose,CA,95131,Bank Fees,
26,ARAPAHOE,SCHOOL BOARD DIRECTOR,ADAMS-ARAPAHOE 28J,"GERKIN, DEBBIE",1.59,8/30/21 0:00,Paypal Corporation,San Jose,CA,95131,Bank Fees,
27,ARAPAHOE,SCHOOL BOARD DIRECTOR,ADAMS-ARAPAHOE 28J,"GERKIN, DEBBIE",50.0,9/10/21 0:00,Arapahoe County Democratic Party,Aurora,CO,80014-2644,Advertising,Pat Schroeder Dinner Ad
28,ARAPAHOE,SCHOOL BOARD DIRECTOR,ADAMS-ARAPAHOE 28J,"GERKIN, DEBBIE",1.25,9/30/21 0:00,Paypal Corporation,San Jose,CA,95131,Bank Fees,
29,ARAPAHOE,SCHOOL BOARD DIRECTOR,ADAMS-ARAPAHOE 28J,"GERKIN, DEBBIE",1.25,10/2/21 0:00,Paypal Corporation,San Jose,CA,95131,Bank Fees,
30,ARAPAHOE,SCHOOL BOARD DIRECTOR,ADAMS-ARAPAHOE 28J,"GERKIN, DEBBIE",2000.0,10/15/21 0:00,"Kat Strategy, Llc",Aurora,CO,80017,Consultant & Professional Services,
31,ARAPAHOE,SCHOOL BOARD DIRECTOR,ADAMS-ARAPAHOE 28J,"GERKIN, DEBBIE",3000.0,11/18/21 0:00,"Kat Strategy, Llc",Aurora,CO,80017,Consultant & Professional Services,Campaign Manager
32,EL PASO,SCHOOL BOARD DIRECTOR,COLORADO SPRINGS 11,"OTT, JULIE",73.0,6/17/21 0:00,United States Postal Service,Colorado Spgs,CO,80919,Rent & Utilities,6 Mo Po Box Rental
33,EL PASO,SCHOOL BOARD DIRECTOR,COLORADO SPRINGS 11,"OTT, JULIE",50.0,6/23/21 0:00,Julie  Ott,Colorado Spgs,CO,80917,Advertising,Reimburse Photographs For Campaign Materials And Website:  Kreteaka Henshall 6/15/2021
34,EL PASO,SCHOOL BOARD DIRECTOR,COLORADO SPRINGS 11,"OTT, JULIE",4.3,8/17/21 0:00,Anedot,New Orleans,LA,70112,Bank Fees,Anedot  Transaction Fees
35,EL PASO,SCHOOL BOARD DIRECTOR,COLORADO SPRINGS 11,"OTT, JULIE",4.3,8/18/21 0:00,Anedot,New Orleans,LA,70112,Bank Fees,Anedot Transaction Fees
36,EL PASO,SCHOOL BOARD DIRECTOR,COLORADO SPRINGS 11,"OTT, JULIE",180.0,8/19/21 0:00,Colorado Springs School District 11,Colorado Springs,CO,80903,Rent & Utilities,Table Rental At Open Houses
37,EL PASO,SCHOOL BOARD DIRECTOR,COLORADO SPRINGS 11,"OTT, JULIE",0.7,8/20/21 0:00,Anedot,New Orleans,LA,70112,Bank Fees,Anedot Transaction Fees
38,EL PASO,SCHOOL BOARD DIRECTOR,COLORADO SPRINGS 11,"OTT, JULIE",6.6,8/22/21 0:00,Anedot,New Orleans,LA,70112,Bank Fees,Anedot Transaction Fees
39,EL PASO,SCHOOL BOARD DIRECTOR,COLORADO SPRINGS 11,"OTT, JULIE",1.3,8/25/21 0:00,Anedot,New Orleans,LA,70112,Bank Fees,Anedot Transaction Fees
40,EL PASO,SCHOOL BOARD DIRECTOR,COLORADO SPRINGS 11,"OTT, JULIE",50.0,8/26/21 0:00,Committee To Elect Chris Wallis,Colorado Springs,CO,80917,Rent & Utilities,Reimburse Table Rental For Open Houses
41,EL PASO,SCHOOL BOARD DIRECTOR,COLORADO SPRINGS 11,"OTT, JULIE",25.0,8/26/21 0:00,Jen Williamson For D11 School Board,Colorado Springs,CO,80909,Rent & Utilities,Payment For Shared Table Rentals At Open Houses
42,EL PASO,SCHOOL BOARD DIRECTOR,COLORADO SPRINGS 11,"OTT, JULIE",-90.0,8/27/21 0:00,Colorado Springs School District 11,Colorado Springs,CO,80903,Returned Expenditure,Reimbursement Of Shared Expenses For Table Rentals.  Jen Williamson For D11 $60 & Comm To Elect Chris Wallis $30
43,EL PASO,SCHOOL BOARD DIRECTOR,COLORADO SPRINGS 11,"OTT, JULIE",16.6,9/1/21 0:00,Anedot,New Orleans,LA,70112,Bank Fees,Anedot Transaction Fees
44,EL PASO,SCHOOL BOARD DIRECTOR,COLORADO SPRINGS 11,"OTT, JULIE",500.0,9/2/21 0:00,Rose Tree Consulting Group,Fountian,CO,80817,Consultant & Professional Services,
45,EL PASO,SCHOOL BOARD DIRECTOR,COLORADO SPRINGS 11,"OTT, JULIE",2.3,9/3/21 0:00,Anedot,New Orleans,LA,70112,Bank Fees,Transaction Fee
46,EL PASO,SCHOOL BOARD DIRECTOR,COLORADO SPRINGS 11,"OTT, JULIE",6.2,9/8/21 0:00,Anedot,New Orleans,LA,70112,Bank Fees,Transaction Fee
47,EL PASO,SCHOOL BOARD DIRECTOR,COLORADO SPRINGS 11,"OTT, JULIE",18.6,9/8/21 0:00,Anedot,New Orleans,LA,70112,Bank Fees,Transaction Fee
48,EL PASO,SCHOOL BOARD DIRECTOR,COLORADO SPRINGS 11,"OTT, JULIE",434.54,9/8/21 0:00,Julie  Ott,Colorado Spgs,CO,80917,Other,Reimburse Printing Expenses
49,EL PASO,SCHOOL BOARD DIRECTOR,COLORADO SPRINGS 11,"OTT, JULIE",30.0,9/8/21 0:00,Colorado Springs School District 11,Colorado Springs,CO,80903,Rent & Utilities,Table Rental For Back To School Events
50,EL PASO,SCHOOL BOARD DIRECTOR,COLORADO SPRINGS 11,"OTT, JULIE",4.3,9/9/21 0:00,Anedot,New Orleans,LA,70112,Bank Fees,Transaction Fee
51,EL PASO,SCHOOL BOARD DIRECTOR,COLORADO SPRINGS 11,"OTT, JULIE",4.3,9/13/21 0:00,Anedot,New Orleans,LA,70112,Bank Fees,Transaction Fee
52,EL PASO,SCHOOL BOARD DIRECTOR,COLORADO SPRINGS 11,"OTT, JULIE",8.9,9/15/21 0:00,Anedot,New Orleans,LA,70112,Bank Fees,Transaction Fee
53,EL PASO,SCHOOL BOARD DIRECTOR,COLORADO SPRINGS 11,"OTT, JULIE",34.2,9/17/21 0:00,Anedot,New Orleans,LA,70112,Bank Fees,Transaction Fees
54,EL PASO,SCHOOL BOARD DIRECTOR,COLORADO SPRINGS 11,"OTT, JULIE",100.0,9/19/21 0:00,Kreteaka  Henshall,Colorado Springs,CO,80919,Other,Photo Session
55,EL PASO,SCHOOL BOARD DIRECTOR,COLORADO SPRINGS 11,"OTT, JULIE",19.12,9/21/21 0:00,Anedot,New Orleans,LA,70112,Bank Fees,Transaction Fees
56,EL PASO,SCHOOL BOARD DIRECTOR,COLORADO SPRINGS 11,"OTT, JULIE",5.4,9/22/21 0:00,Anedot,New Orleans,LA,70112,Bank Fees,Transaction Fees
57,EL PASO,SCHOOL BOARD DIRECTOR,COLORADO SPRINGS 11,"OTT, JULIE",22.7,9/23/21 0:00,Anedot,New Orleans,LA,70112,Bank Fees,Transaction Fees
58,EL PASO,SCHOOL BOARD DIRECTOR,COLORADO SPRINGS 11,"OTT, JULIE",179.9,9/24/21 0:00,Rose Tree Consulting Group,Fountian,CO,80817,Other,Reimburse Printing Exp For Flyers
59,EL PASO,SCHOOL BOARD DIRECTOR,COLORADO SPRINGS 11,"OTT, JULIE",15.2,9/27/21 0:00,Anedot,New Orleans,LA,70112,Bank Fees,Transaction Fees
60,EL PASO,SCHOOL BOARD DIRECTOR,COLORADO SPRINGS 11,"OTT, JULIE",2.3,9/28/21 0:00,Anedot,New Orleans,LA,70112,Bank Fees,Transaction Fees
61,EL PASO,SCHOOL BOARD DIRECTOR,COLORADO SPRINGS 11,"OTT, JULIE",2.3,9/30/21 0:00,Anedot,New Orleans,LA,70112,Bank Fees,Transaction Fees
62,EL PASO,SCHOOL BOARD DIRECTOR,COLORADO SPRINGS 11,"OTT, JULIE",692.48,9/30/21 0:00,Cheetah Printing,Colorado Spgs,CO,80903,Advertising,Door Hangers
63,EL PASO,SCHOOL BOARD DIRECTOR,COLORADO SPRINGS 11,"OTT, JULIE",1.3,10/1/21 0:00,Anedot,New Orleans,LA,70112,Bank Fees,Transaction Fees
64,EL PASO,SCHOOL BOARD DIRECTOR,COLORADO SPRINGS 11,"OTT, JULIE",500.0,10/1/21 0:00,Rose Tree Consulting Group,Fountian,CO,80817,Consultant & Professional Services,Campaign Consulting
65,EL PASO,SCHOOL BOARD DIRECTOR,COLORADO SPRINGS 11,"OTT, JULIE",-20.0,10/5/21 0:00,Colorado Springs School District 11,Colorado Springs,CO,80903,Returned Expenditure,Reimbursement Of Shared Table Rental Expenses From Jen Williamson For D11 ($10) And Comm To Elect Chris Wallis ($10)
66,EL PASO,SCHOOL BOARD DIRECTOR,COLORADO SPRINGS 11,"OTT, JULIE",8.6,10/5/21 0:00,Anedot,New Orleans,LA,70112,Bank Fees,Transaction Fees
67,EL PASO,SCHOOL BOARD DIRECTOR,COLORADO SPRINGS 11,"OTT, JULIE",6.6,10/6/21 0:00,Anedot,New Orleans,LA,70112,Bank Fees,Transaction Fees
68,EL PASO,SCHOOL BOARD DIRECTOR,COLORADO SPRINGS 11,"OTT, JULIE",16.2,10/7/21 0:00,Anedot,New Orleans,LA,70112,Bank Fees,Transaction Fees
69,EL PASO,SCHOOL BOARD DIRECTOR,COLORADO SPRINGS 11,"OTT, JULIE",6367.54,10/8/21 0:00,Cheetah Printing,Colorado Spgs,CO,80903,Advertising,Printing And Postage For Mailer
70,EL PASO,SCHOOL BOARD DIRECTOR,COLORADO SPRINGS 11,"OTT, JULIE",49.77,10/8/21 0:00,Cheetah Printing,Colorado Spgs,CO,80903,Office Equipment & Supplies,Thank You Notes
71,EL PASO,SCHOOL BOARD DIRECTOR,COLORADO SPRINGS 11,"OTT, JULIE",13.2,10/12/21 0:00,Anedot,New Orleans,LA,70112,Bank Fees,Transaction Fees
72,EL PASO,SCHOOL BOARD DIRECTOR,COLORADO SPRINGS 11,"OTT, JULIE",11.2,10/13/21 0:00,Anedot,New Orleans,LA,70112,Bank Fees,Transaction Fees
73,EL PASO,SCHOOL BOARD DIRECTOR,COLORADO SPRINGS 11,"OTT, JULIE",40.0,10/14/21 0:00,Rose Tree Consulting Group,Fountian,CO,80817,Advertising,Reimbursement For Sign Permit For Yard Signs
74,EL PASO,SCHOOL BOARD DIRECTOR,COLORADO SPRINGS 11,"OTT, JULIE",5.6,10/15/21 0:00,Anedot,New Orleans,LA,70112,Bank Fees,Transaction Fees
75,EL PASO,SCHOOL BOARD DIRECTOR,COLORADO SPRINGS 11,"OTT, JULIE",8.9,10/19/21 0:00,Anedot,New Orleans,LA,70112,Bank Fees,Transaction Fees
76,EL PASO,SCHOOL BOARD DIRECTOR,COLORADO SPRINGS 11,"OTT, JULIE",10.6,10/20/21 0:00,Anedot,New Orleans,LA,70112,Bank Fees,Transaction Fees
77,EL PASO,SCHOOL BOARD DIRECTOR,COLORADO SPRINGS 11,"OTT, JULIE",100.0,10/31/21 0:00,Rose Tree Consulting Group,Fountian,CO,80817,Consultant & Professional Services,
78,EL PASO,SCHOOL BOARD DIRECTOR,COLORADO SPRINGS 11,"OTT, JULIE",129.83,11/2/21 0:00,Salad Or Bust,Colorado Springs,CO,80905,"Food, Beverages and Meals",Election Watch
79,EL PASO,SCHOOL BOARD DIRECTOR,COLORADO SPRINGS 11,"OTT, JULIE",119.45,11/2/21 0:00,Nora  Brown,Colorado Springs,CO,80919,"Food, Beverages and Meals",Reimburse Election Watch Expenses
80,EL PASO,SCHOOL BOARD DIRECTOR,COLORADO SPRINGS 11,"OTT, JULIE",2.3,11/2/21 0:00,Anedot,New Orleans,LA,70112,Bank Fees,Transaction Fee
81,EL PASO,SCHOOL BOARD DIRECTOR,COLORADO SPRINGS 11,"OTT, JULIE",60.0,11/3/21 0:00,Rose Tree Consulting Group,Fountian,CO,80817,Other,Canvassers
82,EL PASO,SCHOOL BOARD DIRECTOR,COLORADO SPRINGS 11,"OTT, JULIE",593.25,11/3/21 0:00,Rose Tree Consulting Group,Fountian,CO,80817,Other,Gotv Phone Texting
83,EL PASO,SCHOOL BOARD DIRECTOR,COLORADO SPRINGS 11,"OTT, JULIE",242.37,11/3/21 0:00,Public Educators Advocating For Kids (Peak),Colorado Springs,CO,80907,Advertising,Door Hangers And Facility Rental Fee
84,EL PASO,SCHOOL BOARD DIRECTOR,COLORADO SPRINGS 11,"OTT, JULIE",24.01,11/10/21 0:00,Nora  Brown,Colorado Springs,CO,80919,"Food, Beverages and Meals",Reimburse Expenditure Election Watch
85,EL PASO,SCHOOL BOARD DIRECTOR,COLORADO SPRINGS 11,"OTT, JULIE",76.8,11/17/21 0:00,Julie  Ott,Colorado Springs,CO,80917,Office Equipment & Supplies,Postage For Thank You Cards
86,EL PASO,SCHOOL BOARD DIRECTOR,COLORADO SPRINGS 11,"OTT, JULIE",1418.0,11/30/21 0:00,6035 Strategies,Colorado Springs,CO,80904,Other,Gotv And Candidate Support/Phonebanking
87,LARIMER,SCHOOL BOARD DIRECTOR,POUDRE R-1,"DRAPER, KRISTEN",500.0,9/15/21 0:00,Lindsay  Ubaldini,Fort Collins,CO,80521,Consultant & Professional Services,Campaign Manager Monthly Payment.
88,LARIMER,SCHOOL BOARD DIRECTOR,POUDRE R-1,"DRAPER, KRISTEN",250.0,9/15/21 0:00,Colorado Democrats,Denver,CO,80203,Fundraising Expenses,
89,LARIMER,SCHOOL BOARD DIRECTOR,POUDRE R-1,"DRAPER, KRISTEN",250.0,9/16/21 0:00,Actblue,Cambridge,MA,2138,Fundraising Expenses,Canvassing Literature And Software
90,LARIMER,SCHOOL BOARD DIRECTOR,POUDRE R-1,"DRAPER, KRISTEN",226.99,9/20/21 0:00,Paypal,San Jose,CA,95131,Bank Fees,Paypal Fees
91,LARIMER,SCHOOL BOARD DIRECTOR,POUDRE R-1,"DRAPER, KRISTEN",1000.0,9/23/21 0:00,"Noco Blue, Llc",Fort Collins,CO,80524,Consultant & Professional Services,
92,LARIMER,SCHOOL BOARD DIRECTOR,POUDRE R-1,"DRAPER, KRISTEN",1165.7,9/28/21 0:00,Daleeco Printing,Loveland,CO,80537,Advertising,Yard Signs
93,LARIMER,SCHOOL BOARD DIRECTOR,POUDRE R-1,"DRAPER, KRISTEN",1669.72,10/2/21 0:00,C&D Printing,Denver,CO,80212,Advertising,Literature
94,LARIMER,SCHOOL BOARD DIRECTOR,POUDRE R-1,"DRAPER, KRISTEN",7384.0,10/3/21 0:00,Andrew  Kazba,Wheat Ridge,CO,80034,Advertising,Campaign Literature And Digital Flyers
95,LARIMER,SCHOOL BOARD DIRECTOR,POUDRE R-1,"DRAPER, KRISTEN",334.27,10/5/21 0:00,Paypal,San Jose,CA,95131,Bank Fees,Paypal Standard Fees
96,LARIMER,SCHOOL BOARD DIRECTOR,POUDRE R-1,"DRAPER, KRISTEN",80.0,10/11/21 0:00,United States Postal Service,Fort Collins,CO,80521,Miscellaneous,Postage
97,LARIMER,SCHOOL BOARD DIRECTOR,POUDRE R-1,"DRAPER, KRISTEN",5500.0,10/13/21 0:00,Andrew  Kazba,Wheat Ridge,CO,80034,Miscellaneous,Digital Media
98,LARIMER,SCHOOL BOARD DIRECTOR,POUDRE R-1,"DRAPER, KRISTEN",80.0,10/15/21 0:00,United States Postal Service,Fort Collins,CO,80521,Miscellaneous,Postage
99,LARIMER,SCHOOL BOARD DIRECTOR,POUDRE R-1,"DRAPER, KRISTEN",80.0,10/18/21 0:00,United States Postal Service,Fort Collins,CO,80521,Miscellaneous,Postage
100,LARIMER,SCHOOL BOARD DIRECTOR,POUDRE R-1,"DRAPER, KRISTEN",41.02,10/18/21 0:00,Paypal,San Jose,CA,95131,Bank Fees,
101,LARIMER,SCHOOL BOARD DIRECTOR,POUDRE R-1,"DRAPER, KRISTEN",84.79,10/25/21 0:00,"Noco Blue, Llc",Fort Collins,CO,80524,Advertising,Literature Bags And Domain For Website
102,LARIMER,SCHOOL BOARD DIRECTOR,POUDRE R-1,"DRAPER, KRISTEN",1571.43,10/29/21 0:00,"Noco Blue, Llc",Fort Collins,CO,80524,Advertising,
103,LARIMER,SCHOOL BOARD DIRECTOR,POUDRE R-1,"DRAPER, KRISTEN",80.0,10/29/21 0:00,Food Bank For Larimer County,Loveland,CO,80538,Other,"Donating $80.00 Of Prohibited Anonymous Cash Donations To The Food Bank For Larimer County, An Irs Recognized 501(C)(3) Charity. Tax Id:  74-2336171."
104,LARIMER,SCHOOL BOARD DIRECTOR,POUDRE R-1,"DRAPER, KRISTEN",500.0,10/31/21 0:00,Lindsay  Ubaldini,Fort Collins,CO,80521,Consultant & Professional Services,October Campaign Manager
105,LARIMER,SCHOOL BOARD DIRECTOR,POUDRE R-1,"DRAPER, KRISTEN",17.4,11/1/21 0:00,United States Postal Service,Fort Collins,CO,80521,Other,Postage
106,LARIMER,SCHOOL BOARD DIRECTOR,POUDRE R-1,"DRAPER, KRISTEN",289.53,11/1/21 0:00,Paypal,San Jose,CA,95131,Bank Fees,Paypal Fees
107,LARIMER,SCHOOL BOARD DIRECTOR,POUDRE R-1,"DRAPER, KRISTEN",150.25,11/2/21 0:00,Poudre Education Association For Children And Public Education,Ft. Collins,CO,80526,"Food, Beverages and Meals",Hospitality For The Watch Party
108,LARIMER,SCHOOL BOARD DIRECTOR,POUDRE R-1,"DRAPER, KRISTEN",126.75,11/2/21 0:00,The Lyric Cinema,Fort Collins,CO,80524,"Food, Beverages and Meals",Room Rental And Food For Watch Party
109,LARIMER,SCHOOL BOARD DIRECTOR,POUDRE R-1,"DRAPER, KRISTEN",44.45,11/2/21 0:00,King Soopers,Fort Collins,CO,80524,Miscellaneous,Thank You Cards And Stamps
110,LARIMER,SCHOOL BOARD DIRECTOR,POUDRE R-1,"DRAPER, KRISTEN",217.14,11/2/21 0:00,Paypal,San Jose,CA,95131,Bank Fees,Paypal Fees
111,LARIMER,SCHOOL BOARD DIRECTOR,POUDRE R-1,"DRAPER, KRISTEN",795.0,11/2/21 0:00,Sydney  Breakfield,Fort Collins,CO,80526,"Food, Beverages and Meals","Roomrental, Catering, And Private Bartender For Election Results Watch Party"
112,LARIMER,SCHOOL BOARD DIRECTOR,POUDRE R-1,"DRAPER, KRISTEN",74.49,11/8/21 0:00,Amazon,Seattle,WA,98121,Miscellaneous,Thank You Notes
113,LARIMER,SCHOOL BOARD DIRECTOR,POUDRE R-1,"DRAPER, KRISTEN",4.48,11/9/21 0:00,Paypal,San Jose,CA,95131,Bank Fees,
114,LARIMER,SCHOOL BOARD DIRECTOR,POUDRE R-1,"DRAPER, KRISTEN",690.95,11/21/21 0:00,Knockco Llc,New York,NY,10011,Advertising,Blanket Text Messages For Campaign
115,LARIMER,SCHOOL BOARD DIRECTOR,THOMPSON R2-J,"KRUSE, BARBARA",205.57,8/20/21 0:00,Allegra,Loveland,CO,80537,Fundraising Expenses,Remit Envelopes Paid For Personally By Candidate
116,LARIMER,SCHOOL BOARD DIRECTOR,THOMPSON R2-J,"KRUSE, BARBARA",238.65,9/10/21 0:00,Allegra,Loveland,CO,80537,Advertising,Flyer For Canvassing
117,LARIMER,SCHOOL BOARD DIRECTOR,THOMPSON R2-J,"KRUSE, BARBARA",25.0,9/15/21 0:00,Wordpress.Com,San Francisco,CA,94110-4929,Advertising,Wordpress.Com Website Hosting And Domain Registration
118,LARIMER,SCHOOL BOARD DIRECTOR,THOMPSON R2-J,"KRUSE, BARBARA",1.73,9/17/21 0:00,Paypal,San Jose,CA,95131,Fundraising Expenses,Paypal Fee
119,LARIMER,SCHOOL BOARD DIRECTOR,THOMPSON R2-J,"KRUSE, BARBARA",3.15,9/21/21 0:00,Paypal,San Jose,CA,95131,Fundraising Expenses,Paypal Fee
120,LARIMER,SCHOOL BOARD DIRECTOR,THOMPSON R2-J,"KRUSE, BARBARA",1.94,9/23/21 0:00,Paypal,San Jose,CA,95131,Fundraising Expenses,Paypal Fee
121,LARIMER,SCHOOL BOARD DIRECTOR,THOMPSON R2-J,"KRUSE, BARBARA",0.78,9/24/21 0:00,Paypal,San Jose,CA,95131,Fundraising Expenses,Paypal Fee
122,LARIMER,SCHOOL BOARD DIRECTOR,THOMPSON R2-J,"KRUSE, BARBARA",1.21,9/27/21 0:00,Paypal,San Jose,CA,95131,Fundraising Expenses,Paypal Fee
123,LARIMER,SCHOOL BOARD DIRECTOR,THOMPSON R2-J,"KRUSE, BARBARA",1440.43,9/28/21 0:00,Barbara  Kruse,Loveland,CO,80538,Advertising,Reimburse Candidate For Yard Signs (Daleeco)
124,LARIMER,SCHOOL BOARD DIRECTOR,THOMPSON R2-J,"KRUSE, BARBARA",73.0,9/28/21 0:00,Barbara  Kruse,Loveland,CO,80538,Other,Reimburse Candidate For Post Office Box Rental
125,LARIMER,SCHOOL BOARD DIRECTOR,THOMPSON R2-J,"KRUSE, BARBARA",3.38,9/29/21 0:00,Paypal,San Jose,CA,95131,Fundraising Expenses,Paypal Fee
126,LARIMER,SCHOOL BOARD DIRECTOR,THOMPSON R2-J,"KRUSE, BARBARA",193.0,9/30/21 0:00,Allegra,Loveland,CO,80537,Advertising,Literature For Canvass
127,LARIMER,SCHOOL BOARD DIRECTOR,THOMPSON R2-J,"KRUSE, BARBARA",98.04,10/4/21 0:00,Straker Translations,Rosedale,AU,632,Other,Translation For Lwv Guide
128,LARIMER,SCHOOL BOARD DIRECTOR,THOMPSON R2-J,"KRUSE, BARBARA",208.75,10/12/21 0:00,Prairie Mountain Media,Boulder,CO,80303,Advertising,Sticky Note Ad
129,LARIMER,SCHOOL BOARD DIRECTOR,THOMPSON R2-J,"KRUSE, BARBARA",2.92,10/14/21 0:00,,,,,Fundraising Expenses,Paypal Fee
130,LARIMER,SCHOOL BOARD DIRECTOR,THOMPSON R2-J,"KRUSE, BARBARA",2487.07,10/15/21 0:00,Allegra,Loveland,CO,80537,Advertising,Mailer
131,LARIMER,SCHOOL BOARD DIRECTOR,THOMPSON R2-J,"KRUSE, BARBARA",7.0,10/18/21 0:00,Wordpress.Com,San Francisco,CA,94110-4929,Fundraising Expenses,Website Hosting
132,LARIMER,SCHOOL BOARD DIRECTOR,THOMPSON R2-J,"KRUSE, BARBARA",0.78,10/21/21 0:00,Paypal,San Jose,CA,95131,Fundraising Expenses,Paypal Fee
133,LARIMER,SCHOOL BOARD DIRECTOR,THOMPSON R2-J,"KRUSE, BARBARA",1.94,10/21/21 0:00,Paypal,San Jose,CA,95131,Fundraising Expenses,Paypal Fee
134,LARIMER,SCHOOL BOARD DIRECTOR,THOMPSON R2-J,"KRUSE, BARBARA",578.82,11/9/21 0:00,Dawn  Kirk,Loveland,CO,80538,Other,Gotv Texting Campaign
135,LARIMER,SCHOOL BOARD DIRECTOR,THOMPSON R2-J,"KRUSE, BARBARA",7.0,11/16/21 0:00,Wordpress.Com,San Francisco,CA,94110-4929,Advertising,Website Hosting
136,LARIMER,SCHOOL BOARD DIRECTOR,THOMPSON R2-J,"KRUSE, BARBARA",4.61,11/19/21 0:00,Facebook,Menlo Park,CA,94025,Miscellaneous,Fee
137,LARIMER,SCHOOL BOARD DIRECTOR,THOMPSON R2-J,"WINBOURN, LISA",0.7,9/17/21 0:00,Anedot,New Orleans,LA,70112,Other,7820 ∑ Merchant Account Fees
138,LARIMER,SCHOOL BOARD DIRECTOR,THOMPSON R2-J,"WINBOURN, LISA",5.4,9/18/21 0:00,Anedot,New Orleans,LA,70112,Other,7820 ∑ Merchant Account Fees
139,LARIMER,SCHOOL BOARD DIRECTOR,THOMPSON R2-J,"WINBOURN, LISA",1.3,9/19/21 0:00,Anedot,New Orleans,LA,70112,Other,7820 ∑ Merchant Account Fees
140,LARIMER,SCHOOL BOARD DIRECTOR,THOMPSON R2-J,"WINBOURN, LISA",3.6,9/20/21 0:00,Anedot,New Orleans,LA,70112,Other,7820 ∑ Merchant Account Fees
141,LARIMER,SCHOOL BOARD DIRECTOR,THOMPSON R2-J,"WINBOURN, LISA",5.3,9/21/21 0:00,Anedot,New Orleans,LA,70112,Other,7820 ∑ Merchant Account Fees
142,LARIMER,SCHOOL BOARD DIRECTOR,THOMPSON R2-J,"WINBOURN, LISA",2.3,9/24/21 0:00,Anedot,New Orleans,LA,70112,Other,7820 ∑ Merchant Account Fees
143,LARIMER,SCHOOL BOARD DIRECTOR,THOMPSON R2-J,"WINBOURN, LISA",1.3,9/25/21 0:00,Anedot,New Orleans,LA,70112,Other,7820 ∑ Merchant Account Fees
144,LARIMER,SCHOOL BOARD DIRECTOR,THOMPSON R2-J,"WINBOURN, LISA",20.3,9/27/21 0:00,Anedot,New Orleans,LA,70112,Other,7820 ∑ Merchant Account Fees
145,LARIMER,SCHOOL BOARD DIRECTOR,THOMPSON R2-J,"WINBOURN, LISA",2.3,9/28/21 0:00,Anedot,New Orleans,LA,70112,Other,7820 ∑ Merchant Account Fees
146,LARIMER,SCHOOL BOARD DIRECTOR,THOMPSON R2-J,"WINBOURN, LISA",9.9,10/24/21 0:00,Anedot,New Orleans,LA,70112,Bank Fees,
147,LARIMER,SCHOOL BOARD DIRECTOR,THOMPSON R2-J,"WINBOURN, LISA",250.0,10/25/21 0:00,Polifi Llc,Fort Lupton,CO,80621,Consultant & Professional Services,
148,LARIMER,SCHOOL BOARD DIRECTOR,THOMPSON R2-J,"WINBOURN, LISA",15.0,10/29/21 0:00,,,,,Bank Fees,
149,LARIMER,SCHOOL BOARD DIRECTOR,THOMPSON R2-J,"WINBOURN, LISA",684.95,11/3/21 0:00,Proforma Big Dog,Fort Collins,CO,80525,Consultant & Professional Services,
150,LARIMER,SCHOOL BOARD DIRECTOR,THOMPSON R2-J,"WINBOURN, LISA",500.0,11/3/21 0:00,Polifi Llc,Fort Lupton,CO,80621,Consultant & Professional Services,
151,DOUGLAS,SCHOOL BOARD DIRECTOR,DOUGLAS COUNTY RE 1,"MATHEW, JUSTIN",,,,,,,,
152,EL PASO,SCHOOL BOARD DIRECTOR,ACADEMY 20,"SALT, AARON",50.0,6/3/21 0:00,Secretary Of State,Denver,CO,80290,Other,Fee For Late Expenditure Report To Sos: 2020E000485
153,EL PASO,SCHOOL BOARD DIRECTOR,ACADEMY 20,"SALT, AARON",178.0,7/6/21 0:00,Colorado Springs Parks And Recreation,Colorado Springs,CO,80905,Rent & Utilities,Event Rental
154,EL PASO,SCHOOL BOARD DIRECTOR,ACADEMY 20,"SALT, AARON",4.3,7/16/21 0:00,Anedot,Baton Rouge,LA,70884,Bank Fees,Processing Fee
155,EL PASO,SCHOOL BOARD DIRECTOR,ACADEMY 20,"SALT, AARON",4.3,7/25/21 0:00,Anedot,Baton Rouge,LA,70884,Bank Fees,Processing Fee
156,EL PASO,SCHOOL BOARD DIRECTOR,ACADEMY 20,"SALT, AARON",552.63,7/29/21 0:00,Update Printing,Colorado Springs,CO,80910,Advertising,Flyers
157,EL PASO,SCHOOL BOARD DIRECTOR,ACADEMY 20,"SALT, AARON",1.1,7/30/21 0:00,Anedot,Baton Rouge,LA,70884,Bank Fees,Processing Fee
158,EL PASO,SCHOOL BOARD DIRECTOR,ACADEMY 20,"SALT, AARON",2.3,7/30/21 0:00,Anedot,Baton Rouge,LA,70884,Bank Fees,Processing Fee
159,EL PASO,SCHOOL BOARD DIRECTOR,ACADEMY 20,"SALT, AARON",6.48,8/17/21 0:00,Target,Colorado Springs,CO,80924,Office Equipment & Supplies,Office Supplies
160,EL PASO,SCHOOL BOARD DIRECTOR,ACADEMY 20,"SALT, AARON",4.3,8/21/21 0:00,Anedot,Baton Rouge,LA,70884,Bank Fees,Processing Fee
161,EL PASO,SCHOOL BOARD DIRECTOR,ACADEMY 20,"SALT, AARON",10.3,8/25/21 0:00,Anedot,Baton Rouge,LA,70884,Bank Fees,Processing Fee
162,EL PASO,SCHOOL BOARD DIRECTOR,ACADEMY 20,"SALT, AARON",93.04,8/26/21 0:00,Amazon,Seattle,CO,98108,Other,Stakes
163,EL PASO,SCHOOL BOARD DIRECTOR,ACADEMY 20,"SALT, AARON",15.8,8/27/21 0:00,Anedot,Baton Rouge,LA,70884,Bank Fees,Processing Fee
164,EL PASO,SCHOOL BOARD DIRECTOR,ACADEMY 20,"SALT, AARON",687.15,8/27/21 0:00,Signs On The Cheap,Austin,TX,78758,Other,Signs
165,EL PASO,SCHOOL BOARD DIRECTOR,ACADEMY 20,"SALT, AARON",18.36,8/28/21 0:00,King Soopers,Colorado Springs,CO,80920,Office Equipment & Supplies,
166,EL PASO,SCHOOL BOARD DIRECTOR,ACADEMY 20,"SALT, AARON",240.0,8/28/21 0:00,Darcy  Schoening,Monument,CO,80132,"Food, Beverages and Meals",
167,EL PASO,SCHOOL BOARD DIRECTOR,ACADEMY 20,"SALT, AARON",176.02,8/28/21 0:00,Kay  Rendleman,Colorado Springs,CO,80919,"Food, Beverages and Meals",
168,EL PASO,SCHOOL BOARD DIRECTOR,ACADEMY 20,"SALT, AARON",4.3,8/29/21 0:00,Anedot,Baton Rouge,LA,70884,Bank Fees,Processing Fee
169,EL PASO,SCHOOL BOARD DIRECTOR,ACADEMY 20,"SALT, AARON",4.3,8/31/21 0:00,Anedot,Baton Rouge,LA,70884,Bank Fees,Processing Fee
170,EL PASO,SCHOOL BOARD DIRECTOR,ACADEMY 20,"SALT, AARON",10.9,9/2/21 0:00,Anedot,Baton Rouge,LA,70884,Bank Fees,Processing Fees
171,EL PASO,SCHOOL BOARD DIRECTOR,ACADEMY 20,"SALT, AARON",4.3,9/4/21 0:00,Anedot,Baton Rouge,LA,70884,Bank Fees,Processing Fee
172,EL PASO,SCHOOL BOARD DIRECTOR,ACADEMY 20,"SALT, AARON",4.3,9/6/21 0:00,Anedot,Baton Rouge,LA,70884,Bank Fees,Donation
173,EL PASO,SCHOOL BOARD DIRECTOR,ACADEMY 20,"SALT, AARON",9.72,9/7/21 0:00,Walmart,Colorado Springs,CO,80920,Office Equipment & Supplies,Thank You Cards
174,EL PASO,SCHOOL BOARD DIRECTOR,ACADEMY 20,"SALT, AARON",24.6,9/8/21 0:00,Anedot,Baton Rouge,LA,70884,Bank Fees,Processing Fee
175,EL PASO,SCHOOL BOARD DIRECTOR,ACADEMY 20,"SALT, AARON",4.3,9/10/21 0:00,Anedot,Baton Rouge,LA,70884,Bank Fees,Donation
176,EL PASO,SCHOOL BOARD DIRECTOR,ACADEMY 20,"SALT, AARON",2.3,9/18/21 0:00,Anedot,Baton Rouge,LA,70884,Bank Fees,Processing Fee
177,EL PASO,SCHOOL BOARD DIRECTOR,ACADEMY 20,"SALT, AARON",54.09,9/19/21 0:00,Amazon,Seattle,CO,98108,Other,Stakes
178,EL PASO,SCHOOL BOARD DIRECTOR,ACADEMY 20,"SALT, AARON",20.3,9/20/21 0:00,Anedot,Baton Rouge,LA,70884,Bank Fees,Processing Fee
179,EL PASO,SCHOOL BOARD DIRECTOR,ACADEMY 20,"SALT, AARON",421.44,9/21/21 0:00,Signs On The Cheap,Austin,TX,78758,Advertising,Signs
180,EL PASO,SCHOOL BOARD DIRECTOR,ACADEMY 20,"SALT, AARON",227.22,9/22/21 0:00,Update Printing,Colorado Springs,CO,80910,Advertising,Flyers
181,EL PASO,SCHOOL BOARD DIRECTOR,ACADEMY 20,"SALT, AARON",4.0,9/24/21 0:00,Anedot,Baton Rouge,LA,70884,Bank Fees,Processing Fees
182,EL PASO,SCHOOL BOARD DIRECTOR,ACADEMY 20,"SALT, AARON",8.6,9/26/21 0:00,Anedot,Baton Rouge,LA,70884,Bank Fees,Processing Fee
183,EL PASO,SCHOOL BOARD DIRECTOR,ACADEMY 20,"SALT, AARON",20.3,9/29/21 0:00,Anedot,Baton Rouge,LA,70884,Bank Fees,Processing Fee
184,EL PASO,SCHOOL BOARD DIRECTOR,ACADEMY 20,"SALT, AARON",24.9,9/30/21 0:00,Anedot,Baton Rouge,LA,70884,Bank Fees,Processing Fee
185,EL PASO,SCHOOL BOARD DIRECTOR,ACADEMY 20,"SALT, AARON",9.7,10/2/21 0:00,Anedot,Baton Rouge,LA,70884,Bank Fees,Processing Fee
186,EL PASO,SCHOOL BOARD DIRECTOR,ACADEMY 20,"SALT, AARON",22.9,10/4/21 0:00,Anedot,Baton Rouge,LA,70884,Bank Fees,Processing Fee
187,EL PASO,SCHOOL BOARD DIRECTOR,ACADEMY 20,"SALT, AARON",2201.87,10/4/21 0:00,Update Printing,Colorado Springs,CO,80910,Advertising,Mailer
188,EL PASO,SCHOOL BOARD DIRECTOR,ACADEMY 20,"SALT, AARON",4.3,10/6/21 0:00,Anedot,Baton Rouge,LA,70884,Bank Fees,Processing Fee
189,EL PASO,SCHOOL BOARD DIRECTOR,ACADEMY 20,"SALT, AARON",3087.86,10/6/21 0:00,Msi,Colorado Springs,CO,80903,Advertising,Mailer
190,EL PASO,SCHOOL BOARD DIRECTOR,ACADEMY 20,"SALT, AARON",11.4,10/8/21 0:00,Anedot,Baton Rouge,LA,70884,Bank Fees,Processing Fee
191,EL PASO,SCHOOL BOARD DIRECTOR,ACADEMY 20,"SALT, AARON",120.84,10/8/21 0:00,Qr Code Generator,Bielefeld,GE,33609,Other,Website/Qr-Code
192,EL PASO,SCHOOL BOARD DIRECTOR,ACADEMY 20,"SALT, AARON",6.0,10/12/21 0:00,Anedot,Baton Rouge,LA,70884,Bank Fees,Processing Fee
193,EL PASO,SCHOOL BOARD DIRECTOR,ACADEMY 20,"SALT, AARON",3.4,10/16/21 0:00,Anedot,Baton Rouge,LA,70884,Bank Fees,Processing Fee
194,EL PASO,SCHOOL BOARD DIRECTOR,ACADEMY 20,"SALT, AARON",2402.04,10/16/21 0:00,Update Printing,Colorado Springs,CO,80910,Advertising,Mail
195,EL PASO,SCHOOL BOARD DIRECTOR,ACADEMY 20,"SALT, AARON",3161.81,10/19/21 0:00,Msi,Colorado Springs,CO,80903,Advertising,Mailer
196,EL PASO,SCHOOL BOARD DIRECTOR,ACADEMY 20,"SALT, AARON",-2107.87,10/22/21 0:00,Msi,Colorado Springs,CO,80903,Returned Expenditure,Reimbursement For Shared Electioneering Expense With Tom Lavalley And Nicole Konz
197,EL PASO,SCHOOL BOARD DIRECTOR,ACADEMY 20,"SALT, AARON",-1601.36,10/22/21 0:00,Update Printing,Colorado Springs,CO,80910,Returned Expenditure,Reimbursement For Shared Electioneering Expense With Tom Lavalley And Nicole Konz
198,EL PASO,SCHOOL BOARD DIRECTOR,ACADEMY 20,"SALT, AARON",3000.0,10/23/21 0:00,Jan  Horsfall,Colorado Springs,CO,80919,Advertising,Digital Marketing
199,EL PASO,SCHOOL BOARD DIRECTOR,ACADEMY 20,"SALT, AARON",-2000.0,10/23/21 0:00,Jan  Horsfall,Colorado Springs,CO,80919,Returned Expenditure,Reimbursement For A Shared Candidate Expense With Tom Lavalley And Nicole Konz
200,EL PASO,SCHOOL BOARD DIRECTOR,ACADEMY 20,"SALT, AARON",4.6,10/26/21 0:00,Anedot,Baton Rouge,LA,70884,Bank Fees,Processing Fees
201,EL PASO,SCHOOL BOARD DIRECTOR,ACADEMY 20,"SALT, AARON",9.72,10/27/21 0:00,Walmart,Colorado Springs,CO,80920,Office Equipment & Supplies,Thank You Card
202,EL PASO,SCHOOL BOARD DIRECTOR,ACADEMY 20,"SALT, AARON",58.0,11/1/21 0:00,Aaron  Salt,Colorado Springs,CO,80920,Office Equipment & Supplies,Reimbursement For Stamps
203,EL PASO,SCHOOL BOARD DIRECTOR,ACADEMY 20,"SALT, AARON",68.69,11/2/21 0:00,Twins Wine And Liquor,Colorado Springs,CO,80924,"Food, Beverages and Meals",Volunteer Thank You
204,EL PASO,SCHOOL BOARD DIRECTOR,ACADEMY 20,"SALT, AARON",51.07,11/3/21 0:00,Target,Colorado Springs,CO,80924,Other,Volunteer Thank You
205,EL PASO,SCHOOL BOARD DIRECTOR,ACADEMY 20,"SALT, AARON",41.44,11/3/21 0:00,Target,Colorado Springs,CO,80920,"Food, Beverages and Meals",Volunteer Thank You
206,EL PASO,SCHOOL BOARD DIRECTOR,ACADEMY 20,"SALT, AARON",500.0,11/3/21 0:00,Stacy  Adair,Colorado Springs,CO,80923,Consultant & Professional Services,Win Bonus - Volunteer Coordination
207,EL PASO,SCHOOL BOARD DIRECTOR,ACADEMY 20,"SALT, AARON",41.21,11/4/21 0:00,Civic Opus Strategies,Colorado Springs,CO,80920,Advertising,Texting
208,EL PASO,SCHOOL BOARD DIRECTOR,ACADEMY 20,"SALT, AARON",461.0,11/4/21 0:00,Civic Opus Strategies,Colorado Springs,CO,80920,Miscellaneous,"Sign Permits, Phone Calls, Data"
209,EL PASO,SCHOOL BOARD DIRECTOR,ACADEMY 20,"SALT, AARON",68.71,11/5/21 0:00,Lewis And Holmes,Peyton,CO,80831,Other,Volunteer Thank Yous
210,EL PASO,SCHOOL BOARD DIRECTOR,ACADEMY 20,"SALT, AARON",20.0,11/30/21 0:00,King Soopers,Colorado Springs,CO,80920,"Food, Beverages and Meals",Volunteer Food
211,WELD,SCHOOL BOARD DIRECTOR,GREELEY 6,"TALLEY, RAY",10.0,1/4/21 0:00,1St Bank,Lakewood,CO,80215,Bank Fees,Inactiviry Fee
212,WELD,SCHOOL BOARD DIRECTOR,GREELEY 6,"TALLEY, RAY",4.0,1/4/21 0:00,1St Bank,Lakewood,CO,80215,Bank Fees,Bankcard
213,WELD,SCHOOL BOARD DIRECTOR,GREELEY 6,"TALLEY, RAY",10.0,2/1/21 0:00,1St Bank,Lakewood,CO,80215,Bank Fees,Inactivity Fee
214,WELD,SCHOOL BOARD DIRECTOR,GREELEY 6,"TALLEY, RAY",4.0,2/1/21 0:00,1St Bank,Lakewood,CO,80215,Bank Fees,Business Cards
215,WELD,SCHOOL BOARD DIRECTOR,GREELEY 6,"TALLEY, RAY",10.0,3/2/21 0:00,1St Bank,Lakewood,CO,80215,Bank Fees,Inactivity Fee
216,WELD,SCHOOL BOARD DIRECTOR,GREELEY 6,"TALLEY, RAY",4.0,3/2/21 0:00,1St Bank,Lakewood,CO,80215,Bank Fees,Business Cards
217,WELD,SCHOOL BOARD DIRECTOR,GREELEY 6,"TALLEY, RAY",10.0,4/1/21 0:00,1St Bank,Lakewood,CO,80215,Bank Fees,Inactivity Fee
218,WELD,SCHOOL BOARD DIRECTOR,GREELEY 6,"TALLEY, RAY",4.0,4/1/21 0:00,1St Bank,Lakewood,CO,80215,Bank Fees,Fee For 2 Firstbank Business Cards
219,WELD,SCHOOL BOARD DIRECTOR,GREELEY 6,"TALLEY, RAY",10.0,5/3/21 0:00,1St Bank,Lakewood,CO,80215,Bank Fees,Inactivity Fee
220,WELD,SCHOOL BOARD DIRECTOR,GREELEY 6,"TALLEY, RAY",4.0,5/3/21 0:00,1St Bank,Lakewood,CO,80215,Bank Fees,Fee For 2 Firstbank Business Cards
221,WELD,SCHOOL BOARD DIRECTOR,GREELEY 6,"TALLEY, RAY",10.0,6/1/21 0:00,1St Bank,Lakewood,CO,80215,Bank Fees,Inactivity Fee
222,WELD,SCHOOL BOARD DIRECTOR,GREELEY 6,"TALLEY, RAY",4.0,6/1/21 0:00,1St Bank,Lakewood,CO,80215,Bank Fees,Fee For 2 Firstbank Business Cards
223,WELD,SCHOOL BOARD DIRECTOR,GREELEY 6,"TALLEY, RAY",10.0,7/1/21 0:00,1St Bank,Lakewood,CO,80215,Bank Fees,Inactivity Fee
224,WELD,SCHOOL BOARD DIRECTOR,GREELEY 6,"TALLEY, RAY",4.0,7/1/21 0:00,1St Bank,Lakewood,CO,80215,Bank Fees,Fee For Business Cards
225,WELD,SCHOOL BOARD DIRECTOR,GREELEY 6,"TALLEY, RAY",2.0,8/1/21 0:00,1St Bank,Lakewood,CO,80215,Bank Fees,Fee For Bank Card.
226,WELD,SCHOOL BOARD DIRECTOR,GREELEY 6,"TALLEY, RAY",10.0,8/3/21 0:00,1St Bank,Lakewood,CO,80215,Bank Fees,Inactivity Fee
227,WELD,SCHOOL BOARD DIRECTOR,GREELEY 6,"TALLEY, RAY",4.0,8/3/21 0:00,1St Bank,Lakewood,CO,80215,Bank Fees,Fee For Bank Cards
228,WELD,SCHOOL BOARD DIRECTOR,GREELEY 6,"TALLEY, RAY",190.21,8/16/21 0:00,Matt Industries,Syracuse,NY,58104,Fundraising Expenses,Campaign Donation Envelopes
229,WELD,SCHOOL BOARD DIRECTOR,GREELEY 6,"TALLEY, RAY",217.86,8/23/21 0:00,Mycreative-Charge,Fargo,ND,58104,Advertising,Literature Handouts
230,WELD,SCHOOL BOARD DIRECTOR,GREELEY 6,"TALLEY, RAY",1122.0,8/25/21 0:00,Minuteman,Greeley,CO,80631,Advertising,Yard Signs
231,WELD,SCHOOL BOARD DIRECTOR,GREELEY 6,"TALLEY, RAY",86.48,8/30/21 0:00,Mycreative-Charge,Fargo,ND,58104,Advertising,Banners
232,WELD,SCHOOL BOARD DIRECTOR,GREELEY 6,"TALLEY, RAY",27.11,9/1/21 0:00,Donorbox,Arlington,VA,22204,Fundraising Expenses,Donorbox Fees
233,WELD,SCHOOL BOARD DIRECTOR,GREELEY 6,"TALLEY, RAY",80.25,9/3/21 0:00,Minuteman,Greeley,CO,80631,Advertising,Buttons
234,WELD,SCHOOL BOARD DIRECTOR,GREELEY 6,"TALLEY, RAY",0.24,9/13/21 0:00,,,,,Advertising,Facebook Boost
235,WELD,SCHOOL BOARD DIRECTOR,GREELEY 6,"TALLEY, RAY",448.31,9/17/21 0:00,888 The Sign,Ft. Lauerdale,FL,33312,Advertising,Large Campaign Sign
236,WELD,SCHOOL BOARD DIRECTOR,GREELEY 6,"TALLEY, RAY",4.0,10/1/20 0:00,1St Bank,Lakewood,CO,80215,Bank Fees,Fee For 2 Firstbank Business Cards
237,WELD,SCHOOL BOARD DIRECTOR,GREELEY 6,"TALLEY, RAY",2.0,10/1/21 0:00,1St Bank,Lakewood,CO,80215,Bank Fees,Business Card
238,WELD,SCHOOL BOARD DIRECTOR,GREELEY 6,"TALLEY, RAY",1343.09,10/4/21 0:00,Consider It There,Greeley,CO,80631,Advertising,Mailing
239,WELD,SCHOOL BOARD DIRECTOR,GREELEY 6,"TALLEY, RAY",317.63,10/5/21 0:00,The Copy Shoppe,Greeley,CO,80634,Advertising,Literature Postcards For Literature Drop (Canvassing).
240,WELD,SCHOOL BOARD DIRECTOR,GREELEY 6,"TALLEY, RAY",11.9,10/13/21 0:00,Donorbox,Arlington,VA,22204,Fundraising Expenses,Donorbox Fees
241,WELD,SCHOOL BOARD DIRECTOR,GREELEY 6,"TALLEY, RAY",2.5,10/20/21 0:00,Donorbox,Arlington,VA,22204,Fundraising Expenses,Donorbox Fees
242,WELD,SCHOOL BOARD DIRECTOR,GREELEY 6,"TALLEY, RAY",22.89,10/20/21 0:00,Facebook,Menlo Park,CA,94025,Advertising,Facebook Promotions
243,WELD,SCHOOL BOARD DIRECTOR,GREELEY 6,"TALLEY, RAY",2.5,10/30/21 0:00,Donorbox,Arlington,VA,22204,Fundraising Expenses,Donorbox Fees
244,WELD,SCHOOL BOARD DIRECTOR,GREELEY 6,"TALLEY, RAY",2.0,11/1/21 0:00,1St Bank,Lakewood,CO,80215,Bank Fees,Bank Card Fee
245,WELD,SCHOOL BOARD DIRECTOR,GREELEY 6,"TALLEY, RAY",10.0,11/2/20 0:00,1St Bank,Lakewood,CO,80215,Bank Fees,Inactivity Fee
246,WELD,SCHOOL BOARD DIRECTOR,GREELEY 6,"TALLEY, RAY",4.0,11/2/20 0:00,1St Bank,Lakewood,CO,80215,Bank Fees,Card Fee
247,WELD,SCHOOL BOARD DIRECTOR,GREELEY 6,"TALLEY, RAY",4.0,12/1/20 0:00,1St Bank,Lakewood,CO,80215,Bank Fees,Card Fee
248,WELD,SCHOOL BOARD DIRECTOR,GREELEY 6,"TALLEY, RAY",10.0,12/1/20 0:00,1St Bank,Lakewood,CO,80215,Bank Fees,Inactiviry Fee
249,ARAPAHOE,SCHOOL BOARD DIRECTOR,ADAMS-ARAPAHOE 28J,"KEKE, ANNE",16.0,2/26/21 0:00,Keybank,Aurora,CO,80013,Bank Fees,Bank Fees January And February 2021
250,ARAPAHOE,SCHOOL BOARD DIRECTOR,ADAMS-ARAPAHOE 28J,"KEKE, ANNE",8.0,3/31/21 0:00,,,,,Bank Fees,Bank Paper Statement Fee And Bank Service Fees
251,ARAPAHOE,SCHOOL BOARD DIRECTOR,ADAMS-ARAPAHOE 28J,"KEKE, ANNE",19.32,4/5/21 0:00,,,,,Other,Fee From Actblue
252,ARAPAHOE,SCHOOL BOARD DIRECTOR,ADAMS-ARAPAHOE 28J,"KEKE, ANNE",27.51,4/9/21 0:00,,,,,Miscellaneous,Actblue Donation Percentage Fees
253,ARAPAHOE,SCHOOL BOARD DIRECTOR,ADAMS-ARAPAHOE 28J,"KEKE, ANNE",60.06,4/28/21 0:00,Keybank,Aurora,CO,80013,Other,Payment For Checks Order At The Bank
254,ARAPAHOE,SCHOOL BOARD DIRECTOR,ADAMS-ARAPAHOE 28J,"KEKE, ANNE",10.9,5/5/21 0:00,Actblue,2144,MA,2144,Other,Actblue Service Fee
255,ARAPAHOE,SCHOOL BOARD DIRECTOR,ADAMS-ARAPAHOE 28J,"KEKE, ANNE",74.3,5/14/21 0:00,Office Depot,Denver,CO,80222,Office Equipment & Supplies,
256,ARAPAHOE,SCHOOL BOARD DIRECTOR,ADAMS-ARAPAHOE 28J,"KEKE, ANNE",800.0,5/26/21 0:00,Colorado Democratic Party,Denver,CO,80203,Other,Van Purchase
257,ARAPAHOE,SCHOOL BOARD DIRECTOR,ADAMS-ARAPAHOE 28J,"KEKE, ANNE",27.35,6/3/21 0:00,Actblue,2144,MA,2144,Other,Actblue Service Fee
258,ARAPAHOE,SCHOOL BOARD DIRECTOR,ADAMS-ARAPAHOE 28J,"KEKE, ANNE",646.4,6/21/21 0:00,Havana Sign Inc Aurora Co Usa,Aurora,CO,80012,Advertising,Flyers And Business Cards
259,ARAPAHOE,SCHOOL BOARD DIRECTOR,ADAMS-ARAPAHOE 28J,"KEKE, ANNE",410.86,6/23/21 0:00,Cross & Oberlie,Wi,CO,54956,Advertising,Yard Signs
260,ARAPAHOE,SCHOOL BOARD DIRECTOR,ADAMS-ARAPAHOE 28J,"KEKE, ANNE",3.0,6/30/20 0:00,Keybank,Aurora,CO,80013,Bank Fees,Bank Fee
261,ARAPAHOE,SCHOOL BOARD DIRECTOR,ADAMS-ARAPAHOE 28J,"KEKE, ANNE",23.55,7/6/21 0:00,Actblue,Somerville,MA,02144-0031,Other,Actblue Fee
262,ARAPAHOE,SCHOOL BOARD DIRECTOR,ADAMS-ARAPAHOE 28J,"KEKE, ANNE",119.84,7/10/21 0:00,Courtyard By Marriott,Aurora,CO,80011,Fundraising Expenses,Venue Rental For Campaign Kickoff Event
263,ARAPAHOE,SCHOOL BOARD DIRECTOR,ADAMS-ARAPAHOE 28J,"KEKE, ANNE",41.23,8/5/21 0:00,Actblue,Somerville,MA,02144-0031,Bank Fees,Actblue Fees
264,ARAPAHOE,SCHOOL BOARD DIRECTOR,ADAMS-ARAPAHOE 28J,"KEKE, ANNE",100.0,8/6/21 0:00,African Leadership Group,Aurora,CO,80014,Other,Table At Alg Event
265,ARAPAHOE,SCHOOL BOARD DIRECTOR,ADAMS-ARAPAHOE 28J,"KEKE, ANNE",46.75,8/10/21 0:00,Actblue,Somerville,MA,02144-0031,Bank Fees,Actblue Fees
266,ARAPAHOE,SCHOOL BOARD DIRECTOR,ADAMS-ARAPAHOE 28J,"KEKE, ANNE",43.21,9/3/21 0:00,Actblue,Somerville,MA,02144-0031,Bank Fees,
267,ARAPAHOE,SCHOOL BOARD DIRECTOR,ADAMS-ARAPAHOE 28J,"KEKE, ANNE",75.0,9/8/21 0:00,Arapahoe County Democratic Party,Aurora,CO,80014,Advertising,Ad For Democratic Event
268,ARAPAHOE,SCHOOL BOARD DIRECTOR,ADAMS-ARAPAHOE 28J,"KEKE, ANNE",270.0,9/15/21 0:00,Havana Sign Inc,Aurora,CO,80012,Advertising,Flyers
269,ARAPAHOE,SCHOOL BOARD DIRECTOR,ADAMS-ARAPAHOE 28J,"KEKE, ANNE",270.0,9/16/21 0:00,Havana Sign Inc,Aurora,CO,80012,Advertising,Literature
270,ARAPAHOE,SCHOOL BOARD DIRECTOR,ADAMS-ARAPAHOE 28J,"KEKE, ANNE",720.68,9/21/21 0:00,C&D Printing,Denver,CO,80212,Advertising,Flyers
271,ARAPAHOE,SCHOOL BOARD DIRECTOR,ADAMS-ARAPAHOE 28J,"KEKE, ANNE",47.08,9/27/21 0:00,Overnight Prints,Las Vegas,NV,89123,Advertising,Postcards
272,ARAPAHOE,SCHOOL BOARD DIRECTOR,ADAMS-ARAPAHOE 28J,"KEKE, ANNE",24.0,9/30/20 0:00,Keybank,Aurora,CO,80013,Bank Fees,Bank Fees From July 31/2020 To September 30 /2020
273,ARAPAHOE,SCHOOL BOARD DIRECTOR,ADAMS-ARAPAHOE 28J,"KEKE, ANNE",80.69,10/4/21 0:00,Actblue,Somerville,MA,02144-0031,Bank Fees,
274,ARAPAHOE,SCHOOL BOARD DIRECTOR,ADAMS-ARAPAHOE 28J,"KEKE, ANNE",67.0,10/4/21 0:00,Colorado Black Women For Political Action,Denver,CO,80237,Advertising,Table For Cbwpa Event
275,ARAPAHOE,SCHOOL BOARD DIRECTOR,ADAMS-ARAPAHOE 28J,"KEKE, ANNE",150.0,10/4/21 0:00,Afrik Digest,Denver,CO,80220,Advertising,Ad In Akrik Digest
276,ARAPAHOE,SCHOOL BOARD DIRECTOR,ADAMS-ARAPAHOE 28J,"KEKE, ANNE",200.0,10/6/21 0:00,Elhadji  Sine,Aurora,CO,80016,Advertising,Video For Digital
277,ARAPAHOE,SCHOOL BOARD DIRECTOR,ADAMS-ARAPAHOE 28J,"KEKE, ANNE",16.13,10/12/21 0:00,Overnight Prints,Las Vegas,NV,89123,Advertising,Postage For Reship Of Postcards
278,ARAPAHOE,SCHOOL BOARD DIRECTOR,ADAMS-ARAPAHOE 28J,"KEKE, ANNE",68.02,10/12/21 0:00,Actblue,Somerville,MA,02144-0031,Bank Fees,Actblue Fees
279,ARAPAHOE,SCHOOL BOARD DIRECTOR,ADAMS-ARAPAHOE 28J,"KEKE, ANNE",1500.0,10/12/21 0:00,"Turn It Blue Digital, Llc",Boulder,CO,80304,Consultant & Professional Services,Digital Ads And Placement
280,ARAPAHOE,SCHOOL BOARD DIRECTOR,ADAMS-ARAPAHOE 28J,"KEKE, ANNE",1720.0,10/13/21 0:00,"Turn It Blue Digital, Llc",Boulder,CO,80304,Consultant & Professional Services,Digital Ad Design And Consulting
281,ARAPAHOE,SCHOOL BOARD DIRECTOR,ADAMS-ARAPAHOE 28J,"KEKE, ANNE",3000.0,10/15/21 0:00,"Turn It Blue Digital, Llc",Boulder,CO,80304,Advertising,Digital Ads
282,ARAPAHOE,SCHOOL BOARD DIRECTOR,ADAMS-ARAPAHOE 28J,"KEKE, ANNE",732.2,10/18/21 0:00,C&D Printing,Denver,CO,80212,Advertising,Flyers For Canvassing
283,ARAPAHOE,SCHOOL BOARD DIRECTOR,ADAMS-ARAPAHOE 28J,"KEKE, ANNE",1728.87,10/25/21 0:00,Envirofriendly Printing,Littleton,CO,80120,Advertising,Flyers For Canvassing
284,ARAPAHOE,SCHOOL BOARD DIRECTOR,ADAMS-ARAPAHOE 28J,"KEKE, ANNE",41.33,10/25/21 0:00,Office Depot,Denver,CO,80209,Fundraising Expenses,Labels For Postcards
285,ARAPAHOE,SCHOOL BOARD DIRECTOR,ADAMS-ARAPAHOE 28J,"KEKE, ANNE",4000.0,10/25/21 0:00,"Turn It Blue Digital, Llc",Boulder,CO,80304,Advertising,Digital Ads
286,ARAPAHOE,SCHOOL BOARD DIRECTOR,ADAMS-ARAPAHOE 28J,"KEKE, ANNE",280.0,10/26/21 0:00,Usps,Aurora,CO,80012,Office Equipment & Supplies,Postage
287,ARAPAHOE,SCHOOL BOARD DIRECTOR,ADAMS-ARAPAHOE 28J,"KEKE, ANNE",652.95,10/27/21 0:00,Scale To Win,Santa Ana,CA,92703,Telephone,Sms
288,ARAPAHOE,SCHOOL BOARD DIRECTOR,ADAMS-ARAPAHOE 28J,"KEKE, ANNE",2000.0,10/29/21 0:00,"Turn It Blue Digital, Llc",Boulder,CO,80304,Advertising,Digital Ads
289,ARAPAHOE,SCHOOL BOARD DIRECTOR,ADAMS-ARAPAHOE 28J,"KEKE, ANNE",24.0,10/30/20 0:00,Keybank,Aurora,CO,80013,Bank Fees,Bank Fees From October 30/2020 To December 31/2020
290,ARAPAHOE,SCHOOL BOARD DIRECTOR,ADAMS-ARAPAHOE 28J,"KEKE, ANNE",3312.48,11/3/21 0:00,Conspectus Network,Chantilly,VA,20152,Telephone,Phone Calls
291,ARAPAHOE,SCHOOL BOARD DIRECTOR,ADAMS-ARAPAHOE 28J,"KEKE, ANNE",38.92,11/3/21 0:00,Actblue,Somerville,MA,02144-0031,Bank Fees,Actblue Fees
292,ARAPAHOE,SCHOOL BOARD DIRECTOR,ADAMS-ARAPAHOE 28J,"KEKE, ANNE",1209.11,11/5/21 0:00,Scale To Win,Santa Ana,CA,92703,Telephone,Sms
293,ARAPAHOE,SCHOOL BOARD DIRECTOR,ADAMS-ARAPAHOE 28J,"KEKE, ANNE",500.0,11/6/21 0:00,Urban Tikkun Centre,Denver,CO,80231,Gifts,Charitable Donation With Remaining Funds
294,ARAPAHOE,SCHOOL BOARD DIRECTOR,ADAMS-ARAPAHOE 28J,"KEKE, ANNE",500.0,11/8/21 0:00,Portia  Prescott,Aurora,CO,80012,Consultant & Professional Services,Consulting Fees
295,ARAPAHOE,SCHOOL BOARD DIRECTOR,ADAMS-ARAPAHOE 28J,"KEKE, ANNE",700.0,11/8/21 0:00,Butterfly  White,Denver,CO,80237,Consultant & Professional Services,Volunteer Coordination
296,ARAPAHOE,SCHOOL BOARD DIRECTOR,ADAMS-ARAPAHOE 28J,"KEKE, ANNE",70.84,11/9/21 0:00,Actblue,Somerville,MA,02144-0031,Bank Fees,Actblue Fees
297,DENVER,SCHOOL BOARD DIRECTOR,DENVER COUNTY 1 AT LARGE,"YOLLICK, NICKY",250.0,1/6/21 0:00,Colorado Democratic Party,Denver,CO,80203,Miscellaneous,Campaign Van Access.
298,DENVER,SCHOOL BOARD DIRECTOR,DENVER COUNTY 1 AT LARGE,"YOLLICK, NICKY",14.66,1/10/21 0:00,Actblue Technical Services,Somerville,MA,02144-3132,Fundraising Expenses,Actblue Processing Fees.
299,DENVER,SCHOOL BOARD DIRECTOR,DENVER COUNTY 1 AT LARGE,"YOLLICK, NICKY",87.5,1/13/21 0:00,United States Postal Service,Denver,CO,80220,Office Equipment & Supplies,Stamps.
300,DENVER,SCHOOL BOARD DIRECTOR,DENVER COUNTY 1 AT LARGE,"YOLLICK, NICKY",174.93,1/13/21 0:00,C&D Printing And Mailing,Denver,CO,80212,Miscellaneous,Professional Printing Services.
301,DENVER,SCHOOL BOARD DIRECTOR,DENVER COUNTY 1 AT LARGE,"YOLLICK, NICKY",0.8,1/17/21 0:00,Actblue Technical Services,Somerville,MA,02144-3132,Fundraising Expenses,Actblue Processing Fees.
302,DENVER,SCHOOL BOARD DIRECTOR,DENVER COUNTY 1 AT LARGE,"YOLLICK, NICKY",25.03,1/18/21 0:00,"Godaddy.Com, Llc",Scottsdale,AZ,85260,Consultant & Professional Services,Email Account Fee.
303,DENVER,SCHOOL BOARD DIRECTOR,DENVER COUNTY 1 AT LARGE,"YOLLICK, NICKY",49.98,1/20/21 0:00,"Mailchimp C/O The Rocket Science Group, Llc",Atlanta,GA,30308,Consultant & Professional Services,Email Marketing Platform.
304,DENVER,SCHOOL BOARD DIRECTOR,DENVER COUNTY 1 AT LARGE,"YOLLICK, NICKY",1.07,1/24/21 0:00,Actblue Technical Services,Somerville,MA,02144-3132,Fundraising Expenses,Actblue Processing Fees.
305,DENVER,SCHOOL BOARD DIRECTOR,DENVER COUNTY 1 AT LARGE,"YOLLICK, NICKY",2.78,1/31/21 0:00,Actblue Technical Services,Somerville,MA,02144-3132,Fundraising Expenses,Actblue Processing Fees.
306,DENVER,SCHOOL BOARD DIRECTOR,DENVER COUNTY 1 AT LARGE,"YOLLICK, NICKY",1.98,2/7/21 0:00,Actblue Technical Services,Somerville,MA,02144-3132,Fundraising Expenses,Actblue Processing Fees.
307,DENVER,SCHOOL BOARD DIRECTOR,DENVER COUNTY 1 AT LARGE,"YOLLICK, NICKY",31.83,2/14/21 0:00,Actblue Technical Services,Somerville,MA,02144-3132,Fundraising Expenses,Actblue Processing Fees.
308,DENVER,SCHOOL BOARD DIRECTOR,DENVER COUNTY 1 AT LARGE,"YOLLICK, NICKY",49.98,2/16/21 0:00,"Mailchimp C/O The Rocket Science Group, Llc",Atlanta,GA,30308,Consultant & Professional Services,Email Marketing Platform.
309,DENVER,SCHOOL BOARD DIRECTOR,DENVER COUNTY 1 AT LARGE,"YOLLICK, NICKY",26.5,2/21/21 0:00,Actblue Technical Services,Somerville,MA,02144-3132,Fundraising Expenses,Actblue Processing Fees.
310,DENVER,SCHOOL BOARD DIRECTOR,DENVER COUNTY 1 AT LARGE,"YOLLICK, NICKY",4.66,2/23/21 0:00,King Soopers,Denver,CO,80207,Office Equipment & Supplies,Office Supplies.
311,DENVER,SCHOOL BOARD DIRECTOR,DENVER COUNTY 1 AT LARGE,"YOLLICK, NICKY",180.0,2/23/21 0:00,United States Postal Service,Denver,CO,80220,Office Equipment & Supplies,Mailing Supplies.
312,DENVER,SCHOOL BOARD DIRECTOR,DENVER COUNTY 1 AT LARGE,"YOLLICK, NICKY",16.82,2/28/21 0:00,Actblue Technical Services,Somerville,MA,02144-3132,Fundraising Expenses,Actblue Processing Fees.
313,DENVER,SCHOOL BOARD DIRECTOR,DENVER COUNTY 1 AT LARGE,"YOLLICK, NICKY",12.74,3/7/21 0:00,Actblue Technical Services,Somerville,MA,02144-3132,Fundraising Expenses,Actblue Processing Fees.
314,DENVER,SCHOOL BOARD DIRECTOR,DENVER COUNTY 1 AT LARGE,"YOLLICK, NICKY",41.69,3/14/21 0:00,Actblue Technical Services,Somerville,MA,02144-3132,Fundraising Expenses,
315,DENVER,SCHOOL BOARD DIRECTOR,DENVER COUNTY 1 AT LARGE,"YOLLICK, NICKY",49.98,3/16/21 0:00,"Mailchimp C/O The Rocket Science Group, Llc",Atlanta,GA,30308,Miscellaneous,Email Marketing Platform.
316,DENVER,SCHOOL BOARD DIRECTOR,DENVER COUNTY 1 AT LARGE,"YOLLICK, NICKY",61.67,3/21/21 0:00,Actblue Technical Services,Somerville,MA,02144-3132,Fundraising Expenses,Actblue Processing Fees.
317,DENVER,SCHOOL BOARD DIRECTOR,DENVER COUNTY 1 AT LARGE,"YOLLICK, NICKY",34.67,3/26/21 0:00,Fedex Office,Denver,CO,80207,Office Equipment & Supplies,Printing Services.
318,DENVER,SCHOOL BOARD DIRECTOR,DENVER COUNTY 1 AT LARGE,"YOLLICK, NICKY",75.06,3/28/21 0:00,Actblue Technical Services,Somerville,MA,02144-3132,Fundraising Expenses,Actblue Processing Fees.
319,DENVER,SCHOOL BOARD DIRECTOR,DENVER COUNTY 1 AT LARGE,"YOLLICK, NICKY",9.88,3/31/21 0:00,Actblue Technical Services,Somerville,MA,02144-3132,Fundraising Expenses,Actblue Processing Fees.
320,DENVER,SCHOOL BOARD DIRECTOR,DENVER COUNTY 1 AT LARGE,"YOLLICK, NICKY",4.75,4/4/21 0:00,Actblue Technical Services,Somerville,MA,02144-3132,Fundraising Expenses,Actblue Processing Fees.
321,DENVER,SCHOOL BOARD DIRECTOR,DENVER COUNTY 1 AT LARGE,"YOLLICK, NICKY",82.51,4/11/21 0:00,Actblue Technical Services,Somerville,MA,02144-3132,Fundraising Expenses,Actblue Processing Fees.
322,DENVER,SCHOOL BOARD DIRECTOR,DENVER COUNTY 1 AT LARGE,"YOLLICK, NICKY",55.54,4/16/21 0:00,"Mailchimp C/O The Rocket Science Group, Llc",Atlanta,GA,30308,Miscellaneous,Email Marketing Platform.
323,DENVER,SCHOOL BOARD DIRECTOR,DENVER COUNTY 1 AT LARGE,"YOLLICK, NICKY",8.3,4/18/21 0:00,Actblue Technical Services,Somerville,MA,02144-3132,Fundraising Expenses,Actblue Processing Fees.
324,DENVER,SCHOOL BOARD DIRECTOR,DENVER COUNTY 1 AT LARGE,"YOLLICK, NICKY",83.76,4/25/21 0:00,Actblue Technical Services,Somerville,MA,02144-3132,Fundraising Expenses,Actblue Processing Fees.
325,DENVER,SCHOOL BOARD DIRECTOR,DENVER COUNTY 1 AT LARGE,"YOLLICK, NICKY",42.86,4/28/21 0:00,Actblue Technical Services,Somerville,MA,02144-3132,Fundraising Expenses,Actblue Processing Fees.
326,DENVER,SCHOOL BOARD DIRECTOR,DENVER COUNTY 1 AT LARGE,"YOLLICK, NICKY",500.0,4/28/21 0:00,Mgc Connections,Denver,CO,80203,Consultant & Professional Services,Consulting Services.
327,DENVER,SCHOOL BOARD DIRECTOR,DENVER COUNTY 1 AT LARGE,"YOLLICK, NICKY",2.03,5/2/21 0:00,Actblue Technical Services,Somerville,MA,02144-3132,Fundraising Expenses,Actblue Processing Fees
328,DENVER,SCHOOL BOARD DIRECTOR,DENVER COUNTY 1 AT LARGE,"YOLLICK, NICKY",3613.0,5/7/21 0:00,Mgc Connections,Denver,CO,80203,Employee Services,Consulting Services.
329,DENVER,SCHOOL BOARD DIRECTOR,DENVER COUNTY 1 AT LARGE,"YOLLICK, NICKY",4.15,5/9/21 0:00,Actblue Technical Services,Somerville,MA,02144-3132,Fundraising Expenses,Actblue Processing Fees.
330,DENVER,SCHOOL BOARD DIRECTOR,DENVER COUNTY 1 AT LARGE,"YOLLICK, NICKY",0.99,5/16/21 0:00,Actblue Technical Services,Somerville,MA,02144-3132,Fundraising Expenses,Actblue Processing Fees.
331,DENVER,SCHOOL BOARD DIRECTOR,DENVER COUNTY 1 AT LARGE,"YOLLICK, NICKY",56.2,5/16/21 0:00,"Mailchimp C/O The Rocket Science Group, Llc",Atlanta,GA,30308,Miscellaneous,Email Marketing Platform.
332,DENVER,SCHOOL BOARD DIRECTOR,DENVER COUNTY 1 AT LARGE,"YOLLICK, NICKY",50.0,5/18/21 0:00,Randolph  Dixon,Mobile,AL,36606,Other,Graphic Design.
333,DENVER,SCHOOL BOARD DIRECTOR,DENVER COUNTY 1 AT LARGE,"YOLLICK, NICKY",60.25,5/23/21 0:00,Actblue Technical Services,Somerville,MA,02144-3132,Fundraising Expenses,Actblue Processing Fees.
334,DENVER,SCHOOL BOARD DIRECTOR,DENVER COUNTY 1 AT LARGE,"YOLLICK, NICKY",70.9,5/27/21 0:00,Actblue Technical Services,Somerville,MA,02144-3132,Fundraising Expenses,Actblue Processing Fees.
335,DENVER,SCHOOL BOARD DIRECTOR,DENVER COUNTY 1 AT LARGE,"YOLLICK, NICKY",1.63,5/30/21 0:00,Actblue Technical Services,Somerville,MA,02144-3132,Fundraising Expenses,Actblue Processing Fees.
336,DENVER,SCHOOL BOARD DIRECTOR,DENVER COUNTY 1 AT LARGE,"YOLLICK, NICKY",70.67,6/2/21 0:00,Office Depot,Denver,CO,80203,Office Equipment & Supplies,Office Supplies.
337,DENVER,SCHOOL BOARD DIRECTOR,DENVER COUNTY 1 AT LARGE,"YOLLICK, NICKY",4268.0,6/3/21 0:00,Mgc Connections,Denver,CO,80203,Consultant & Professional Services,Consulting Services.
338,DENVER,SCHOOL BOARD DIRECTOR,DENVER COUNTY 1 AT LARGE,"YOLLICK, NICKY",342.63,6/3/21 0:00,C&D Printing And Mailing,Denver,CO,80212,Office Equipment & Supplies,Printing Services.
339,DENVER,SCHOOL BOARD DIRECTOR,DENVER COUNTY 1 AT LARGE,"YOLLICK, NICKY",21.97,6/5/21 0:00,Office Depot,Denver,CO,80203,Office Equipment & Supplies,Office Supplies.
340,DENVER,SCHOOL BOARD DIRECTOR,DENVER COUNTY 1 AT LARGE,"YOLLICK, NICKY",32.63,6/6/21 0:00,Actblue Technical Services,Somerville,MA,02144-3132,Fundraising Expenses,Actblue Processing Fees.
341,DENVER,SCHOOL BOARD DIRECTOR,DENVER COUNTY 1 AT LARGE,"YOLLICK, NICKY",20.65,6/13/21 0:00,Actblue Technical Services,Somerville,MA,02144-3132,Fundraising Expenses,Actblue Processing Fees.
342,DENVER,SCHOOL BOARD DIRECTOR,DENVER COUNTY 1 AT LARGE,"YOLLICK, NICKY",55.54,6/16/21 0:00,"Mailchimp C/O The Rocket Science Group, Llc",Atlanta,GA,30308,Miscellaneous,Email Marketing Platform.
343,DENVER,SCHOOL BOARD DIRECTOR,DENVER COUNTY 1 AT LARGE,"YOLLICK, NICKY",172.84,6/18/21 0:00,C&D Printing And Mailing,Denver,CO,80212,Miscellaneous,Printing Services.
344,DENVER,SCHOOL BOARD DIRECTOR,DENVER COUNTY 1 AT LARGE,"YOLLICK, NICKY",21.73,6/20/21 0:00,Actblue Technical Services,Somerville,MA,02144-3132,Fundraising Expenses,Actblue Processing Fees.
345,DENVER,SCHOOL BOARD DIRECTOR,DENVER COUNTY 1 AT LARGE,"YOLLICK, NICKY",148.84,6/25/21 0:00,C&D Printing And Mailing,Denver,CO,80212,Miscellaneous,Printing Services.
346,DENVER,SCHOOL BOARD DIRECTOR,DENVER COUNTY 1 AT LARGE,"YOLLICK, NICKY",48.22,6/26/21 0:00,Actblue Technical Services,Somerville,MA,02144-3132,Fundraising Expenses,Actblue Processing Fees.
347,DENVER,SCHOOL BOARD DIRECTOR,DENVER COUNTY 1 AT LARGE,"YOLLICK, NICKY",58.74,6/28/21 0:00,Gamino Printing,Denver,CO,80209,Miscellaneous,Printing Services.
348,DENVER,SCHOOL BOARD DIRECTOR,DENVER COUNTY 1 AT LARGE,"YOLLICK, NICKY",4000.0,6/30/21 0:00,Mgc Connections,Denver,CO,80203,Employee Services,Consulting Services.
349,DENVER,SCHOOL BOARD DIRECTOR,DENVER COUNTY 1 AT LARGE,"YOLLICK, NICKY",129.65,7/7/21 0:00,Office Depot,Arvada,CO,80002,Office Equipment & Supplies,Stamps And Office Supplies.
350,DENVER,SCHOOL BOARD DIRECTOR,DENVER COUNTY 1 AT LARGE,"YOLLICK, NICKY",2333.83,7/9/21 0:00,C&D Printing And Mailing,Denver,CO,80212,Miscellaneous,Printing Services.
351,DENVER,SCHOOL BOARD DIRECTOR,DENVER COUNTY 1 AT LARGE,"YOLLICK, NICKY",1.98,7/11/21 0:00,Actblue Technical Services,Somerville,MA,02144-3132,Fundraising Expenses,Actblue Processing Fees.
352,DENVER,SCHOOL BOARD DIRECTOR,DENVER COUNTY 1 AT LARGE,"YOLLICK, NICKY",55.54,7/16/21 0:00,"Mailchimp C/O The Rocket Science Group, Llc",Atlanta,GA,30308,Miscellaneous,Email Marketing Platform.
353,DENVER,SCHOOL BOARD DIRECTOR,DENVER COUNTY 1 AT LARGE,"YOLLICK, NICKY",9.29,7/18/21 0:00,Actblue Technical Services,Somerville,MA,02144-3132,Fundraising Expenses,Actblue Processing Fees.
354,DENVER,SCHOOL BOARD DIRECTOR,DENVER COUNTY 1 AT LARGE,"YOLLICK, NICKY",63.35,7/25/21 0:00,Actblue Technical Services,Somerville,MA,02144-3132,Fundraising Expenses,Actblue Processing Fees.
355,DENVER,SCHOOL BOARD DIRECTOR,DENVER COUNTY 1 AT LARGE,"YOLLICK, NICKY",21.6,7/31/21 0:00,United States Postal Service,Denver,CO,80218-9998,Office Equipment & Supplies,Stamps.
356,DENVER,SCHOOL BOARD DIRECTOR,DENVER COUNTY 1 AT LARGE,"YOLLICK, NICKY",4000.0,8/1/21 0:00,Mgc Connections,Denver,CO,80203,Employee Services,
357,DENVER,SCHOOL BOARD DIRECTOR,DENVER COUNTY 1 AT LARGE,"YOLLICK, NICKY",87.84,8/1/21 0:00,Actblue Technical Services,Somerville,MA,02144-3132,Fundraising Expenses,Actblue Processing Fees.
358,DENVER,SCHOOL BOARD DIRECTOR,DENVER COUNTY 1 AT LARGE,"YOLLICK, NICKY",6.92,8/8/21 0:00,Actblue Technical Services,Somerville,MA,02144-3132,Fundraising Expenses,Actblue Processing Fees.
359,DENVER,SCHOOL BOARD DIRECTOR,DENVER COUNTY 1 AT LARGE,"YOLLICK, NICKY",5.93,8/15/21 0:00,Actblue Technical Services,Somerville,MA,02144-3132,Fundraising Expenses,Actblue Processing Fees.
360,DENVER,SCHOOL BOARD DIRECTOR,DENVER COUNTY 1 AT LARGE,"YOLLICK, NICKY",55.54,8/16/21 0:00,"Mailchimp C/O The Rocket Science Group, Llc",Atlanta,GA,30308,Fundraising Expenses,Email Marketing Platform.
361,DENVER,SCHOOL BOARD DIRECTOR,DENVER COUNTY 1 AT LARGE,"YOLLICK, NICKY",19.17,8/22/21 0:00,Actblue Technical Services,Somerville,MA,02144-3132,Fundraising Expenses,Actblue Processing Fees.
362,DENVER,SCHOOL BOARD DIRECTOR,DENVER COUNTY 1 AT LARGE,"YOLLICK, NICKY",26.45,8/25/21 0:00,The Ups Store,Arvada,CO,80002-3700,Office Equipment & Supplies,Office Supplies.
363,DENVER,SCHOOL BOARD DIRECTOR,DENVER COUNTY 1 AT LARGE,"YOLLICK, NICKY",25.5,8/25/21 0:00,The Ups Store,Arvada,CO,80002-3700,Office Equipment & Supplies,Postage.
364,DENVER,SCHOOL BOARD DIRECTOR,DENVER COUNTY 1 AT LARGE,"YOLLICK, NICKY",26.67,8/29/21 0:00,Actblue Technical Services,Somerville,MA,02144-3132,Fundraising Expenses,Actblue Processing Fees.
365,DENVER,SCHOOL BOARD DIRECTOR,DENVER COUNTY 1 AT LARGE,"YOLLICK, NICKY",47.26,9/5/21 0:00,Actblue Technical Services,Somerville,MA,02144-3132,Fundraising Expenses,Actblue Processing Fees.
366,DENVER,SCHOOL BOARD DIRECTOR,DENVER COUNTY 1 AT LARGE,"YOLLICK, NICKY",4000.0,9/7/21 0:00,Mgc Connections,Denver,CO,80203,Employee Services,
367,DENVER,SCHOOL BOARD DIRECTOR,DENVER COUNTY 1 AT LARGE,"YOLLICK, NICKY",30.0,9/8/21 0:00,Usps,Denver,CO,80220,Other,P.O. Box Renewal.
368,DENVER,SCHOOL BOARD DIRECTOR,DENVER COUNTY 1 AT LARGE,"YOLLICK, NICKY",399.95,9/12/21 0:00,Actblue Technical Services,Somerville,MA,02144-3132,Fundraising Expenses,Actblue Processing Fees.
369,DENVER,SCHOOL BOARD DIRECTOR,DENVER COUNTY 1 AT LARGE,"YOLLICK, NICKY",75.34,9/13/21 0:00,"Godaddy.Com, Llc",Scottsdale,AZ,85260,Miscellaneous,Renewal Of Campaign Email Subscription.
370,DENVER,SCHOOL BOARD DIRECTOR,DENVER COUNTY 1 AT LARGE,"YOLLICK, NICKY",55.54,9/16/21 0:00,"Mailchimp C/O The Rocket Science Group, Llc",Atlanta,GA,30308,Fundraising Expenses,Email Marketing Platform.
371,DENVER,SCHOOL BOARD DIRECTOR,DENVER COUNTY 1 AT LARGE,"YOLLICK, NICKY",30.29,9/19/21 0:00,Actblue Technical Services,Somerville,MA,02144-3132,Fundraising Expenses,Actblue Processing Fees.
372,DENVER,SCHOOL BOARD DIRECTOR,DENVER COUNTY 1 AT LARGE,"YOLLICK, NICKY",38.04,9/24/21 0:00,Michael'S,Denver,CO,80222,Office Equipment & Supplies,Office Supplies.
373,DENVER,SCHOOL BOARD DIRECTOR,DENVER COUNTY 1 AT LARGE,"YOLLICK, NICKY",6.92,9/26/21 0:00,Actblue Technical Services,Somerville,MA,02144-3132,Fundraising Expenses,Actblue Processing Fees.
374,DENVER,SCHOOL BOARD DIRECTOR,DENVER COUNTY 1 AT LARGE,"YOLLICK, NICKY",188.53,9/28/21 0:00,"Godaddy.Com, Llc",Scottsdale,AZ,85260,Miscellaneous,Website Renewal.
375,DENVER,SCHOOL BOARD DIRECTOR,DENVER COUNTY 1 AT LARGE,"YOLLICK, NICKY",4000.0,9/30/21 0:00,Mgc Connections,Denver,CO,80203,Consultant & Professional Services,
376,DENVER,SCHOOL BOARD DIRECTOR,DENVER COUNTY 1 AT LARGE,"YOLLICK, NICKY",1500.0,9/30/21 0:00,The Growth Engine,Breckenridge,CO,80424,Consultant & Professional Services,
377,DENVER,SCHOOL BOARD DIRECTOR,DENVER COUNTY 1 AT LARGE,"YOLLICK, NICKY",0.4,10/4/20 0:00,Actblue Technical Services,Somerville,MA,02144-3132,Fundraising Expenses,Actblue Processing Fees.
378,DENVER,SCHOOL BOARD DIRECTOR,DENVER COUNTY 1 AT LARGE,"YOLLICK, NICKY",7.9,10/11/20 0:00,Actblue Technical Services,Somerville,MA,02144-3132,Fundraising Expenses,Actblue Processing Fees.
379,DENVER,SCHOOL BOARD DIRECTOR,DENVER COUNTY 1 AT LARGE,"YOLLICK, NICKY",3819.64,10/15/21 0:00,C&D Printing And Mailing,Denver,CO,80212,Consultant & Professional Services,Printing And Mailing Services.
380,DENVER,SCHOOL BOARD DIRECTOR,DENVER COUNTY 1 AT LARGE,"YOLLICK, NICKY",52.14,10/16/20 0:00,"Mailchimp C/O The Rocket Science Group, Llc",Atlanta,GA,30308,Advertising,Email Services Account Fees.
381,DENVER,SCHOOL BOARD DIRECTOR,DENVER COUNTY 1 AT LARGE,"YOLLICK, NICKY",55.54,10/16/21 0:00,"Mailchimp C/O The Rocket Science Group, Llc",Atlanta,GA,30308,Other,Email Marketing Platform.
382,DENVER,SCHOOL BOARD DIRECTOR,DENVER COUNTY 1 AT LARGE,"YOLLICK, NICKY",3.96,10/18/20 0:00,Actblue Technical Services,Somerville,MA,02144-3132,Fundraising Expenses,Actblue Processing Fees.
383,DENVER,SCHOOL BOARD DIRECTOR,DENVER COUNTY 1 AT LARGE,"YOLLICK, NICKY",3423.27,10/18/21 0:00,C&D Printing And Mailing,Denver,CO,80212,Consultant & Professional Services,Printing And Mailing Services.
384,DENVER,SCHOOL BOARD DIRECTOR,DENVER COUNTY 1 AT LARGE,"YOLLICK, NICKY",2427.29,10/22/21 0:00,C&D Printing And Mailing,Denver,CO,80212,Consultant & Professional Services,Printing And Mailing Services.
385,DENVER,SCHOOL BOARD DIRECTOR,DENVER COUNTY 1 AT LARGE,"YOLLICK, NICKY",0.99,10/25/20 0:00,Actblue Technical Services,Somerville,MA,02144-3132,Fundraising Expenses,Actblue Processing Fees.
386,DENVER,SCHOOL BOARD DIRECTOR,DENVER COUNTY 1 AT LARGE,"YOLLICK, NICKY",4000.0,11/2/21 0:00,Mgc Connections,Denver,CO,80203,Employee Services,
387,DENVER,SCHOOL BOARD DIRECTOR,DENVER COUNTY 1 AT LARGE,"YOLLICK, NICKY",0.4,11/8/20 0:00,Actblue Technical Services,Somerville,MA,02144-3132,Fundraising Expenses,Actblue Processing Fees.
388,DENVER,SCHOOL BOARD DIRECTOR,DENVER COUNTY 1 AT LARGE,"YOLLICK, NICKY",46.08,11/10/21 0:00,Office Depot,Arvada,CO,80002,Office Equipment & Supplies,Office Supplies And Stamps.
389,DENVER,SCHOOL BOARD DIRECTOR,DENVER COUNTY 1 AT LARGE,"YOLLICK, NICKY",150.23,11/14/21 0:00,Actblue Technical Services,Somerville,MA,02144-3132,Fundraising Expenses,Actblue Processing Fees.
390,DENVER,SCHOOL BOARD DIRECTOR,DENVER COUNTY 1 AT LARGE,"YOLLICK, NICKY",1.39,11/15/20 0:00,Actblue Technical Services,Somerville,MA,02144-3132,Fundraising Expenses,Actblue Processing Fees.
391,DENVER,SCHOOL BOARD DIRECTOR,DENVER COUNTY 1 AT LARGE,"YOLLICK, NICKY",55.27,11/15/20 0:00,"Mailchimp C/O The Rocket Science Group, Llc",Atlanta,GA,30308,Advertising,Email Services Account Fees.
392,DENVER,SCHOOL BOARD DIRECTOR,DENVER COUNTY 1 AT LARGE,"YOLLICK, NICKY",2000.0,11/21/21 0:00,Mgc Connections,Denver,CO,80203,Employee Services,
393,DENVER,SCHOOL BOARD DIRECTOR,DENVER COUNTY 1 AT LARGE,"YOLLICK, NICKY",2.97,11/22/20 0:00,Actblue Technical Services,Somerville,MA,02144-3132,Fundraising Expenses,Actblue Processing Fees.
394,DENVER,SCHOOL BOARD DIRECTOR,DENVER COUNTY 1 AT LARGE,"YOLLICK, NICKY",22.11,11/25/21 0:00,Office Depot,Denver,CO,80203,Other,Thank You Cards.
395,DENVER,SCHOOL BOARD DIRECTOR,DENVER COUNTY 1 AT LARGE,"YOLLICK, NICKY",1.98,12/13/20 0:00,Actblue Technical Services,Somerville,MA,02144-3132,Fundraising Expenses,Actblue Processing Fees.
396,DENVER,SCHOOL BOARD DIRECTOR,DENVER COUNTY 1 AT LARGE,"YOLLICK, NICKY",55.27,12/16/20 0:00,"Mailchimp C/O The Rocket Science Group, Llc",Atlanta,GA,30308,Advertising,Email Services Account Fees.
397,DENVER,SCHOOL BOARD DIRECTOR,DENVER COUNTY 1 AT LARGE,"YOLLICK, NICKY",14.86,12/19/20 0:00,Fedex Office,Denver,CO,80207,Office Equipment & Supplies,Printing.
398,DENVER,SCHOOL BOARD DIRECTOR,DENVER COUNTY 1 AT LARGE,"YOLLICK, NICKY",22.0,12/20/20 0:00,United States Postal Service,Denver,CO,80220,Office Equipment & Supplies,Stamps.
399,DENVER,SCHOOL BOARD DIRECTOR,DENVER COUNTY 1 AT LARGE,"ESSERMAN, SCOTT",43.52,3/22/21 0:00,Zoom,Denver,CO,80237,Fundraising Expenses,Web-Based Virtual Meeting Hosting
400,DENVER,SCHOOL BOARD DIRECTOR,DENVER COUNTY 1 AT LARGE,"ESSERMAN, SCOTT",25.0,3/22/21 0:00,Facebook,Menlo Park,CA,94025,Advertising,Social Media Post Boost
401,DENVER,SCHOOL BOARD DIRECTOR,DENVER COUNTY 1 AT LARGE,"ESSERMAN, SCOTT",25.0,3/26/21 0:00,Facebook,Menlo Park,CA,94025,Advertising,Post Boosting
402,DENVER,SCHOOL BOARD DIRECTOR,DENVER COUNTY 1 AT LARGE,"ESSERMAN, SCOTT",163.11,3/26/21 0:00,Zoom,Denver,CO,80237,Fundraising Expenses,Web-Based Virtual Meeting Hosting
403,DENVER,SCHOOL BOARD DIRECTOR,DENVER COUNTY 1 AT LARGE,"ESSERMAN, SCOTT",16.99,4/1/21 0:00,Facebook,Menlo Park,CA,94025,Advertising,Social Media Post Push
404,DENVER,SCHOOL BOARD DIRECTOR,DENVER COUNTY 1 AT LARGE,"ESSERMAN, SCOTT",43.52,4/21/21 0:00,Zoom,Denver,CO,80237,Fundraising Expenses,Web-Based Virtual Meeting Service
405,DENVER,SCHOOL BOARD DIRECTOR,DENVER COUNTY 1 AT LARGE,"ESSERMAN, SCOTT",800.0,4/28/21 0:00,Act Blue,Somerville,MA,2144,Fundraising Expenses,Access To Donor Database Van
406,DENVER,SCHOOL BOARD DIRECTOR,DENVER COUNTY 1 AT LARGE,"ESSERMAN, SCOTT",200.0,4/28/21 0:00,The Center On Colfax,Denver,CO,80218,Fundraising Expenses,Registration For Pride Parade
407,DENVER,SCHOOL BOARD DIRECTOR,DENVER COUNTY 1 AT LARGE,"ESSERMAN, SCOTT",51.0,4/28/21 0:00,Denver Parks And Recreation,Denver,CO,80202,Fundraising Expenses,Deposit For Campaign Kickoff Space Rental
408,DENVER,SCHOOL BOARD DIRECTOR,DENVER COUNTY 1 AT LARGE,"ESSERMAN, SCOTT",537.3,4/30/21 0:00,Act Blue,Somerville,MA,2144,Fundraising Expenses,Fees Thru 4/30/2021
409,DENVER,SCHOOL BOARD DIRECTOR,DENVER COUNTY 1 AT LARGE,"ESSERMAN, SCOTT",1000.0,5/18/21 0:00,Tiffany  Caudill,Denver,CO,80123,Consultant & Professional Services,Campaign Consulting Fee
410,DENVER,SCHOOL BOARD DIRECTOR,DENVER COUNTY 1 AT LARGE,"ESSERMAN, SCOTT",43.52,5/20/21 0:00,Zoom,Denver,CO,80237,Other,Virtual Meeting Fees
411,DENVER,SCHOOL BOARD DIRECTOR,DENVER COUNTY 1 AT LARGE,"ESSERMAN, SCOTT",2.63,5/20/21 0:00,Facebook,Menlo Park,CA,94025,Advertising,Social Media Post Push
412,DENVER,SCHOOL BOARD DIRECTOR,DENVER COUNTY 1 AT LARGE,"ESSERMAN, SCOTT",762.68,5/21/21 0:00,C&D Printing,Denver,CO,80212,Fundraising Expenses,
413,DENVER,SCHOOL BOARD DIRECTOR,DENVER COUNTY 1 AT LARGE,"ESSERMAN, SCOTT",11.22,5/30/21 0:00,Actblue,Sommerville,MA,02114-0031,Fundraising Expenses,
414,DENVER,SCHOOL BOARD DIRECTOR,DENVER COUNTY 1 AT LARGE,"ESSERMAN, SCOTT",120.0,5/30/21 0:00,Lisa  Harker,Denver,CO,80205,Consultant & Professional Services,Data Entry For Esserman Campaign Contributions And Expenditures
415,DENVER,SCHOOL BOARD DIRECTOR,DENVER COUNTY 1 AT LARGE,"ESSERMAN, SCOTT",3500.0,6/1/21 0:00,The Htc Solutions,Aurora,CO,80047,Consultant & Professional Services,
416,DENVER,SCHOOL BOARD DIRECTOR,DENVER COUNTY 1 AT LARGE,"ESSERMAN, SCOTT",3500.0,6/1/21 0:00,The Htc Solutions,Aurora,CO,80047,Consultant & Professional Services,May Invoice For April Campaign Management
417,DENVER,SCHOOL BOARD DIRECTOR,DENVER COUNTY 1 AT LARGE,"ESSERMAN, SCOTT",500.0,6/7/21 0:00,Tiffany  Caudill,Denver,CO,80123,Consultant & Professional Services,
418,DENVER,SCHOOL BOARD DIRECTOR,DENVER COUNTY 1 AT LARGE,"ESSERMAN, SCOTT",43.52,6/20/21 0:00,Zoom,Denver,CO,80237,Fundraising Expenses,
419,DENVER,SCHOOL BOARD DIRECTOR,DENVER COUNTY 1 AT LARGE,"ESSERMAN, SCOTT",40.7,6/30/21 0:00,Act Blue,Somerville,MA,2144,Fundraising Expenses,Act Blue Fees Thru 6/30/2021
420,DENVER,SCHOOL BOARD DIRECTOR,DENVER COUNTY 1 AT LARGE,"ESSERMAN, SCOTT",500.0,7/1/21 0:00,Tiffany  Caudill,Denver,CO,80123,Consultant & Professional Services,
421,DENVER,SCHOOL BOARD DIRECTOR,DENVER COUNTY 1 AT LARGE,"ESSERMAN, SCOTT",3500.0,7/1/21 0:00,The Htc Solutions,Aurora,CO,80047,Consultant & Professional Services,
422,DENVER,SCHOOL BOARD DIRECTOR,DENVER COUNTY 1 AT LARGE,"ESSERMAN, SCOTT",43.52,7/21/21 0:00,Zoom,Denver,CO,80237,Other,Video And Teleconferencing
423,DENVER,SCHOOL BOARD DIRECTOR,DENVER COUNTY 1 AT LARGE,"ESSERMAN, SCOTT",192.83,7/27/21 0:00,Act Blue,Somerville,MA,2144,Fundraising Expenses,
424,DENVER,SCHOOL BOARD DIRECTOR,DENVER COUNTY 1 AT LARGE,"ESSERMAN, SCOTT",240.0,7/30/21 0:00,Lisa  Harker,Denver,CO,80205,Fundraising Expenses,
425,DENVER,SCHOOL BOARD DIRECTOR,DENVER COUNTY 1 AT LARGE,"ESSERMAN, SCOTT",564.72,7/30/21 0:00,The Htc Solutions,Aurora,CO,80047,Office Equipment & Supplies,Reimbursement To Hashim Coates For Campaign Literature
426,DENVER,SCHOOL BOARD DIRECTOR,DENVER COUNTY 1 AT LARGE,"ESSERMAN, SCOTT",500.0,8/1/21 0:00,Tiffany  Caudill,Denver,CO,80123,Consultant & Professional Services,Campaign Consulting - Co-Management
427,DENVER,SCHOOL BOARD DIRECTOR,DENVER COUNTY 1 AT LARGE,"ESSERMAN, SCOTT",3500.0,8/1/21 0:00,The Htc Solutions,Aurora,CO,80047,Consultant & Professional Services,
428,DENVER,SCHOOL BOARD DIRECTOR,DENVER COUNTY 1 AT LARGE,"ESSERMAN, SCOTT",1000.0,8/15/21 0:00,Good Trouble Consulting,Denver,CO,80218,Consultant & Professional Services,Social Media Management
429,DENVER,SCHOOL BOARD DIRECTOR,DENVER COUNTY 1 AT LARGE,"ESSERMAN, SCOTT",166.64,8/30/21 0:00,Act Blue,Somerville,MA,2144,Fundraising Expenses,
430,DENVER,SCHOOL BOARD DIRECTOR,DENVER COUNTY 1 AT LARGE,"ESSERMAN, SCOTT",1000.0,9/1/21 0:00,Good Trouble Consulting,Denver,CO,80218,Consultant & Professional Services,Social Media Management 8/15/21 - 9/1/21
431,DENVER,SCHOOL BOARD DIRECTOR,DENVER COUNTY 1 AT LARGE,"ESSERMAN, SCOTT",500.0,9/1/21 0:00,Tiffany  Caudill,Denver,CO,80123,Consultant & Professional Services,Campaign Consulting - Co-Management
432,DENVER,SCHOOL BOARD DIRECTOR,DENVER COUNTY 1 AT LARGE,"ESSERMAN, SCOTT",598.46,9/1/21 0:00,Egan Printing,Denver,CO,80204,Fundraising Expenses,Campaign Literature
433,DENVER,SCHOOL BOARD DIRECTOR,DENVER COUNTY 1 AT LARGE,"ESSERMAN, SCOTT",-598.46,9/1/21 0:00,Egan Printing,Denver,CO,80204,Fundraising Expenses,Offset Due To Update Of Filed Item - Campaign Literature
434,DENVER,SCHOOL BOARD DIRECTOR,DENVER COUNTY 1 AT LARGE,"ESSERMAN, SCOTT",598.46,9/1/21 0:00,Egan Printing,Denver,CO,80204,Fundraising Expenses,Mailer
435,DENVER,SCHOOL BOARD DIRECTOR,DENVER COUNTY 1 AT LARGE,"ESSERMAN, SCOTT",1000.0,9/13/21 0:00,Good Trouble Consulting,Denver,CO,80218,Consultant & Professional Services,
436,DENVER,SCHOOL BOARD DIRECTOR,DENVER COUNTY 1 AT LARGE,"ESSERMAN, SCOTT",65.59,9/15/21 0:00,Act Blue,Somerville,MA,2144,Fundraising Expenses,
437,DENVER,SCHOOL BOARD DIRECTOR,DENVER COUNTY 1 AT LARGE,"ESSERMAN, SCOTT",860.0,9/20/21 0:00,Lisa  Harker,Denver,CO,80205,Consultant & Professional Services,
438,DENVER,SCHOOL BOARD DIRECTOR,DENVER COUNTY 1 AT LARGE,"ESSERMAN, SCOTT",22.0,9/21/21 0:00,Mail Chimp C/O The Rocket Science Group Llc,Atlanta,GA,30308,Fundraising Expenses,Email Campaign
439,DENVER,SCHOOL BOARD DIRECTOR,DENVER COUNTY 1 AT LARGE,"ESSERMAN, SCOTT",1517.9,9/21/21 0:00,Egan Printing,Denver,CO,80204,Fundraising Expenses,
440,DENVER,SCHOOL BOARD DIRECTOR,DENVER COUNTY 1 AT LARGE,"ESSERMAN, SCOTT",1000.0,9/29/21 0:00,Good Trouble Consulting,Denver,CO,80218,Consultant & Professional Services,
441,DENVER,SCHOOL BOARD DIRECTOR,DENVER COUNTY 1 AT LARGE,"ESSERMAN, SCOTT",500.0,10/1/21 0:00,Tiffany  Caudill,Denver,CO,80123,Consultant & Professional Services,
442,DENVER,SCHOOL BOARD DIRECTOR,DENVER COUNTY 1 AT LARGE,"ESSERMAN, SCOTT",14000.0,10/4/21 0:00,Plumb Marketin,Englewood,CO,80111,Fundraising Expenses,
443,DENVER,SCHOOL BOARD DIRECTOR,DENVER COUNTY 1 AT LARGE,"ESSERMAN, SCOTT",2500.0,10/10/21 0:00,Emily  Hiltz,Denver,CO,80203,Consultant & Professional Services,
444,DENVER,SCHOOL BOARD DIRECTOR,DENVER COUNTY 1 AT LARGE,"ESSERMAN, SCOTT",1000.0,10/12/21 0:00,Good Trouble Consulting,Denver,CO,80218,Consultant & Professional Services,
445,DENVER,SCHOOL BOARD DIRECTOR,DENVER COUNTY 1 AT LARGE,"ESSERMAN, SCOTT",5902.0,10/13/21 0:00,Egan Printing,Denver,CO,80204,Fundraising Expenses,
446,DENVER,SCHOOL BOARD DIRECTOR,DENVER COUNTY 1 AT LARGE,"ESSERMAN, SCOTT",436.4,10/15/21 0:00,Act Blue,Somerville,MA,2144,Fundraising Expenses,Actblue Fees
447,DENVER,SCHOOL BOARD DIRECTOR,DENVER COUNTY 1 AT LARGE,"ESSERMAN, SCOTT",1000.0,10/20/21 0:00,Good Trouble Consulting,Denver,CO,80218,Consultant & Professional Services,
448,DENVER,SCHOOL BOARD DIRECTOR,DENVER COUNTY 1 AT LARGE,"ESSERMAN, SCOTT",4644.01,10/20/21 0:00,Egan Printing,Denver,CO,80204,Fundraising Expenses,Poly Bag Signs
449,DENVER,SCHOOL BOARD DIRECTOR,DENVER COUNTY 1 AT LARGE,"ESSERMAN, SCOTT",377.61,10/29/21 0:00,Act Blue,Somerville,MA,2144,Fundraising Expenses,
450,DENVER,SCHOOL BOARD DIRECTOR,DENVER COUNTY 1 AT LARGE,"ESSERMAN, SCOTT",64.23,10/30/21 0:00,Walmart,Denver,CO,80207,"Food, Beverages and Meals",
451,DENVER,SCHOOL BOARD DIRECTOR,DENVER COUNTY 1 AT LARGE,"ESSERMAN, SCOTT",4000.0,11/1/21 0:00,Emily  Hiltz,Denver,CO,80203,Consultant & Professional Services,Campaign Consulting
452,DENVER,SCHOOL BOARD DIRECTOR,DENVER COUNTY 1 AT LARGE,"ESSERMAN, SCOTT",2087.17,11/2/21 0:00,Scale To Win,Santa Ana,CA,92703,Advertising,
453,DENVER,SCHOOL BOARD DIRECTOR,DENVER COUNTY 1 AT LARGE,"ESSERMAN, SCOTT",668.61,11/2/21 0:00,Brother'S Bbq Catering,Denver,CO,80204,"Food, Beverages and Meals",
454,DENVER,SCHOOL BOARD DIRECTOR,DENVER COUNTY 1 AT LARGE,"ESSERMAN, SCOTT",1332.0,11/5/21 0:00,Travis  Delagerheim,Denver,CO,80123,Consultant & Professional Services,Canvassing - 74 Hours
455,DENVER,SCHOOL BOARD DIRECTOR,DENVER COUNTY 1 AT LARGE,"ESSERMAN, SCOTT",588.7,11/25/20 0:00,Wix,San Francisco,CA,94110,Advertising,Website And Domain Hosting
456,DENVER,SCHOOL BOARD DIRECTOR,DENVER COUNTY 1 AT LARGE,"ESSERMAN, SCOTT",80.0,11/25/20 0:00,Wix,San Francisco,CA,94110,Fundraising Expenses,Website
457,DENVER,SCHOOL BOARD DIRECTOR,DENVER COUNTY 1 AT LARGE,"ESSERMAN, SCOTT",80.0,12/4/20 0:00,Usps,Denver,CO,80220,Other,Po Box
458,DENVER,SCHOOL BOARD DIRECTOR,DENVER COUNTY 1 AT LARGE,"ESSERMAN, SCOTT",174.35,12/31/20 0:00,Act Blue,Somerville,MA,2144,Bank Fees,Fees For Act Blue Donations
459,ARAPAHOE,SCHOOL BOARD DIRECTOR,CHERRY CREEK 5,"JONES, JERRY",,,,,,,,
460,DENVER,SCHOOL BOARD DIRECTOR,DENVER COUNTY 1 AT LARGE,"HERNANDEZ, JORGE",193.64,4/12/21 0:00,1St Bank,Denver,CO,80231,Bank Fees,
461,DENVER,SCHOOL BOARD DIRECTOR,DENVER COUNTY 1 AT LARGE,"HERNANDEZ, JORGE",3.17,7/29/21 0:00,Actblue Techincal Services,Sommerville,MA,,Fundraising Expenses,Actblue Processing Fees
462,DENVER,SCHOOL BOARD DIRECTOR,DENVER COUNTY 1 AT LARGE,"HERNANDEZ, JORGE",5.0,8/2/21 0:00,First Bank,Denver,CO,80231,Bank Fees,Internet Bill Pay
463,DENVER,SCHOOL BOARD DIRECTOR,DENVER COUNTY 1 AT LARGE,"HERNANDEZ, JORGE",6.0,9/27/21 0:00,1St Bank,,CO,,Bank Fees,
464,DENVER,SCHOOL BOARD DIRECTOR,DENVER COUNTY 1 AT LARGE,"HERNANDEZ, JORGE",20.43,9/30/21 0:00,Chipotle,Lakewood,CO,,"Food, Beverages and Meals",
465,DENVER,SCHOOL BOARD DIRECTOR,DENVER COUNTY 1 AT LARGE,"HERNANDEZ, JORGE",9.57,10/1/21 0:00,Starbucks,Lakewood,CO,,"Food, Beverages and Meals",
466,DENVER,SCHOOL BOARD DIRECTOR,DENVER COUNTY 1 AT LARGE,"HERNANDEZ, JORGE",5.0,10/1/21 0:00,Firstbank,,CO,,Bank Fees,
467,DENVER,SCHOOL BOARD DIRECTOR,DENVER COUNTY 1 AT LARGE,"HERNANDEZ, JORGE",229.19,10/8/21 0:00,1St Bank,Denver,CO,80231,Other,Desire To Terminate Candidacy
468,ARAPAHOE,SCHOOL BOARD DIRECTOR,ADAMS-ARAPAHOE 28J,"DUNCAN, TRAMAINE",54.0,2/3/21 0:00,Google,Mountain View,CA,94043,Other,Gmail Account
469,ARAPAHOE,SCHOOL BOARD DIRECTOR,ADAMS-ARAPAHOE 28J,"DUNCAN, TRAMAINE",-54.0,2/3/21 0:00,Google,Mountain View,CA,94043,Other,Offset Due To Update Of Filed Item - Gmail Account
470,ARAPAHOE,SCHOOL BOARD DIRECTOR,ADAMS-ARAPAHOE 28J,"DUNCAN, TRAMAINE",60.23,5/31/21 0:00,Google,Mountain View,CA,94043,Other,Gmail Account
471,ARAPAHOE,SCHOOL BOARD DIRECTOR,ADAMS-ARAPAHOE 28J,"DUNCAN, TRAMAINE",-60.23,5/31/21 0:00,Google,Mountain View,CA,94043,Other,Offset Due To Update Of Filed Item - Gmail Account
472,ARAPAHOE,SCHOOL BOARD DIRECTOR,ADAMS-ARAPAHOE 28J,"DUNCAN, TRAMAINE",78.23,5/31/21 0:00,Google,Mountain View,CA,94043,Other,Gmail Account
473,ARAPAHOE,SCHOOL BOARD DIRECTOR,ADAMS-ARAPAHOE 28J,"DUNCAN, TRAMAINE",29.0,6/20/21 0:00,Shopify,"Ottawa,",ON,K0A 0A0,Office Equipment & Supplies,
474,ARAPAHOE,SCHOOL BOARD DIRECTOR,ADAMS-ARAPAHOE 28J,"DUNCAN, TRAMAINE",10.61,7/6/21 0:00,Actblue,Cambridge,MA,2138,Fundraising Expenses,
475,ARAPAHOE,SCHOOL BOARD DIRECTOR,ADAMS-ARAPAHOE 28J,"DUNCAN, TRAMAINE",85.0,7/12/21 0:00,Shell Oil,Aurora,CO,80014,Travel & Lodging,
476,ARAPAHOE,SCHOOL BOARD DIRECTOR,ADAMS-ARAPAHOE 28J,"DUNCAN, TRAMAINE",48.96,7/15/21 0:00,"Superior Printing & Graphics, Inc",Denver,CO,80239,Advertising,
477,ARAPAHOE,SCHOOL BOARD DIRECTOR,ADAMS-ARAPAHOE 28J,"DUNCAN, TRAMAINE",60.0,7/20/21 0:00,Shell Oil,Aurora,CO,80014,Travel & Lodging,
478,ARAPAHOE,SCHOOL BOARD DIRECTOR,ADAMS-ARAPAHOE 28J,"DUNCAN, TRAMAINE",23.94,7/21/21 0:00,"Superior Printing & Graphics, Inc",Denver,CO,80239,Advertising,
479,ARAPAHOE,SCHOOL BOARD DIRECTOR,ADAMS-ARAPAHOE 28J,"DUNCAN, TRAMAINE",43.52,7/26/21 0:00,"Superior Printing & Graphics, Inc",Denver,CO,80239,Advertising,
480,ARAPAHOE,SCHOOL BOARD DIRECTOR,ADAMS-ARAPAHOE 28J,"DUNCAN, TRAMAINE",29.0,7/26/21 0:00,Shopify,Ottawa,ON,K2P 2L8,Office Equipment & Supplies,
481,ARAPAHOE,SCHOOL BOARD DIRECTOR,ADAMS-ARAPAHOE 28J,"DUNCAN, TRAMAINE",45.15,8/2/21 0:00,Corner Store #4048,Aurora,CO,80011,Travel & Lodging,
482,ARAPAHOE,SCHOOL BOARD DIRECTOR,ADAMS-ARAPAHOE 28J,"DUNCAN, TRAMAINE",650.0,8/5/21 0:00,Summit Event Center,Aurora,CO,80011,Entertainment,Campaign Launch
483,ARAPAHOE,SCHOOL BOARD DIRECTOR,ADAMS-ARAPAHOE 28J,"DUNCAN, TRAMAINE",172.0,8/5/21 0:00,Chicks That Print,Denver,CO,80249,Advertising,
484,ARAPAHOE,SCHOOL BOARD DIRECTOR,ADAMS-ARAPAHOE 28J,"DUNCAN, TRAMAINE",13.17,8/5/21 0:00,Actblue,Cambridge,MA,2138,Fundraising Expenses,
485,ARAPAHOE,SCHOOL BOARD DIRECTOR,ADAMS-ARAPAHOE 28J,"DUNCAN, TRAMAINE",62.02,8/9/21 0:00,"Superior Printing & Graphics, Inc",Denver,CO,80239,Advertising,
486,ARAPAHOE,SCHOOL BOARD DIRECTOR,ADAMS-ARAPAHOE 28J,"DUNCAN, TRAMAINE",64.79,8/9/21 0:00,Target,Aurora,CO,80012,Entertainment,
487,ARAPAHOE,SCHOOL BOARD DIRECTOR,ADAMS-ARAPAHOE 28J,"DUNCAN, TRAMAINE",172.0,8/10/21 0:00,Chicks That Print,Denver,CO,80249,Advertising,
488,ARAPAHOE,SCHOOL BOARD DIRECTOR,ADAMS-ARAPAHOE 28J,"DUNCAN, TRAMAINE",108.81,8/11/21 0:00,"Superior Printing & Graphics, Inc",Denver,CO,80239,Advertising,
489,ARAPAHOE,SCHOOL BOARD DIRECTOR,ADAMS-ARAPAHOE 28J,"DUNCAN, TRAMAINE",800.0,8/20/21 0:00,Actblue,Cambridge,MA,2138,Other,Act Blue
490,ARAPAHOE,SCHOOL BOARD DIRECTOR,ADAMS-ARAPAHOE 28J,"DUNCAN, TRAMAINE",29.0,8/23/21 0:00,Shopify,Ottawa,ON,K2P 2L8,Office Equipment & Supplies,
491,ARAPAHOE,SCHOOL BOARD DIRECTOR,ADAMS-ARAPAHOE 28J,"DUNCAN, TRAMAINE",257.55,8/23/21 0:00,Jalin Hughes,Aurora,CO,80016,Other,Website
492,ARAPAHOE,SCHOOL BOARD DIRECTOR,ADAMS-ARAPAHOE 28J,"DUNCAN, TRAMAINE",40.02,8/24/21 0:00,Fast And Friendly Food Mart Aurora,Aurora,CO,80011,Travel & Lodging,
493,ARAPAHOE,SCHOOL BOARD DIRECTOR,ADAMS-ARAPAHOE 28J,"DUNCAN, TRAMAINE",29.0,9/22/21 0:00,Shopify,Ottawa,ON,K2P 2L8,Office Equipment & Supplies,
494,ARAPAHOE,SCHOOL BOARD DIRECTOR,ADAMS-ARAPAHOE 28J,"DUNCAN, TRAMAINE",26.43,10/18/21 0:00,King Soopers,Aurora,CO,80011,Travel & Lodging,
495,ARAPAHOE,SCHOOL BOARD DIRECTOR,ADAMS-ARAPAHOE 28J,"DUNCAN, TRAMAINE",35.07,10/20/21 0:00,Corner Store #4048,Aurora,CO,80011,Travel & Lodging,
496,ARAPAHOE,SCHOOL BOARD DIRECTOR,ADAMS-ARAPAHOE 28J,"DUNCAN, TRAMAINE",29.0,10/22/21 0:00,Shopify,Ottawa,ON,K2P 2L8,Office Equipment & Supplies,
497,ARAPAHOE,SCHOOL BOARD DIRECTOR,ADAMS-ARAPAHOE 28J,"DUNCAN, TRAMAINE",2166.66,10/22/21 0:00,Kat Strategies Llc,Aurora,CO,80017,Consultant & Professional Services,
498,ARAPAHOE,SCHOOL BOARD DIRECTOR,ADAMS-ARAPAHOE 28J,"DUNCAN, TRAMAINE",40.19,10/25/21 0:00,Circle K,Denver,CO,80224,Travel & Lodging,
499,ARAPAHOE,SCHOOL BOARD DIRECTOR,ADAMS-ARAPAHOE 28J,"DUNCAN, TRAMAINE",48.09,11/1/21 0:00,Corner Store #4048,Aurora,CO,80011,Travel & Lodging,
500,ARAPAHOE,SCHOOL BOARD DIRECTOR,ADAMS-ARAPAHOE 28J,"DUNCAN, TRAMAINE",250.0,11/2/21 0:00,Jalin Hughes,Aurora,CO,80016,Office Equipment & Supplies,
501,ARAPAHOE,SCHOOL BOARD DIRECTOR,ADAMS-ARAPAHOE 28J,"DUNCAN, TRAMAINE",87.86,11/3/21 0:00,Uber Eats,San Francisco,CA,94103,"Food, Beverages and Meals",
502,ARAPAHOE,SCHOOL BOARD DIRECTOR,ADAMS-ARAPAHOE 28J,"DUNCAN, TRAMAINE",75.99,11/3/21 0:00,Uber Eats,San Francisco,CA,94103,"Food, Beverages and Meals",
503,ARAPAHOE,SCHOOL BOARD DIRECTOR,ADAMS-ARAPAHOE 28J,"DUNCAN, TRAMAINE",9.4,11/3/21 0:00,Actblue,Cambridge,MA,2138,Fundraising Expenses,
504,ARAPAHOE,SCHOOL BOARD DIRECTOR,ADAMS-ARAPAHOE 28J,"DUNCAN, TRAMAINE",40.0,11/5/21 0:00,Corner Store #4048,Aurora,CO,80011,Travel & Lodging,
505,ARAPAHOE,SCHOOL BOARD DIRECTOR,ADAMS-ARAPAHOE 28J,"DUNCAN, TRAMAINE",67.7,11/5/21 0:00,Uber Eats,San Francisco,CA,94103,"Food, Beverages and Meals",
506,ARAPAHOE,SCHOOL BOARD DIRECTOR,ADAMS-ARAPAHOE 28J,"DUNCAN, TRAMAINE",19.06,11/9/21 0:00,Actblue,Cambridge,MA,2138,Fundraising Expenses,
507,ARAPAHOE,SCHOOL BOARD DIRECTOR,CHERRY CREEK 5,"ALLAN, KRISTIN",22.8,4/2/21 0:00,First Bank,Lakewood,CO,80215,Bank Fees,
508,ARAPAHOE,SCHOOL BOARD DIRECTOR,CHERRY CREEK 5,"ALLAN, KRISTIN",1771.88,5/15/21 0:00,Engage Strategies,Denver,CO,80202,Consultant & Professional Services,
509,ARAPAHOE,SCHOOL BOARD DIRECTOR,CHERRY CREEK 5,"ALLAN, KRISTIN",557.89,5/28/21 0:00,Engage Strategies,Denver,CO,80202,Advertising,"Reimbursment For Business Cards, Banner, Remit Envelopes."
510,ARAPAHOE,SCHOOL BOARD DIRECTOR,CHERRY CREEK 5,"ALLAN, KRISTIN",467.03,5/30/21 0:00,Engage Strategies,Denver,CO,80202,Fundraising Expenses,Campaign Kickoff Food And Beverage Reimbursement
511,ARAPAHOE,SCHOOL BOARD DIRECTOR,CHERRY CREEK 5,"ALLAN, KRISTIN",2050.0,7/16/21 0:00,Engage Strategies,Denver,CO,80202,Consultant & Professional Services,
512,ARAPAHOE,SCHOOL BOARD DIRECTOR,CHERRY CREEK 5,"ALLAN, KRISTIN",53.27,7/27/21 0:00,Stripe,San Francisco,CA,91403,Bank Fees,
513,ARAPAHOE,SCHOOL BOARD DIRECTOR,CHERRY CREEK 5,"ALLAN, KRISTIN",3800.0,8/1/21 0:00,Engage Strategies,Denver,CO,80202,Consultant & Professional Services,Reimbursement For Walk Lit
514,ARAPAHOE,SCHOOL BOARD DIRECTOR,CHERRY CREEK 5,"ALLAN, KRISTIN",12.58,8/1/21 0:00,Google,Mountain Vista,CA,94043,Office Equipment & Supplies,Google Gsuite
515,ARAPAHOE,SCHOOL BOARD DIRECTOR,CHERRY CREEK 5,"ALLAN, KRISTIN",16.07,8/12/21 0:00,Vistaprint.Com,Waltham,MA,2451,Office Equipment & Supplies,Checks For Ccsd Account
516,ARAPAHOE,SCHOOL BOARD DIRECTOR,CHERRY CREEK 5,"ALLAN, KRISTIN",1709.2,8/17/21 0:00,Ampact Llc,Denver,CO,80218,Consultant & Professional Services,Consulting Services
517,ARAPAHOE,SCHOOL BOARD DIRECTOR,CHERRY CREEK 5,"ALLAN, KRISTIN",384.3,8/20/21 0:00,Minuteman Press Denver,Centennial,CO,80122,Miscellaneous,Printed Flyers
518,ARAPAHOE,SCHOOL BOARD DIRECTOR,CHERRY CREEK 5,"ALLAN, KRISTIN",2.67,8/25/21 0:00,Callfire.Com,Santa Monica,CA,90401,Telephone,Telephone Line
519,ARAPAHOE,SCHOOL BOARD DIRECTOR,CHERRY CREEK 5,"ALLAN, KRISTIN",2.25,8/28/21 0:00,Actblue,Somerville,MA,2144,Bank Fees,Actblue Fees
520,ARAPAHOE,SCHOOL BOARD DIRECTOR,CHERRY CREEK 5,"ALLAN, KRISTIN",398.35,9/1/21 0:00,Stripe,San Francisco,CA,91403,Bank Fees,Bank Fees
521,ARAPAHOE,SCHOOL BOARD DIRECTOR,CHERRY CREEK 5,"ALLAN, KRISTIN",12.58,9/3/21 0:00,Google,Mountain Vista,CA,94043,Office Equipment & Supplies,Google Gsuite
522,ARAPAHOE,SCHOOL BOARD DIRECTOR,CHERRY CREEK 5,"ALLAN, KRISTIN",4.41,9/9/21 0:00,"Vantiv, Llc",Symmes Township,OH,45249,Bank Fees,Actblue Fee
523,ARAPAHOE,SCHOOL BOARD DIRECTOR,CHERRY CREEK 5,"ALLAN, KRISTIN",60.0,9/13/21 0:00,Callfire.Com,Santa Monica,CA,90401,Telephone,Telephone Line
524,ARAPAHOE,SCHOOL BOARD DIRECTOR,CHERRY CREEK 5,"ALLAN, KRISTIN",1242.34,9/15/21 0:00,C&D Printing,Denver,CO,80212,Miscellaneous,Yard Signs
525,ARAPAHOE,SCHOOL BOARD DIRECTOR,CHERRY CREEK 5,"ALLAN, KRISTIN",10.0,9/27/21 0:00,Callfire.Com,Santa Monica,CA,90401,Telephone,
526,ARAPAHOE,SCHOOL BOARD DIRECTOR,CHERRY CREEK 5,"ALLAN, KRISTIN",2000.0,10/2/21 0:00,Ampact Llc,Denver,CO,80218,Consultant & Professional Services,Consulting Services
527,ARAPAHOE,SCHOOL BOARD DIRECTOR,CHERRY CREEK 5,"ALLAN, KRISTIN",14600.0,10/2/21 0:00,Engage Strategies,Denver,CO,80202,Consultant & Professional Services,Mailer
528,ARAPAHOE,SCHOOL BOARD DIRECTOR,CHERRY CREEK 5,"ALLAN, KRISTIN",168.32,10/4/21 0:00,Costco,Lone Tree,CO,80124,"Food, Beverages and Meals",Food And Beverage For Event With Kelly Bates For Cherry Creek School District
529,ARAPAHOE,SCHOOL BOARD DIRECTOR,CHERRY CREEK 5,"ALLAN, KRISTIN",12.58,10/4/21 0:00,Google,Mountain Vista,CA,94043,Office Equipment & Supplies,Google Suite
530,ARAPAHOE,SCHOOL BOARD DIRECTOR,CHERRY CREEK 5,"ALLAN, KRISTIN",5000.0,10/12/21 0:00,Compete Digital Llc,Washington,DC,20003,Advertising,Joint Digital Ads With Kelly Bates For Cherry Creek School District
531,ARAPAHOE,SCHOOL BOARD DIRECTOR,CHERRY CREEK 5,"ALLAN, KRISTIN",0.5,10/12/21 0:00,"Vantiv, Llc",Symmes Township,OH,45249,Bank Fees,Actblue Fees
532,ARAPAHOE,SCHOOL BOARD DIRECTOR,CHERRY CREEK 5,"ALLAN, KRISTIN",13908.4,10/13/21 0:00,Engage Strategies,Denver,CO,80202,Consultant & Professional Services,Joint Mailer With Kelly Bates For Cherry Creek School District
533,ARAPAHOE,SCHOOL BOARD DIRECTOR,CHERRY CREEK 5,"ALLAN, KRISTIN",737.44,10/14/21 0:00,C&D Printing,Denver,CO,80212,Miscellaneous,Yard Signs
534,ARAPAHOE,SCHOOL BOARD DIRECTOR,CHERRY CREEK 5,"ALLAN, KRISTIN",30.0,10/15/21 0:00,Callfire.Com,Santa Monica,CA,90401,Telephone,Telephone Line And Credits
535,ARAPAHOE,SCHOOL BOARD DIRECTOR,CHERRY CREEK 5,"ALLAN, KRISTIN",12.0,10/15/21 0:00,First Bank,Lakewood,CO,80215,Bank Fees,Bank Fee
536,ARAPAHOE,SCHOOL BOARD DIRECTOR,CHERRY CREEK 5,"ALLAN, KRISTIN",12.0,10/19/21 0:00,First Bank,Lakewood,CO,80215,Bank Fees,
537,ARAPAHOE,SCHOOL BOARD DIRECTOR,CHERRY CREEK 5,"ALLAN, KRISTIN",20.0,10/26/21 0:00,United States Post Office,Denver,CO,80218,Office Equipment & Supplies,Postage Stamps
538,ARAPAHOE,SCHOOL BOARD DIRECTOR,CHERRY CREEK 5,"ALLAN, KRISTIN",2122.64,10/27/21 0:00,The Sexton Group,Chicago,IL,60654,Consultant & Professional Services,Joint Text Message With Kelly Bates For Cherry Creek School District
539,ARAPAHOE,SCHOOL BOARD DIRECTOR,CHERRY CREEK 5,"ALLAN, KRISTIN",592.02,10/27/21 0:00,Stripe,San Francisco,CA,91403,Bank Fees,Bank Fees
540,ARAPAHOE,SCHOOL BOARD DIRECTOR,CHERRY CREEK 5,"ALLAN, KRISTIN",4.88,10/28/21 0:00,Stripe,San Francisco,CA,91403,Bank Fees,
541,ARAPAHOE,SCHOOL BOARD DIRECTOR,CHERRY CREEK 5,"ALLAN, KRISTIN",86.0,10/28/21 0:00,Callfire.Com,Santa Monica,CA,90401,Telephone,Telephone Line And Credits For Joint Phone Bank With Kelly Bates For Ccsd
542,ARAPAHOE,SCHOOL BOARD DIRECTOR,CHERRY CREEK 5,"ALLAN, KRISTIN",-86.0,10/28/21 0:00,Callfire.Com,Santa Monica,CA,90401,Telephone,Offset Due To Update Of Filed Item - Telephone Line And Credits For Joint Phone Bank With Kelly Bates For Ccsd
543,ARAPAHOE,SCHOOL BOARD DIRECTOR,CHERRY CREEK 5,"ALLAN, KRISTIN",60.0,10/31/21 0:00,Callfire.Com,Santa Monica,CA,90401,Telephone,Telephone Line And Credits For Joint Phone Bank With Kelly Bates For Ccsd
544,ARAPAHOE,SCHOOL BOARD DIRECTOR,CHERRY CREEK 5,"ALLAN, KRISTIN",120.0,11/1/21 0:00,Callfire.Com,Santa Monica,CA,90401,Telephone,Telephone Line And Credits For Joint Bank With Kelly Bates For Ccsd
545,ARAPAHOE,SCHOOL BOARD DIRECTOR,CHERRY CREEK 5,"ALLAN, KRISTIN",12.58,11/2/21 0:00,Google,Mountain Vista,CA,94043,Office Equipment & Supplies,Google Suite
546,ARAPAHOE,SCHOOL BOARD DIRECTOR,CHERRY CREEK 5,"ALLAN, KRISTIN",86.0,11/2/21 0:00,Callfire.Com,Santa Monica,CA,90401,Telephone,Telephone Line And Credits For Joint Phone Bank With Kelly Bates For Ccsd
547,ARAPAHOE,SCHOOL BOARD DIRECTOR,CHERRY CREEK 5,"ALLAN, KRISTIN",2000.0,11/9/21 0:00,Engage Strategies,Denver,CO,80202,Consultant & Professional Services,
548,ARAPAHOE,SCHOOL BOARD DIRECTOR,CHERRY CREEK 5,"ALLAN, KRISTIN",12.58,12/2/21 0:00,Google,Mountain Vista,CA,94043,Office Equipment & Supplies,Google Suite
549,ARAPAHOE,SCHOOL BOARD DIRECTOR,CHERRY CREEK 5,"ALLAN, KRISTIN",627.42,12/4/21 0:00,Ampact Llc,Denver,CO,80218,Consultant & Professional Services,Reimbursement For Mail Supplies And Payment For Consulting Services
550,JEFFERSON,SCHOOL BOARD DIRECTOR,JEFFERSON COUNTY R-1,"REED, PAULA",108.0,3/31/21 0:00,Wix.Com,San Francisco,CA,94158,Miscellaneous,Campaign Website
551,JEFFERSON,SCHOOL BOARD DIRECTOR,JEFFERSON COUNTY R-1,"REED, PAULA",1.01,4/3/21 0:00,Donorbox,San Francisco,CA,91403,Bank Fees,
552,JEFFERSON,SCHOOL BOARD DIRECTOR,JEFFERSON COUNTY R-1,"REED, PAULA",85.08,4/5/21 0:00,Office Depot,Lakewood,CO,80226,Office Equipment & Supplies,
553,JEFFERSON,SCHOOL BOARD DIRECTOR,JEFFERSON COUNTY R-1,"REED, PAULA",800.0,4/7/21 0:00,Colorado Democratic Party,Denver,CO,80203,Miscellaneous,Voter Activation Network Access
554,JEFFERSON,SCHOOL BOARD DIRECTOR,JEFFERSON COUNTY R-1,"REED, PAULA",161.15,4/13/21 0:00,Zoom,San Jose,CA,95113,Other,Video Conferencing
555,JEFFERSON,SCHOOL BOARD DIRECTOR,JEFFERSON COUNTY R-1,"REED, PAULA",341.44,4/15/21 0:00,C&D Printing,Denver,CO,80212,Fundraising Expenses,Printing
556,JEFFERSON,SCHOOL BOARD DIRECTOR,JEFFERSON COUNTY R-1,"REED, PAULA",500.0,4/26/21 0:00,Paula  Reed,Lakewood,CO,80228,Other,Loan Repayment For Initial $500 Required To Open Candidate First Bank Account.
557,JEFFERSON,SCHOOL BOARD DIRECTOR,JEFFERSON COUNTY R-1,"REED, PAULA",31.0,5/4/21 0:00,Donorbox,San Francisco,CA,91403,Bank Fees,Donation Processing Fee.
558,JEFFERSON,SCHOOL BOARD DIRECTOR,JEFFERSON COUNTY R-1,"REED, PAULA",37.3,5/11/21 0:00,Usps,Washington,DC,20260,Fundraising Expenses,Stamps To Thank Donors.
559,JEFFERSON,SCHOOL BOARD DIRECTOR,JEFFERSON COUNTY R-1,"REED, PAULA",-533.34,5/13/21 0:00,Colorado Democratic Party,Denver,CO,80203,Returned Expenditure,Danielle Varda For Jeffco Schools & Mary Parker For Jeffco Schools Each Reimbursed $266.67 For Access To Voter Activation Network
560,JEFFERSON,SCHOOL BOARD DIRECTOR,JEFFERSON COUNTY R-1,"REED, PAULA",12.24,6/4/21 0:00,Donorbox,San Francisco,CA,91403,Bank Fees,Processing Fee
561,JEFFERSON,SCHOOL BOARD DIRECTOR,JEFFERSON COUNTY R-1,"REED, PAULA",46.57,6/22/21 0:00,Integrity Print Group,Denver,CO,80232,Other,Business Cards
562,JEFFERSON,SCHOOL BOARD DIRECTOR,JEFFERSON COUNTY R-1,"REED, PAULA",8.75,7/1/21 0:00,Donorbox,San Francisco,CA,91403,Bank Fees,Processing Fees
563,JEFFERSON,SCHOOL BOARD DIRECTOR,JEFFERSON COUNTY R-1,"REED, PAULA",500.0,7/13/21 0:00,Lakewood Link Recreation Center,Lakewood,CO,80232,Fundraising Expenses,Deposit For Space Rental For Kickoff
564,JEFFERSON,SCHOOL BOARD DIRECTOR,JEFFERSON COUNTY R-1,"REED, PAULA",10.31,8/1/21 0:00,Donorbox,San Francisco,CA,91403,Bank Fees,
565,JEFFERSON,SCHOOL BOARD DIRECTOR,JEFFERSON COUNTY R-1,"REED, PAULA",63.43,8/7/21 0:00,Office Depot,Lakewood,CO,80226,Fundraising Expenses,Flyers For Campaign Kickoff
566,JEFFERSON,SCHOOL BOARD DIRECTOR,JEFFERSON COUNTY R-1,"REED, PAULA",36.51,8/9/21 0:00,Go Daddy,Scottsdale,AZ,85260,Miscellaneous,Bought Similar Domain Names To Protect Website
567,JEFFERSON,SCHOOL BOARD DIRECTOR,JEFFERSON COUNTY R-1,"REED, PAULA",-500.0,8/22/21 0:00,Lakewood Link Recreation Center,Lakewood,CO,80232,Returned Expenditure,Deposit Was Returned
568,JEFFERSON,SCHOOL BOARD DIRECTOR,JEFFERSON COUNTY R-1,"REED, PAULA",196.67,8/22/21 0:00,Lakewood Link Recreation Center,Lakewood,CO,80232,Other,Facility Rental For Campaign Kickoff
569,JEFFERSON,SCHOOL BOARD DIRECTOR,JEFFERSON COUNTY R-1,"REED, PAULA",181.35,8/23/21 0:00,Schiller Reed,Denver,CO,80223,Advertising,
570,JEFFERSON,SCHOOL BOARD DIRECTOR,JEFFERSON COUNTY R-1,"REED, PAULA",49.67,8/31/21 0:00,Phoneburner,Ladera Ranch,CA,92694,Telephone,
571,JEFFERSON,SCHOOL BOARD DIRECTOR,JEFFERSON COUNTY R-1,"REED, PAULA",166.28,9/1/21 0:00,Scale To Win,Santa Ana,CA,92703,Consultant & Professional Services,
572,JEFFERSON,SCHOOL BOARD DIRECTOR,JEFFERSON COUNTY R-1,"REED, PAULA",871.58,9/1/21 0:00,Donorbox,San Francisco,CA,91403,Fundraising Expenses,Fundraising Fee From 3/8/2021 To 9/1/2021
573,JEFFERSON,SCHOOL BOARD DIRECTOR,JEFFERSON COUNTY R-1,"REED, PAULA",166.28,9/2/21 0:00,Scale To Win,Santa Ana,CA,92703,Consultant & Professional Services,
574,JEFFERSON,SCHOOL BOARD DIRECTOR,JEFFERSON COUNTY R-1,"REED, PAULA",49.67,9/2/21 0:00,Phoneburner,Ladera Ranch,CA,92694,Telephone,
575,JEFFERSON,SCHOOL BOARD DIRECTOR,JEFFERSON COUNTY R-1,"REED, PAULA",1090.91,9/7/21 0:00,Brian  Courtny,Denver,CO,80220,Consultant & Professional Services,
576,JEFFERSON,SCHOOL BOARD DIRECTOR,JEFFERSON COUNTY R-1,"REED, PAULA",49.67,9/7/21 0:00,Phoneburner,Ladera Ranch,CA,92694,Telephone,
577,JEFFERSON,SCHOOL BOARD DIRECTOR,JEFFERSON COUNTY R-1,"REED, PAULA",36.59,9/7/21 0:00,Go Daddy,Scottsdale,AZ,85260,Advertising,
578,JEFFERSON,SCHOOL BOARD DIRECTOR,JEFFERSON COUNTY R-1,"REED, PAULA",10.25,9/7/21 0:00,Donorbox,San Francisco,CA,91403,Fundraising Expenses,
579,JEFFERSON,SCHOOL BOARD DIRECTOR,JEFFERSON COUNTY R-1,"REED, PAULA",17.87,9/9/21 0:00,Frontroom Pizza,Lakewood,CO,80228,"Food, Beverages and Meals",
580,JEFFERSON,SCHOOL BOARD DIRECTOR,JEFFERSON COUNTY R-1,"REED, PAULA",165.0,9/13/21 0:00,Kabza,Wheat Ridge,CO,80034,Advertising,
581,JEFFERSON,SCHOOL BOARD DIRECTOR,JEFFERSON COUNTY R-1,"REED, PAULA",90.0,9/15/21 0:00,Jefferson County Democratic Party,Lakewood,CO,80215,Other,Ticket For Er Dinner
582,JEFFERSON,SCHOOL BOARD DIRECTOR,JEFFERSON COUNTY R-1,"REED, PAULA",1000.0,9/15/21 0:00,Brian  Courtny,Denver,CO,80220,Consultant & Professional Services,
583,JEFFERSON,SCHOOL BOARD DIRECTOR,JEFFERSON COUNTY R-1,"REED, PAULA",114.13,9/15/21 0:00,Donorbox,San Francisco,CA,91403,Fundraising Expenses,Fundraising Fees From 9/2/2021 Thru 9/15/2021
584,JEFFERSON,SCHOOL BOARD DIRECTOR,JEFFERSON COUNTY R-1,"REED, PAULA",1410.0,9/22/21 0:00,Kabza,Wheat Ridge,CO,80034,Advertising,Mailer
585,JEFFERSON,SCHOOL BOARD DIRECTOR,JEFFERSON COUNTY R-1,"REED, PAULA",41.4,9/24/21 0:00,Usps.Com,Washington,DC,20260,Other,
586,JEFFERSON,SCHOOL BOARD DIRECTOR,JEFFERSON COUNTY R-1,"REED, PAULA",36.0,9/24/21 0:00,Mail Chimp,Atlanta,GA,30308,Advertising,
587,JEFFERSON,SCHOOL BOARD DIRECTOR,JEFFERSON COUNTY R-1,"REED, PAULA",816.08,9/27/21 0:00,Schiller Reed,Denver,CO,80223,Advertising,Yard Signs
588,JEFFERSON,SCHOOL BOARD DIRECTOR,JEFFERSON COUNTY R-1,"REED, PAULA",13846.63,9/29/21 0:00,Kabza,Wheat Ridge,CO,80034,Advertising,Mailer
589,JEFFERSON,SCHOOL BOARD DIRECTOR,JEFFERSON COUNTY R-1,"REED, PAULA",225.87,9/29/21 0:00,Donorbox,San Francisco,CA,91403,Fundraising Expenses,Fundraising Fees From 9/16/2021 Thru 9/29/2021
590,JEFFERSON,SCHOOL BOARD DIRECTOR,JEFFERSON COUNTY R-1,"REED, PAULA",16.0,10/1/21 0:00,Usps,Lakewood,CO,80214,Other,Rental Of Po Box
591,JEFFERSON,SCHOOL BOARD DIRECTOR,JEFFERSON COUNTY R-1,"REED, PAULA",13846.63,10/4/21 0:00,Kabza,Wheat Ridge,CO,80034,Advertising,Mailer
592,JEFFERSON,SCHOOL BOARD DIRECTOR,JEFFERSON COUNTY R-1,"REED, PAULA",1000.0,10/4/21 0:00,Brian  Courtny,Denver,CO,80220,Consultant & Professional Services,
593,JEFFERSON,SCHOOL BOARD DIRECTOR,JEFFERSON COUNTY R-1,"REED, PAULA",8.75,10/4/21 0:00,Donorbox,San Francisco,CA,91403,Fundraising Expenses,
594,JEFFERSON,SCHOOL BOARD DIRECTOR,JEFFERSON COUNTY R-1,"REED, PAULA",25.63,10/4/21 0:00,Scale To Win,Santa Ana,CA,92703,Advertising,
595,JEFFERSON,SCHOOL BOARD DIRECTOR,JEFFERSON COUNTY R-1,"REED, PAULA",13846.63,10/7/21 0:00,Kabza,Wheat Ridge,CO,80034,Advertising,Mailer
596,JEFFERSON,SCHOOL BOARD DIRECTOR,JEFFERSON COUNTY R-1,"REED, PAULA",5000.0,10/8/21 0:00,Kabza,Wheat Ridge,CO,80034,Advertising,Digital Advertizing
597,JEFFERSON,SCHOOL BOARD DIRECTOR,JEFFERSON COUNTY R-1,"REED, PAULA",5760.0,10/12/21 0:00,Kabza,Wheat Ridge,CO,80034,Advertising,Digital
598,JEFFERSON,SCHOOL BOARD DIRECTOR,JEFFERSON COUNTY R-1,"REED, PAULA",107.67,10/13/21 0:00,Donorbox,San Francisco,CA,91403,Fundraising Expenses,Fundraising Fees From 9/30/2021 Thru 10/13/2021
599,JEFFERSON,SCHOOL BOARD DIRECTOR,JEFFERSON COUNTY R-1,"REED, PAULA",6.14,10/13/21 0:00,Actblue,Cambridge,MA,2138,Fundraising Expenses,
600,JEFFERSON,SCHOOL BOARD DIRECTOR,JEFFERSON COUNTY R-1,"REED, PAULA",1000.0,10/15/21 0:00,Brian  Courtny,Denver,CO,80220,Consultant & Professional Services,
601,JEFFERSON,SCHOOL BOARD DIRECTOR,JEFFERSON COUNTY R-1,"REED, PAULA",10513.52,10/15/21 0:00,Kabza,Wheat Ridge,CO,80034,Advertising,Mailer
602,JEFFERSON,SCHOOL BOARD DIRECTOR,JEFFERSON COUNTY R-1,"REED, PAULA",400.0,10/18/21 0:00,Lead Colorado Action Fund,Lafayette,CO,80026,Other,Training Fee
603,JEFFERSON,SCHOOL BOARD DIRECTOR,JEFFERSON COUNTY R-1,"REED, PAULA",31.67,10/27/21 0:00,Scale To Win,Santa Ana,CA,92703,Advertising,
604,JEFFERSON,SCHOOL BOARD DIRECTOR,JEFFERSON COUNTY R-1,"REED, PAULA",25.92,10/27/21 0:00,Actblue,Cambridge,MA,2138,Fundraising Expenses,Fundraising Fees From 9/14/2021 Thru 10/27/2021
605,JEFFERSON,SCHOOL BOARD DIRECTOR,JEFFERSON COUNTY R-1,"REED, PAULA",54.23,10/27/21 0:00,Donorbox,San Francisco,CA,91403,Fundraising Expenses,Fundraising Fees From 9/14/2021 Thru 10/27/2021
606,JEFFERSON,SCHOOL BOARD DIRECTOR,JEFFERSON COUNTY R-1,"REED, PAULA",1000.0,11/1/21 0:00,Brian  Courtny,Denver,CO,80220,Consultant & Professional Services,
607,JEFFERSON,SCHOOL BOARD DIRECTOR,JEFFERSON COUNTY R-1,"REED, PAULA",504.47,11/2/21 0:00,Scale To Win,Santa Ana,CA,92703,Advertising,
608,JEFFERSON,SCHOOL BOARD DIRECTOR,JEFFERSON COUNTY R-1,"REED, PAULA",77.07,11/2/21 0:00,Cannonball Creek Brewery,Golden,CO,80403,"Food, Beverages and Meals",
609,JEFFERSON,SCHOOL BOARD DIRECTOR,JEFFERSON COUNTY R-1,"REED, PAULA",291.66,11/8/21 0:00,Porter  Bennett,Denver,CO,80205,Consultant & Professional Services,
610,JEFFERSON,SCHOOL BOARD DIRECTOR,JEFFERSON COUNTY R-1,"REED, PAULA",1000.0,11/15/21 0:00,Brian  Courtny,Denver,CO,80220,Consultant & Professional Services,
611,JEFFERSON,SCHOOL BOARD DIRECTOR,JEFFERSON COUNTY R-1,"REED, PAULA",193.0,11/30/21 0:00,Donorbox,San Francisco,CA,91403,Fundraising Expenses,
612,BOULDER,SCHOOL BOARD DIRECTOR,BOULDER VALLEY RE 2,"VAN HORN, JAMISUN",,,,,,,,
613,LA PLATA,SCHOOL BOARD DIRECTOR,DURANGO 9-R,"BROWN, ERIKA",100.0,5/18/21 0:00,Colorado Democratic Party,Denver,CO,80203,Other,Voter File Access For Durango 9-R District 2021
614,LA PLATA,SCHOOL BOARD DIRECTOR,DURANGO 9-R,"BROWN, ERIKA",18.0,5/20/21 0:00,Wix.Com Ltd,Tel Aviv,IS,6350671,Other,Purchase Of Webpage
615,LA PLATA,SCHOOL BOARD DIRECTOR,DURANGO 9-R,"BROWN, ERIKA",24.85,5/20/21 0:00,Wix.Com Ltd,Tel Aviv,IS,6350671,Other,Website Domain
616,LA PLATA,SCHOOL BOARD DIRECTOR,DURANGO 9-R,"BROWN, ERIKA",36.0,5/20/21 0:00,Wix.Com Ltd,Tel Aviv,IS,6350671,Other,Email Account For Website
617,LA PLATA,SCHOOL BOARD DIRECTOR,DURANGO 9-R,"BROWN, ERIKA",18.0,6/20/21 0:00,Wix.Com Ltd,Tel Aviv,IS,6350671,Other,Monthly Website Payment
618,LA PLATA,SCHOOL BOARD DIRECTOR,DURANGO 9-R,"BROWN, ERIKA",20.25,7/1/21 0:00,Actblue,Somerville,MA,2144,Bank Fees,
619,LA PLATA,SCHOOL BOARD DIRECTOR,DURANGO 9-R,"BROWN, ERIKA",18.0,7/20/21 0:00,Wix.Com Ltd,Tel Aviv,IS,6350671,Other,Monthly Website Payment
620,LA PLATA,SCHOOL BOARD DIRECTOR,DURANGO 9-R,"BROWN, ERIKA",9.75,8/1/21 0:00,Actblue,Somerville,MA,2144,Other,Service Fee For Processing Credit/Debit Contributions
621,LA PLATA,SCHOOL BOARD DIRECTOR,DURANGO 9-R,"BROWN, ERIKA",46.61,8/9/21 0:00,Vistaprint,Waltham,MA,2451,Other,Business Cards
622,LA PLATA,SCHOOL BOARD DIRECTOR,DURANGO 9-R,"BROWN, ERIKA",23.91,8/11/21 0:00,Fastsigns,Durango,CO,81303,Other,Name Tags
623,LA PLATA,SCHOOL BOARD DIRECTOR,DURANGO 9-R,"BROWN, ERIKA",18.0,8/20/21 0:00,Wix.Com Ltd,Tel Aviv,IS,6350671,Other,Monthly Website Payment
624,LA PLATA,SCHOOL BOARD DIRECTOR,DURANGO 9-R,"BROWN, ERIKA",27.17,9/1/21 0:00,Actblue,Somerville,MA,2144,Bank Fees,Service Fee For Processing Credit/Debit Donations
625,LA PLATA,SCHOOL BOARD DIRECTOR,DURANGO 9-R,"BROWN, ERIKA",805.76,9/2/21 0:00,Vistaprint,Waltham,MA,2451,Advertising,Yard Signs
626,LA PLATA,SCHOOL BOARD DIRECTOR,DURANGO 9-R,"BROWN, ERIKA",0.65,9/9/21 0:00,,,,,Miscellaneous,Donation Processing Fees
627,LA PLATA,SCHOOL BOARD DIRECTOR,DURANGO 9-R,"BROWN, ERIKA",15.18,9/10/21 0:00,"Amazon.Com, Inc.",Seattle,WA,98109,Office Equipment & Supplies,Thank You Cards
628,LA PLATA,SCHOOL BOARD DIRECTOR,DURANGO 9-R,"BROWN, ERIKA",18.0,9/20/21 0:00,Wix.Com Ltd,Tel Aviv,IS,6350671,Other,Website
629,LA PLATA,SCHOOL BOARD DIRECTOR,DURANGO 9-R,"BROWN, ERIKA",182.12,9/24/21 0:00,Fresh Off The Press,Durango,CO,81301,Other,Campaign Flyers
630,LA PLATA,SCHOOL BOARD DIRECTOR,DURANGO 9-R,"BROWN, ERIKA",34.99,9/30/21 0:00,Facebook,Menlo Park,CA,94025,Other,Social Media Promotion
631,LA PLATA,SCHOOL BOARD DIRECTOR,DURANGO 9-R,"BROWN, ERIKA",32.87,10/4/21 0:00,Actblue,Somerville,MA,2144,Bank Fees,Service Fee
632,LA PLATA,SCHOOL BOARD DIRECTOR,DURANGO 9-R,"BROWN, ERIKA",1675.95,10/8/21 0:00,Basin Printing,Durango,CO,81301,Other,Postage For Direct Mail
633,LA PLATA,SCHOOL BOARD DIRECTOR,DURANGO 9-R,"BROWN, ERIKA",1341.68,10/12/21 0:00,Basin Printing,Durango,CO,81301,Advertising,Printing For Direct Mail And Canvassing
634,LA PLATA,SCHOOL BOARD DIRECTOR,DURANGO 9-R,"BROWN, ERIKA",68.85,10/12/21 0:00,Basin Printing,Durango,CO,81301,Advertising,Printing Of Flyers For Canvassing
635,LA PLATA,SCHOOL BOARD DIRECTOR,DURANGO 9-R,"BROWN, ERIKA",41.55,10/12/21 0:00,Vantiv,Cincinnati,OH,45249,Other,Credit Card Processing Fees
636,LA PLATA,SCHOOL BOARD DIRECTOR,DURANGO 9-R,"BROWN, ERIKA",219.39,10/12/21 0:00,Basin Printing,Durango,CO,81301,Advertising,Printing Of Flyers For Canvassing
637,LA PLATA,SCHOOL BOARD DIRECTOR,DURANGO 9-R,"BROWN, ERIKA",144.0,10/13/21 0:00,Ksut,Ignacio,CO,81137,Advertising,Radio
638,LA PLATA,SCHOOL BOARD DIRECTOR,DURANGO 9-R,"BROWN, ERIKA",100.0,10/13/21 0:00,American General Media,Durango,CO,81301,Advertising,Radio
639,LA PLATA,SCHOOL BOARD DIRECTOR,DURANGO 9-R,"BROWN, ERIKA",283.34,10/13/21 0:00,Four Corners Broadcasting,Durango,CO,81303,Advertising,Radio
640,LA PLATA,SCHOOL BOARD DIRECTOR,DURANGO 9-R,"BROWN, ERIKA",146.68,10/14/21 0:00,Fresh Off The Press,Durango,CO,81301,Advertising,Printing Of Flyers In Spanish
641,LA PLATA,SCHOOL BOARD DIRECTOR,DURANGO 9-R,"BROWN, ERIKA",18.0,10/21/21 0:00,Wix.Com Ltd,Tel Aviv,IS,6350671,Other,Monthly Website Payment
642,LA PLATA,SCHOOL BOARD DIRECTOR,DURANGO 9-R,"BROWN, ERIKA",250.0,10/26/21 0:00,Facebook,Menlo Park,CA,94025,Advertising,Social Media Advertising
643,LA PLATA,SCHOOL BOARD DIRECTOR,DURANGO 9-R,"BROWN, ERIKA",139.84,11/1/21 0:00,Facebook,Menlo Park,CA,94025,Advertising,Facebook Ad
644,LA PLATA,SCHOOL BOARD DIRECTOR,DURANGO 9-R,"BROWN, ERIKA",164.08,11/2/21 0:00,Scale To Win,Santa Ana,CA,92703,Other,Texting Service
645,LA PLATA,SCHOOL BOARD DIRECTOR,DURANGO 9-R,"BROWN, ERIKA",17.21,11/3/21 0:00,Actblue,Somerville,MA,2144,Other,Credit Card Processing Service Fee
646,LA PLATA,SCHOOL BOARD DIRECTOR,DURANGO 9-R,"BROWN, ERIKA",100.0,11/3/21 0:00,American General Media,Durango,CO,81301,Advertising,"Radio Ads On Agm, My 1/3 Portion"
647,LA PLATA,SCHOOL BOARD DIRECTOR,DURANGO 9-R,"BROWN, ERIKA",85.0,11/3/21 0:00,Four Corners Broadcasting,Durango,CO,81303,Advertising,"Radio Ads, My 1/3 Portion"
648,LA PLATA,SCHOOL BOARD DIRECTOR,DURANGO 9-R,"BROWN, ERIKA",57.4,11/3/21 0:00,Supporters Of Andrea For Durango 9-R,Durango,CO,81301,Advertising,My Portion Of Joint Thank You Notes And Postage For Campaign Volunteers
649,LA PLATA,SCHOOL BOARD DIRECTOR,DURANGO 9-R,"BROWN, ERIKA",37.91,11/9/21 0:00,Vantiv,Cincinnati,OH,45249,Other,Credit Card Processing Fees
650,LA PLATA,SCHOOL BOARD DIRECTOR,DURANGO 9-R,"BROWN, ERIKA",116.0,11/12/21 0:00,Durango Herald,Durango,CO,81301,Advertising,Dh Pop-Up Ad
651,LA PLATA,SCHOOL BOARD DIRECTOR,DURANGO 9-R,"BROWN, ERIKA",46.6,11/19/21 0:00,City Market,Durango,CO,81301,Fundraising Expenses,Postage For Thank You Cards To Donors
652,LA PLATA,SCHOOL BOARD DIRECTOR,DURANGO 9-R,"BROWN, ERIKA",18.0,11/20/21 0:00,Wix.Com Ltd,Tel Aviv,IS,6350671,Other,Website
653,LA PLATA,SCHOOL BOARD DIRECTOR,DURANGO 9-R,"BROWN, ERIKA",50.12,11/30/21 0:00,Facebook,Menlo Park,CA,94025,Advertising,Social Media Ads
654,EL PASO,SCHOOL BOARD DIRECTOR,COLORADO SPRINGS 11,"BANKES, SANDRA",12.97,5/5/21 0:00,Stapes,Colorado Springs,CO,80922,Office Equipment & Supplies,"Counter Check #1
Address Labels"
655,EL PASO,SCHOOL BOARD DIRECTOR,COLORADO SPRINGS 11,"BANKES, SANDRA",146.0,5/5/21 0:00,United States Postal Service,Colorado Springs,CO,80918,Rent & Utilities,"Counter Check #2
Po Box Rental"
656,EL PASO,SCHOOL BOARD DIRECTOR,COLORADO SPRINGS 11,"BANKES, SANDRA",4.3,6/23/21 0:00,"Anedot, Inc.",New Orleans,LA,70112,Bank Fees,Brenda Miller
657,EL PASO,SCHOOL BOARD DIRECTOR,COLORADO SPRINGS 11,"BANKES, SANDRA",10.3,7/22/21 0:00,"Anedot, Inc.",New Orleans,LA,70112,Bank Fees,Janet Sawyer
658,EL PASO,SCHOOL BOARD DIRECTOR,COLORADO SPRINGS 11,"BANKES, SANDRA",43.16,7/26/21 0:00,Xpress Printing,Colorado Springs,CO,80917,Advertising,Business Cards
659,EL PASO,SCHOOL BOARD DIRECTOR,COLORADO SPRINGS 11,"BANKES, SANDRA",7.57,7/29/21 0:00,Blue Ribbon Trophies,Colorado Springs,CO,80907,Office Equipment & Supplies,Name Tag
660,EL PASO,SCHOOL BOARD DIRECTOR,COLORADO SPRINGS 11,"BANKES, SANDRA",511.22,7/29/21 0:00,Tri-Lakes Printing,Monument,CO,80132,Advertising,Walking Pieces
661,EL PASO,SCHOOL BOARD DIRECTOR,COLORADO SPRINGS 11,"BANKES, SANDRA",25.68,8/2/21 0:00,El Paso County Clerk & Recorder,Colorado Springs,CO,80907,Other,Voter Info From El Paso County Clerk & Recorder
662,EL PASO,SCHOOL BOARD DIRECTOR,COLORADO SPRINGS 11,"BANKES, SANDRA",1387.85,8/9/21 0:00,Super Cheap Signs,Austin,TX,78758,Other,Yard Signs
663,EL PASO,SCHOOL BOARD DIRECTOR,COLORADO SPRINGS 11,"BANKES, SANDRA",2.3,8/12/21 0:00,"Anedot, Inc.",New Orleans,LA,70112,Bank Fees,Becky Fuller
664,EL PASO,SCHOOL BOARD DIRECTOR,COLORADO SPRINGS 11,"BANKES, SANDRA",1.3,8/12/21 0:00,"Anedot, Inc.",New Orleans,LA,70112,Bank Fees,Priscilla Rahn
665,EL PASO,SCHOOL BOARD DIRECTOR,COLORADO SPRINGS 11,"BANKES, SANDRA",17.33,8/16/21 0:00,Sandra  Bankes,Colorado Springs,CO,80917,Other,Reimbursement For Voter Info To County Clerk
666,EL PASO,SCHOOL BOARD DIRECTOR,COLORADO SPRINGS 11,"BANKES, SANDRA",14.91,8/17/21 0:00,Staples,Colorado Springs,CO,80922,Office Equipment & Supplies,Supplies
667,EL PASO,SCHOOL BOARD DIRECTOR,COLORADO SPRINGS 11,"BANKES, SANDRA",43.99,8/18/21 0:00,Staples,Colorado Springs,CO,80922,Miscellaneous,Printing
668,EL PASO,SCHOOL BOARD DIRECTOR,COLORADO SPRINGS 11,"BANKES, SANDRA",438.17,8/21/21 0:00,Tamara  Estes,Fountain,CO,80817,Other,"Counter Check #101
Website"
669,EL PASO,SCHOOL BOARD DIRECTOR,COLORADO SPRINGS 11,"BANKES, SANDRA",40.0,8/24/21 0:00,City Of Colorado Springs,Colorado Springs,CO,80903,Other,"Counter Check #102
Small Sign Permit"
670,EL PASO,SCHOOL BOARD DIRECTOR,COLORADO SPRINGS 11,"BANKES, SANDRA",2.3,8/26/21 0:00,"Anedot, Inc.",New Orleans,LA,70112,Bank Fees,Anedot - Holly Williams
671,EL PASO,SCHOOL BOARD DIRECTOR,COLORADO SPRINGS 11,"BANKES, SANDRA",1.3,8/30/21 0:00,"Anedot, Inc.",New Orleans,LA,70112,Bank Fees,Anedot - Andrea Micci
672,EL PASO,SCHOOL BOARD DIRECTOR,COLORADO SPRINGS 11,"BANKES, SANDRA",1.1,8/30/21 0:00,"Anedot, Inc.",New Orleans,LA,70112,Bank Fees,Anedot - Cindy Brandt
673,EL PASO,SCHOOL BOARD DIRECTOR,COLORADO SPRINGS 11,"BANKES, SANDRA",1.1,9/2/21 0:00,"Anedot, Inc.",New Orleans,LA,70112,Bank Fees,Anedot - Daniel Gryboski
674,EL PASO,SCHOOL BOARD DIRECTOR,COLORADO SPRINGS 11,"BANKES, SANDRA",2.3,9/7/21 0:00,"Anedot, Inc.",New Orleans,LA,70112,Bank Fees,Anedot - Helen Thomas
675,EL PASO,SCHOOL BOARD DIRECTOR,COLORADO SPRINGS 11,"BANKES, SANDRA",4.3,9/9/21 0:00,"Anedot, Inc.",New Orleans,LA,70112,Bank Fees,Anedtot - Douglas Gryboski
676,EL PASO,SCHOOL BOARD DIRECTOR,COLORADO SPRINGS 11,"BANKES, SANDRA",270.0,9/11/21 0:00,Co Springs District 11 Facility Rentals,Colorado Springs,CO,80903,Rent & Utilities,Table Rentals For School Open Houses
677,EL PASO,SCHOOL BOARD DIRECTOR,COLORADO SPRINGS 11,"BANKES, SANDRA",86.37,9/15/21 0:00,Print Place,Arlington,TX,76011,Other,Print Postcard - Walking Pieces
678,EL PASO,SCHOOL BOARD DIRECTOR,COLORADO SPRINGS 11,"BANKES, SANDRA",1.1,9/19/21 0:00,"Anedot, Inc.",New Orleans,LA,70112,Bank Fees,Anedot - Joseph Boyle
679,EL PASO,SCHOOL BOARD DIRECTOR,COLORADO SPRINGS 11,"BANKES, SANDRA",81.31,9/20/21 0:00,Super Cheap Signs,Austin,TX,78758,Advertising,Yard Signs
680,EL PASO,SCHOOL BOARD DIRECTOR,COLORADO SPRINGS 11,"BANKES, SANDRA",100.0,9/23/21 0:00,United States Postal Service,Colorado Springs,CO,80918,Office Equipment & Supplies,Stamps To Mail Postcards
681,EL PASO,SCHOOL BOARD DIRECTOR,COLORADO SPRINGS 11,"BANKES, SANDRA",2.3,9/26/21 0:00,"Anedot, Inc.",New Orleans,LA,70112,Bank Fees,Anedot - Christopher Roberts
682,EL PASO,SCHOOL BOARD DIRECTOR,COLORADO SPRINGS 11,"BANKES, SANDRA",538.18,9/29/21 0:00,Tri-Lakes Printing,Monument,CO,80132,Advertising,Printing Of Walk Pieces To Be Dropped 10/1/21 Thru 11/2/21
683,EL PASO,SCHOOL BOARD DIRECTOR,COLORADO SPRINGS 11,"BANKES, SANDRA",2321.97,10/1/21 0:00,Update Printing,Colorado Springs,CO,80910,Advertising,Printing Of Mailer Pieces
684,EL PASO,SCHOOL BOARD DIRECTOR,COLORADO SPRINGS 11,"BANKES, SANDRA",28.3,10/4/21 0:00,"Anedot, Inc.",New Orleans,LA,70112,Bank Fees,Anedot - Sharon Jenkins
685,EL PASO,SCHOOL BOARD DIRECTOR,COLORADO SPRINGS 11,"BANKES, SANDRA",40.0,10/5/21 0:00,Peterson Afb,Colorado Springs,CO,80914,Miscellaneous,
686,EL PASO,SCHOOL BOARD DIRECTOR,COLORADO SPRINGS 11,"BANKES, SANDRA",15.15,10/6/21 0:00,Blue Ribbon Trophies,Colorado Springs,CO,80907,Office Equipment & Supplies,Name Badge
687,EL PASO,SCHOOL BOARD DIRECTOR,COLORADO SPRINGS 11,"BANKES, SANDRA",3333.13,10/6/21 0:00,"Mailing Services, Inc.",Colorado Springs,CO,80903,Other,"Check #104
Pre-Ballot Mailing"
688,EL PASO,SCHOOL BOARD DIRECTOR,COLORADO SPRINGS 11,"BANKES, SANDRA",731.43,10/8/21 0:00,Colorado Canyon Signs,Colorado Springs,CO,80905,Other,Large Signs
689,EL PASO,SCHOOL BOARD DIRECTOR,COLORADO SPRINGS 11,"BANKES, SANDRA",2.3,10/8/21 0:00,"Anedot, Inc.",New Orleans,LA,70112,Bank Fees,Anedot - Stephen Vandyke
690,EL PASO,SCHOOL BOARD DIRECTOR,COLORADO SPRINGS 11,"BANKES, SANDRA",40.0,10/11/21 0:00,City Of Colorado Springs,Colorado Springs,CO,80901,Other,Check For Permit For 10 Large Signs
691,EL PASO,SCHOOL BOARD DIRECTOR,COLORADO SPRINGS 11,"BANKES, SANDRA",40.0,10/11/21 0:00,City Of Colorado Springs,Colorado Springs,CO,80901,Other,Permit For 5 Large Signs
692,EL PASO,SCHOOL BOARD DIRECTOR,COLORADO SPRINGS 11,"BANKES, SANDRA",17.6,10/12/21 0:00,United States Postal Service,Colorado Springs,CO,80917,Other,Stamps
693,EL PASO,SCHOOL BOARD DIRECTOR,COLORADO SPRINGS 11,"BANKES, SANDRA",2.3,10/14/21 0:00,"Anedot, Inc.",New Orleans,LA,70112,Bank Fees,Anedot - Linda Coats
694,EL PASO,SCHOOL BOARD DIRECTOR,COLORADO SPRINGS 11,"BANKES, SANDRA",292.7,10/15/21 0:00,Colorado Canyon Signs,Colorado Springs,CO,80905,Other,Large Signs
695,EL PASO,SCHOOL BOARD DIRECTOR,COLORADO SPRINGS 11,"BANKES, SANDRA",4.3,10/15/21 0:00,"Anedot, Inc.",New Orleans,LA,70112,Bank Fees,Anedot - Jeffrey Hays
696,EL PASO,SCHOOL BOARD DIRECTOR,COLORADO SPRINGS 11,"BANKES, SANDRA",2.0,10/19/21 0:00,First Bank,Lakewood,CO,80215,Bank Fees,Fee For 2 Non-Preprinted Withdrawal Forms
697,EL PASO,SCHOOL BOARD DIRECTOR,COLORADO SPRINGS 11,"BANKES, SANDRA",173.98,10/21/21 0:00,Tri-Lakes Printing,Monument,CO,80132,Other,500 Handouts
698,EL PASO,SCHOOL BOARD DIRECTOR,COLORADO SPRINGS 11,"BANKES, SANDRA",4.34,10/22/21 0:00,"Anedot, Inc.",New Orleans,LA,70112,Bank Fees,Anedot - Paula Linhares
699,EL PASO,SCHOOL BOARD DIRECTOR,COLORADO SPRINGS 11,"BANKES, SANDRA",165.41,10/27/21 0:00,Tri-Lakes Printing,Monument,CO,80132,Other,300 Postcards
700,EL PASO,SCHOOL BOARD DIRECTOR,COLORADO SPRINGS 11,"BANKES, SANDRA",4.3,11/1/21 0:00,"Anedot, Inc.",New Orleans,LA,70112,Bank Fees,Anedot - Linda Hoyt
701,EL PASO,SCHOOL BOARD DIRECTOR,COLORADO SPRINGS 11,"BANKES, SANDRA",4.3,11/2/21 0:00,"Anedot, Inc.",New Orleans,LA,70112,Bank Fees,Anedot - Chip Ecks
702,EL PASO,SCHOOL BOARD DIRECTOR,COLORADO SPRINGS 11,"BANKES, SANDRA",342.87,11/2/21 0:00,Lacasita Mexican Grill,Colorado Springs,CO,80907,Entertainment,Watch Party
703,EL PASO,SCHOOL BOARD DIRECTOR,COLORADO SPRINGS 11,"BANKES, SANDRA",2250.0,11/5/21 0:00,Jody  Richie,Colorado Springs,CO,80918,Consultant & Professional Services,Check #6
704,EL PASO,SCHOOL BOARD DIRECTOR,COLORADO SPRINGS 11,"BANKES, SANDRA",750.0,11/5/21 0:00,Jody  Richie,Colorado Springs,CO,80918,Consultant & Professional Services,"Check #6
Texting Svcs
10/10/21 To 11/2/21"
705,EL PASO,SCHOOL BOARD DIRECTOR,COLORADO SPRINGS 11,"BANKES, SANDRA",500.0,11/12/21 0:00,Candice K Boyer,Colorado Springs,CO,80917,Consultant & Professional Services,"Check #7
Treasurer Work"
706,BOULDER,SCHOOL BOARD DIRECTOR,BOULDER VALLEY RE 2,"RAJPAL, NICOLE",23.16,7/18/21 0:00,,,,,Fundraising Expenses,Fee For Processing Donation On Donorbox/Stripe Donation Website
707,BOULDER,SCHOOL BOARD DIRECTOR,BOULDER VALLEY RE 2,"RAJPAL, NICOLE",14.46,8/4/21 0:00,,,,,Fundraising Expenses,Fee For Processing Donation On Donorbox/Stripe Donation Website
708,BOULDER,SCHOOL BOARD DIRECTOR,BOULDER VALLEY RE 2,"RAJPAL, NICOLE",4.88,8/9/21 0:00,,,,,Fundraising Expenses,Fee For Processing Donation On Donorbox/Stripe Donation Website
709,BOULDER,SCHOOL BOARD DIRECTOR,BOULDER VALLEY RE 2,"RAJPAL, NICOLE",4.88,8/11/21 0:00,,,,,Fundraising Expenses,Fee For Processing Donation On Donorbox/Stripe Donation Website
710,BOULDER,SCHOOL BOARD DIRECTOR,BOULDER VALLEY RE 2,"RAJPAL, NICOLE",3.0,8/16/21 0:00,,,,,Bank Fees,Bank Fee
711,BOULDER,SCHOOL BOARD DIRECTOR,BOULDER VALLEY RE 2,"RAJPAL, NICOLE",555.11,8/19/21 0:00,Fedex Office,Boulder,CO,80302,Advertising,
712,BOULDER,SCHOOL BOARD DIRECTOR,BOULDER VALLEY RE 2,"RAJPAL, NICOLE",2.5,8/21/21 0:00,,,,,Fundraising Expenses,Fee For Processing Donation On Donorbox/Stripe Donation Website
713,BOULDER,SCHOOL BOARD DIRECTOR,BOULDER VALLEY RE 2,"RAJPAL, NICOLE",16.62,8/23/21 0:00,,,,,Fundraising Expenses,Fee For Processing Donation On Donorbox/Stripe Donation Website
714,BOULDER,SCHOOL BOARD DIRECTOR,BOULDER VALLEY RE 2,"RAJPAL, NICOLE",18.89,8/23/21 0:00,,,,,Fundraising Expenses,Fee For Processing Donations On Donorbox/Stripe Donation Website
715,BOULDER,SCHOOL BOARD DIRECTOR,BOULDER VALLEY RE 2,"RAJPAL, NICOLE",11.3,8/24/21 0:00,,,,,Advertising,Fees Collected From Donorbox/Stripe Fundraising Site
716,BOULDER,SCHOOL BOARD DIRECTOR,BOULDER VALLEY RE 2,"RAJPAL, NICOLE",540.73,8/25/21 0:00,Summit Printing,Kansas City,MO,64131,Advertising,Yard Signs
717,BOULDER,SCHOOL BOARD DIRECTOR,BOULDER VALLEY RE 2,"RAJPAL, NICOLE",-555.11,8/25/21 0:00,Fedex Office,Boulder,CO,80302,Returned Expenditure,"Paid For With The Incorrect (Non-Campaign) Debit Card, Updating This Record In Tracer To Show That Card Being Reimbursed For The Transaction."
718,BOULDER,SCHOOL BOARD DIRECTOR,BOULDER VALLEY RE 2,"RAJPAL, NICOLE",116.0,8/25/21 0:00,Boulder Banners,Boulder,CO,80304,Advertising,Banner Printing
719,BOULDER,SCHOOL BOARD DIRECTOR,BOULDER VALLEY RE 2,"RAJPAL, NICOLE",4.88,8/25/21 0:00,,,,,Fundraising Expenses,Donorbox/Stripe Fee
720,BOULDER,SCHOOL BOARD DIRECTOR,BOULDER VALLEY RE 2,"RAJPAL, NICOLE",555.11,8/26/21 0:00,Nicole  Rajpal,Bolder,CO,80304,Advertising,Reimbursement For Purchasing Flyers From Fedex (See Previous Transactions) With The Incorrect Debit Card.
721,BOULDER,SCHOOL BOARD DIRECTOR,BOULDER VALLEY RE 2,"RAJPAL, NICOLE",11.74,8/30/21 0:00,,,,,Fundraising Expenses,Donorbox/Stripe Fee
722,BOULDER,SCHOOL BOARD DIRECTOR,BOULDER VALLEY RE 2,"RAJPAL, NICOLE",14.02,9/1/21 0:00,,,,,Fundraising Expenses,Donorbox/Stripe Fee
723,BOULDER,SCHOOL BOARD DIRECTOR,BOULDER VALLEY RE 2,"RAJPAL, NICOLE",58.51,9/1/21 0:00,Target,Superior,CO,80027-8623,Miscellaneous,Parade Candy.
724,BOULDER,SCHOOL BOARD DIRECTOR,BOULDER VALLEY RE 2,"RAJPAL, NICOLE",1.25,9/13/21 0:00,,,,,Miscellaneous,Parking For Campaign Event
725,BOULDER,SCHOOL BOARD DIRECTOR,BOULDER VALLEY RE 2,"RAJPAL, NICOLE",125.04,9/14/21 0:00,Target,Boulder,CO,80301,Miscellaneous,Parade Candy
726,BOULDER,SCHOOL BOARD DIRECTOR,BOULDER VALLEY RE 2,"RAJPAL, NICOLE",595.92,9/14/21 0:00,Republic Promos,Austin,TX,78732,Advertising,Campaign T-Shirts And Stickers
727,BOULDER,SCHOOL BOARD DIRECTOR,BOULDER VALLEY RE 2,"RAJPAL, NICOLE",17.45,9/14/21 0:00,,,,,Bank Fees,Stripe Fee
728,BOULDER,SCHOOL BOARD DIRECTOR,BOULDER VALLEY RE 2,"RAJPAL, NICOLE",11.3,9/15/21 0:00,,,,,Bank Fees,Stripe Donation Fee
729,BOULDER,SCHOOL BOARD DIRECTOR,BOULDER VALLEY RE 2,"RAJPAL, NICOLE",25.0,9/20/21 0:00,Facebook,Menlo Park,CA,94025,Advertising,Facebook Ads Between 9/3-9/20
730,BOULDER,SCHOOL BOARD DIRECTOR,BOULDER VALLEY RE 2,"RAJPAL, NICOLE",312.61,9/22/21 0:00,Vistaprint,Waltham,MA,2451,Advertising,Pamphlets
731,BOULDER,SCHOOL BOARD DIRECTOR,BOULDER VALLEY RE 2,"RAJPAL, NICOLE",18.0,9/22/21 0:00,,,,,Fundraising Expenses,Thank You Card Order From Canva
732,BOULDER,SCHOOL BOARD DIRECTOR,BOULDER VALLEY RE 2,"RAJPAL, NICOLE",20.0,9/22/21 0:00,,,,,Advertising,Ad In Mountain Ear
733,BOULDER,SCHOOL BOARD DIRECTOR,BOULDER VALLEY RE 2,"RAJPAL, NICOLE",150.0,9/23/21 0:00,Boulder County Democratic Party,Boulder,CO,80303,Advertising,Advertisement In A Electronic Voter Guide
734,BOULDER,SCHOOL BOARD DIRECTOR,BOULDER VALLEY RE 2,"RAJPAL, NICOLE",545.89,9/27/21 0:00,Summit Printing,Kansas City,MO,64131,Advertising,100 Yard Signs To Be Placed Throughout The District
735,BOULDER,SCHOOL BOARD DIRECTOR,BOULDER VALLEY RE 2,"RAJPAL, NICOLE",543.0,9/28/21 0:00,Prairie Mountain Media,Boulder,CO,80303,Advertising,Voter Guide Ad
736,BOULDER,SCHOOL BOARD DIRECTOR,BOULDER VALLEY RE 2,"RAJPAL, NICOLE",16.0,9/28/21 0:00,,,,,Other,Stamps
737,BOULDER,SCHOOL BOARD DIRECTOR,BOULDER VALLEY RE 2,"RAJPAL, NICOLE",626.76,10/1/21 0:00,Prairie Mountain Media,Boulder,CO,80303,Advertising,Ad In Boulder Daily Camera/Broomfield Enterprise
738,BOULDER,SCHOOL BOARD DIRECTOR,BOULDER VALLEY RE 2,"RAJPAL, NICOLE",11.0,10/4/21 0:00,Facebook,Menlo Park,CA,94025,Advertising,Facebook Ad
739,BOULDER,SCHOOL BOARD DIRECTOR,BOULDER VALLEY RE 2,"RAJPAL, NICOLE",18.5,10/5/21 0:00,,,,,Bank Fees,Stripe/Donorbox Fees
740,BOULDER,SCHOOL BOARD DIRECTOR,BOULDER VALLEY RE 2,"RAJPAL, NICOLE",339.15,10/5/21 0:00,Prairie Mountain Media,Boulder,CO,80303,Advertising,"Ads In Daily Camera, Broomfield Enterprise & Colorado Daily"
741,BOULDER,SCHOOL BOARD DIRECTOR,BOULDER VALLEY RE 2,"RAJPAL, NICOLE",263.6,10/6/21 0:00,Prairie Mountain Media,Boulder,CO,80303,Advertising,"Ads In Daily Camera, Broomfield Enterprise & Colorado Daily"
742,BOULDER,SCHOOL BOARD DIRECTOR,BOULDER VALLEY RE 2,"RAJPAL, NICOLE",597.0,10/7/21 0:00,Boulder Weekly,Boulder,CO,80305,Advertising,Ad In The Boulder Weekly Voter Guide
743,BOULDER,SCHOOL BOARD DIRECTOR,BOULDER VALLEY RE 2,"RAJPAL, NICOLE",2.59,10/9/21 0:00,,,,,Bank Fees,Stripe/Donorbox Fee
744,BOULDER,SCHOOL BOARD DIRECTOR,BOULDER VALLEY RE 2,"RAJPAL, NICOLE",111.0,10/14/21 0:00,Boulder Weekly,Boulder,CO,80305,Advertising,Ad In Boulder Weekly
745,BOULDER,SCHOOL BOARD DIRECTOR,BOULDER VALLEY RE 2,"RAJPAL, NICOLE",395.0,10/15/21 0:00,Yellow Scene Magazine,Erie,CO,80516,Advertising,Ad In Yellowscene Magazine
746,BOULDER,SCHOOL BOARD DIRECTOR,BOULDER VALLEY RE 2,"RAJPAL, NICOLE",25.0,10/15/21 0:00,Facebook,Menlo Park,CA,94025,Advertising,Facebook Ad
747,BOULDER,SCHOOL BOARD DIRECTOR,BOULDER VALLEY RE 2,"RAJPAL, NICOLE",10.33,10/15/21 0:00,,,,,Miscellaneous,Window Markers
748,BOULDER,SCHOOL BOARD DIRECTOR,BOULDER VALLEY RE 2,"RAJPAL, NICOLE",34.09,10/15/21 0:00,Gloss Auto Wash,Boulder,CO,80301,Other,Car Wash For Campaign Window Painting
749,BOULDER,SCHOOL BOARD DIRECTOR,BOULDER VALLEY RE 2,"RAJPAL, NICOLE",25.0,10/17/21 0:00,Facebook,Menlo Park,CA,94025,Advertising,Facebook Ad
750,BOULDER,SCHOOL BOARD DIRECTOR,BOULDER VALLEY RE 2,"RAJPAL, NICOLE",35.0,10/19/21 0:00,Facebook,Menlo Park,CA,94025,Advertising,Facebook Ad
751,BOULDER,SCHOOL BOARD DIRECTOR,BOULDER VALLEY RE 2,"RAJPAL, NICOLE",12.99,10/20/21 0:00,Canva,Surry Hills,NS,AUSTRALIA,Miscellaneous,Canva Fee
752,BOULDER,SCHOOL BOARD DIRECTOR,BOULDER VALLEY RE 2,"RAJPAL, NICOLE",111.0,10/21/21 0:00,Boulder Weekly,Boulder,CO,80305,Advertising,Boulder Weekly Ad
753,BOULDER,SCHOOL BOARD DIRECTOR,BOULDER VALLEY RE 2,"RAJPAL, NICOLE",30.0,10/27/21 0:00,Paperless Post,New York,NY,10006,Miscellaneous,Stationary
754,BOULDER,SCHOOL BOARD DIRECTOR,BOULDER VALLEY RE 2,"RAJPAL, NICOLE",627.22,11/1/21 0:00,Cured,Boulder,CO,80302,"Food, Beverages and Meals",Election Night Celebration
755,BOULDER,SCHOOL BOARD DIRECTOR,BOULDER VALLEY RE 2,"RAJPAL, NICOLE",365.85,11/1/21 0:00,Boulder Wine Merchant,Boulder,CO,80304,"Food, Beverages and Meals",Election Night Celebration
756,BOULDER,SCHOOL BOARD DIRECTOR,BOULDER VALLEY RE 2,"RAJPAL, NICOLE",15.0,11/2/21 0:00,Facebook,Menlo Park,CA,94025,Advertising,Final Payment For Fb Ad
757,BOULDER,SCHOOL BOARD DIRECTOR,BOULDER VALLEY RE 2,"RAJPAL, NICOLE",381.47,11/30/21 0:00,Nicole  Rajpal,Bolder,CO,80304,Travel & Lodging,Mileage Reimbursement At Current Irs Rate Of $0.56 Per Mile (681.2 Miles X 0.56 Per Mile)
758,DENVER,SCHOOL BOARD DIRECTOR,DENVER COUNTY 1 DISTRICT 3,"OLSON, CARRIE",50.18,6/9/21 0:00,Godaddy.Com Llc,Scottsdale,AZ,85260,Advertising,Web Site
759,DENVER,SCHOOL BOARD DIRECTOR,DENVER COUNTY 1 DISTRICT 3,"OLSON, CARRIE",0.4,6/20/21 0:00,Actblue Technical Services,Somerville,MA,2144,Other,Service Fee
760,DENVER,SCHOOL BOARD DIRECTOR,DENVER COUNTY 1 DISTRICT 3,"OLSON, CARRIE",-0.4,6/20/21 0:00,Actblue Technical Services,Somerville,MA,2144,Other,Offset Due To Update Of Filed Item - Service Fee
761,DENVER,SCHOOL BOARD DIRECTOR,DENVER COUNTY 1 DISTRICT 3,"OLSON, CARRIE",0.4,6/20/21 0:00,Actblue Technical Services,Somerville,MA,2144,Fundraising Expenses,Service Fee
762,DENVER,SCHOOL BOARD DIRECTOR,DENVER COUNTY 1 DISTRICT 3,"OLSON, CARRIE",10.47,6/22/21 0:00,Mailchimp Plus,Atlanta,GA,30308,Miscellaneous,Email Marketing
763,DENVER,SCHOOL BOARD DIRECTOR,DENVER COUNTY 1 DISTRICT 3,"OLSON, CARRIE",89.7,6/27/21 0:00,Actblue Technical Services,Somerville,MA,2144,Fundraising Expenses,Service Fee
764,DENVER,SCHOOL BOARD DIRECTOR,DENVER COUNTY 1 DISTRICT 3,"OLSON, CARRIE",31.61,6/30/21 0:00,Actblue Technical Services,Somerville,MA,2144,Fundraising Expenses,Service Fee
765,DENVER,SCHOOL BOARD DIRECTOR,DENVER COUNTY 1 DISTRICT 3,"OLSON, CARRIE",6.72,7/4/21 0:00,Actblue Technical Services,Somerville,MA,2144,Fundraising Expenses,Service Fee
766,DENVER,SCHOOL BOARD DIRECTOR,DENVER COUNTY 1 DISTRICT 3,"OLSON, CARRIE",75.34,7/9/21 0:00,Godaddy.Com Llc,Scottsdale,AZ,85260,Advertising,Web Site
767,DENVER,SCHOOL BOARD DIRECTOR,DENVER COUNTY 1 DISTRICT 3,"OLSON, CARRIE",107.88,7/10/21 0:00,Godaddy.Com Llc,Scottsdale,AZ,85260,Advertising,Web Site
768,DENVER,SCHOOL BOARD DIRECTOR,DENVER COUNTY 1 DISTRICT 3,"OLSON, CARRIE",3.56,7/11/21 0:00,Actblue Technical Services,Somerville,MA,2144,Fundraising Expenses,Service Fee
769,DENVER,SCHOOL BOARD DIRECTOR,DENVER COUNTY 1 DISTRICT 3,"OLSON, CARRIE",345.92,7/12/21 0:00,Godaddy.Com Llc,Scottsdale,AZ,85260,Advertising,Service Fee
770,DENVER,SCHOOL BOARD DIRECTOR,DENVER COUNTY 1 DISTRICT 3,"OLSON, CARRIE",35.0,7/14/21 0:00,Colorado Democratic Party,Denver,CO,80203,Miscellaneous,Fundraiser
771,DENVER,SCHOOL BOARD DIRECTOR,DENVER COUNTY 1 DISTRICT 3,"OLSON, CARRIE",17.0,7/16/21 0:00,Facebook,Menlo Park,CA,94025,Advertising,Social Media Post Boost
772,DENVER,SCHOOL BOARD DIRECTOR,DENVER COUNTY 1 DISTRICT 3,"OLSON, CARRIE",10.0,7/17/21 0:00,Facebook,Menlo Park,CA,94025,Advertising,Social Media Post Boost
773,DENVER,SCHOOL BOARD DIRECTOR,DENVER COUNTY 1 DISTRICT 3,"OLSON, CARRIE",3.95,7/18/21 0:00,Actblue Technical Services,Somerville,MA,2144,Fundraising Expenses,Service Fee
774,DENVER,SCHOOL BOARD DIRECTOR,DENVER COUNTY 1 DISTRICT 3,"OLSON, CARRIE",2.99,7/18/21 0:00,Facebook,Menlo Park,CA,94025,Advertising,Social Media Post Boost
775,DENVER,SCHOOL BOARD DIRECTOR,DENVER COUNTY 1 DISTRICT 3,"OLSON, CARRIE",83.43,7/22/21 0:00,Namebadge.Com,Cooper City,FL,33330,Miscellaneous,Name Badges
776,DENVER,SCHOOL BOARD DIRECTOR,DENVER COUNTY 1 DISTRICT 3,"OLSON, CARRIE",10.47,7/22/21 0:00,Mailchimp Plus,Atlanta,GA,30308,Miscellaneous,Email Marketing
777,DENVER,SCHOOL BOARD DIRECTOR,DENVER COUNTY 1 DISTRICT 3,"OLSON, CARRIE",63.23,7/25/21 0:00,Actblue Technical Services,Somerville,MA,2144,Fundraising Expenses,Service Fee
778,DENVER,SCHOOL BOARD DIRECTOR,DENVER COUNTY 1 DISTRICT 3,"OLSON, CARRIE",19.8,7/27/21 0:00,First Bank,Denver,CO,80215,Bank Fees,Checks
779,DENVER,SCHOOL BOARD DIRECTOR,DENVER COUNTY 1 DISTRICT 3,"OLSON, CARRIE",10.0,7/27/21 0:00,Denver Democratic Party,Denver,CO,80209,Miscellaneous,Picnic Fundraiser
780,DENVER,SCHOOL BOARD DIRECTOR,DENVER COUNTY 1 DISTRICT 3,"OLSON, CARRIE",15.0,7/28/21 0:00,Facebook,Menlo Park,CA,94025,Advertising,Social Media Post Boost
781,DENVER,SCHOOL BOARD DIRECTOR,DENVER COUNTY 1 DISTRICT 3,"OLSON, CARRIE",25.0,7/31/21 0:00,Facebook,Menlo Park,CA,94025,Advertising,Social Media Post Boost
782,DENVER,SCHOOL BOARD DIRECTOR,DENVER COUNTY 1 DISTRICT 3,"OLSON, CARRIE",16.74,8/1/21 0:00,Actblue Technical Services,Somerville,MA,2144,Fundraising Expenses,Service Fee
783,DENVER,SCHOOL BOARD DIRECTOR,DENVER COUNTY 1 DISTRICT 3,"OLSON, CARRIE",35.0,8/6/21 0:00,Facebook,Menlo Park,CA,94025,Advertising,Social Media Post Boost
784,DENVER,SCHOOL BOARD DIRECTOR,DENVER COUNTY 1 DISTRICT 3,"OLSON, CARRIE",238.07,8/7/21 0:00,Costco,Sheridan,CO,80110,"Food, Beverages and Meals",Campaign Kick-Off
785,DENVER,SCHOOL BOARD DIRECTOR,DENVER COUNTY 1 DISTRICT 3,"OLSON, CARRIE",51.72,8/7/21 0:00,Dollar Tree,Englewood,CO,80110,Miscellaneous,Campaign Kick-Off Supplies
786,DENVER,SCHOOL BOARD DIRECTOR,DENVER COUNTY 1 DISTRICT 3,"OLSON, CARRIE",26.01,8/8/21 0:00,Actblue Technical Services,Somerville,MA,2144,Fundraising Expenses,Service Fee
787,DENVER,SCHOOL BOARD DIRECTOR,DENVER COUNTY 1 DISTRICT 3,"OLSON, CARRIE",2500.0,8/9/21 0:00,Steele Strategies,Golden,CO,80401,Consultant & Professional Services,Service Fee
788,DENVER,SCHOOL BOARD DIRECTOR,DENVER COUNTY 1 DISTRICT 3,"OLSON, CARRIE",6.0,8/9/21 0:00,Linktree,Collingwood Victoria,AU,3066,Advertising,Social Media Link
789,DENVER,SCHOOL BOARD DIRECTOR,DENVER COUNTY 1 DISTRICT 3,"OLSON, CARRIE",50.0,8/10/21 0:00,Denver Democratic Party,Denver,CO,80209,Other,Voter Information
790,DENVER,SCHOOL BOARD DIRECTOR,DENVER COUNTY 1 DISTRICT 3,"OLSON, CARRIE",824.54,8/11/21 0:00,Saucy Bombay,Denver,CO,80206,"Food, Beverages and Meals",Food For Campaign Kickoff Event
791,DENVER,SCHOOL BOARD DIRECTOR,DENVER COUNTY 1 DISTRICT 3,"OLSON, CARRIE",50.0,8/12/21 0:00,Facebook,Menlo Park,CA,94025,Advertising,Social Media Post
792,DENVER,SCHOOL BOARD DIRECTOR,DENVER COUNTY 1 DISTRICT 3,"OLSON, CARRIE",12.64,8/15/21 0:00,Actblue T Services,Somerville,MA,2144,Fundraising Expenses,Service Fee
793,DENVER,SCHOOL BOARD DIRECTOR,DENVER COUNTY 1 DISTRICT 3,"OLSON, CARRIE",18.13,8/18/21 0:00,Facebook,Menlo Park,CA,94025,Advertising,Social Media Post
794,DENVER,SCHOOL BOARD DIRECTOR,DENVER COUNTY 1 DISTRICT 3,"OLSON, CARRIE",1.98,8/22/21 0:00,Actblue Technical Services,Somerville,MA,2144,Fundraising Expenses,Service Fee
795,DENVER,SCHOOL BOARD DIRECTOR,DENVER COUNTY 1 DISTRICT 3,"OLSON, CARRIE",10.47,8/22/21 0:00,Mailchimp Plus,Atlanta,GA,30308,Advertising,Email Marketing
796,DENVER,SCHOOL BOARD DIRECTOR,DENVER COUNTY 1 DISTRICT 3,"OLSON, CARRIE",8000.0,8/26/21 0:00,Alvaro M Gardara,Denver,CO,80207,Consultant & Professional Services,June/July Campaign Mgmt Services
797,DENVER,SCHOOL BOARD DIRECTOR,DENVER COUNTY 1 DISTRICT 3,"OLSON, CARRIE",7.9,8/29/21 0:00,Actblue Technical Services,Somerville,MA,2144,Fundraising Expenses,Service Fee
798,DENVER,SCHOOL BOARD DIRECTOR,DENVER COUNTY 1 DISTRICT 3,"OLSON, CARRIE",200.0,8/30/21 0:00,Pure Pix Co.,Aurora,CO,80011,Consultant & Professional Services,Photographs
799,DENVER,SCHOOL BOARD DIRECTOR,DENVER COUNTY 1 DISTRICT 3,"OLSON, CARRIE",11.86,9/5/21 0:00,Actblue Technical Services,Somerville,MA,2144,Fundraising Expenses,Service Fee
800,DENVER,SCHOOL BOARD DIRECTOR,DENVER COUNTY 1 DISTRICT 3,"OLSON, CARRIE",300.0,9/8/21 0:00,Maura  Mackintosh,Denver,CO,80220,Fundraising Expenses,Campaign Kickoff Venue Rental
801,DENVER,SCHOOL BOARD DIRECTOR,DENVER COUNTY 1 DISTRICT 3,"OLSON, CARRIE",1.07,9/8/21 0:00,Usps,Denver,CO,80216,Miscellaneous,Postage Fee
802,DENVER,SCHOOL BOARD DIRECTOR,DENVER COUNTY 1 DISTRICT 3,"OLSON, CARRIE",196.96,9/10/21 0:00,C & D Printing,Denver,CO,80212,Advertising,Walk Cards
803,DENVER,SCHOOL BOARD DIRECTOR,DENVER COUNTY 1 DISTRICT 3,"OLSON, CARRIE",24.75,9/12/21 0:00,Actblue Technical Services,Somerville,MA,2144,Fundraising Expenses,Service Fee
804,DENVER,SCHOOL BOARD DIRECTOR,DENVER COUNTY 1 DISTRICT 3,"OLSON, CARRIE",4000.0,9/12/21 0:00,Alvaro M Gandara,Denver,CO,80207,Consultant & Professional Services,August Campaign Management
805,DENVER,SCHOOL BOARD DIRECTOR,DENVER COUNTY 1 DISTRICT 3,"OLSON, CARRIE",750.0,9/13/21 0:00,Steele Strategies,Golden,CO,80401,Consultant & Professional Services,Walk Card Design
806,DENVER,SCHOOL BOARD DIRECTOR,DENVER COUNTY 1 DISTRICT 3,"OLSON, CARRIE",35.1,9/16/21 0:00,Chipotle Mexican Grill,Denver,CO,80206,"Food, Beverages and Meals",Campaign Planning
807,DENVER,SCHOOL BOARD DIRECTOR,DENVER COUNTY 1 DISTRICT 3,"OLSON, CARRIE",144.31,9/19/21 0:00,Actblue Technical Services,Somerville,MA,2144,Fundraising Expenses,Service Fee
808,DENVER,SCHOOL BOARD DIRECTOR,DENVER COUNTY 1 DISTRICT 3,"OLSON, CARRIE",47.95,9/20/21 0:00,Facebook,Menlo Park,CA,94025,Advertising,Service Fee
809,DENVER,SCHOOL BOARD DIRECTOR,DENVER COUNTY 1 DISTRICT 3,"OLSON, CARRIE",571.25,9/22/21 0:00,Egan Printing,Denver,CO,80204,Advertising,Walk Cards
810,DENVER,SCHOOL BOARD DIRECTOR,DENVER COUNTY 1 DISTRICT 3,"OLSON, CARRIE",575.0,9/24/21 0:00,Greater Park Hill Community Inc,Denver,CO,80207,Advertising,Newspaper Ad
811,DENVER,SCHOOL BOARD DIRECTOR,DENVER COUNTY 1 DISTRICT 3,"OLSON, CARRIE",12.85,9/26/21 0:00,Actblue Technical Services,Somerville,MA,2144,Fundraising Expenses,Service Fee
812,DENVER,SCHOOL BOARD DIRECTOR,DENVER COUNTY 1 DISTRICT 3,"OLSON, CARRIE",257.8,9/27/21 0:00,C & D Printing,Denver,CO,80212,Advertising,Yard Signs Stickers
813,DENVER,SCHOOL BOARD DIRECTOR,DENVER COUNTY 1 DISTRICT 3,"OLSON, CARRIE",571.25,9/27/21 0:00,Egan Printing,Denver,CO,80204,Advertising,Walk Cards
814,DENVER,SCHOOL BOARD DIRECTOR,DENVER COUNTY 1 DISTRICT 3,"OLSON, CARRIE",75.0,9/27/21 0:00,Facebook,Menlo Park,CA,94025,Advertising,Service Fee
815,DENVER,SCHOOL BOARD DIRECTOR,DENVER COUNTY 1 DISTRICT 3,"OLSON, CARRIE",650.0,9/29/21 0:00,Karina M Gandara,Denver,CO,80219,Consultant & Professional Services,Media Communication
816,DENVER,SCHOOL BOARD DIRECTOR,DENVER COUNTY 1 DISTRICT 3,"OLSON, CARRIE",3.99,10/1/21 0:00,King Soopers,Denver,CO,80207,"Food, Beverages and Meals",Campaign Planning
817,DENVER,SCHOOL BOARD DIRECTOR,DENVER COUNTY 1 DISTRICT 3,"OLSON, CARRIE",4000.0,10/1/21 0:00,Alvaro M Gardara,Denver,CO,80207,Consultant & Professional Services,Campaign Management Fee
818,DENVER,SCHOOL BOARD DIRECTOR,DENVER COUNTY 1 DISTRICT 3,"OLSON, CARRIE",1000.0,10/1/21 0:00,Emily  Hiltz,Denver,CO,80203,Consultant & Professional Services,Consulting
819,DENVER,SCHOOL BOARD DIRECTOR,DENVER COUNTY 1 DISTRICT 3,"OLSON, CARRIE",3.95,10/3/21 0:00,Actblue Technical Services,Somerville,MA,2144,Fundraising Expenses,Service Fee
820,DENVER,SCHOOL BOARD DIRECTOR,DENVER COUNTY 1 DISTRICT 3,"OLSON, CARRIE",22.92,10/4/21 0:00,Santiago'S,Denver,CO,80224,"Food, Beverages and Meals",Canvas Fuel
821,DENVER,SCHOOL BOARD DIRECTOR,DENVER COUNTY 1 DISTRICT 3,"OLSON, CARRIE",75.0,10/4/21 0:00,Facebook,Menlo Park,CA,94025,Advertising,
822,DENVER,SCHOOL BOARD DIRECTOR,DENVER COUNTY 1 DISTRICT 3,"OLSON, CARRIE",571.25,10/4/21 0:00,Egan Printing,Denver,CO,80204,Advertising,Walk Cards
823,DENVER,SCHOOL BOARD DIRECTOR,DENVER COUNTY 1 DISTRICT 3,"OLSON, CARRIE",13934.35,10/8/21 0:00,C & D Printing,Denver,CO,80212,Advertising,Mailers/Mail Service
824,DENVER,SCHOOL BOARD DIRECTOR,DENVER COUNTY 1 DISTRICT 3,"OLSON, CARRIE",42.98,10/10/21 0:00,Actblue Technical Services,Somerville,MA,2144,Fundraising Expenses,Service Fee
825,DENVER,SCHOOL BOARD DIRECTOR,DENVER COUNTY 1 DISTRICT 3,"OLSON, CARRIE",87.89,10/17/21 0:00,Actblue Technical Services,Somerville,MA,2144,Fundraising Expenses,Service Fee
826,DENVER,SCHOOL BOARD DIRECTOR,DENVER COUNTY 1 DISTRICT 3,"OLSON, CARRIE",57.78,10/18/21 0:00,Facebook,Menlo Park,CA,94025,Advertising,Service Fee
827,DENVER,SCHOOL BOARD DIRECTOR,DENVER COUNTY 1 DISTRICT 3,"OLSON, CARRIE",82.31,10/24/21 0:00,Actblue Technical Services,Somerville,MA,2144,Fundraising Expenses,Service Fee
828,DENVER,SCHOOL BOARD DIRECTOR,DENVER COUNTY 1 DISTRICT 3,"OLSON, CARRIE",18.74,10/25/21 0:00,Walmart,Denver,CO,80212,"Food, Beverages and Meals",Canvasing Supplies
829,DENVER,SCHOOL BOARD DIRECTOR,DENVER COUNTY 1 DISTRICT 3,"OLSON, CARRIE",636.2,10/26/21 0:00,Intermountain Jewish News,Denver,CO,80203,Advertising,Newspaper Ad
830,DENVER,SCHOOL BOARD DIRECTOR,DENVER COUNTY 1 DISTRICT 3,"OLSON, CARRIE",186.39,10/26/21 0:00,Robodial.Org,Arlington,VA,22203,Advertising,Phone Messaging
831,DENVER,SCHOOL BOARD DIRECTOR,DENVER COUNTY 1 DISTRICT 3,"OLSON, CARRIE",320.9,10/29/21 0:00,Egan Printing,Denver,CO,80204,Advertising,Walk Cards
832,DENVER,SCHOOL BOARD DIRECTOR,DENVER COUNTY 1 DISTRICT 3,"OLSON, CARRIE",28.43,10/31/21 0:00,Actblue Technical Services,Somerville,MA,2144,Fundraising Expenses,Service Fee
833,DENVER,SCHOOL BOARD DIRECTOR,DENVER COUNTY 1 DISTRICT 3,"OLSON, CARRIE",935.53,11/1/21 0:00,Artist Proof,Denver,CO,80204,Advertising,Advertising
834,DENVER,SCHOOL BOARD DIRECTOR,DENVER COUNTY 1 DISTRICT 3,"OLSON, CARRIE",290.0,11/2/21 0:00,Karina M Gandara,Denver,CO,80219,Consultant & Professional Services,Consulting Services
835,DENVER,SCHOOL BOARD DIRECTOR,DENVER COUNTY 1 DISTRICT 3,"OLSON, CARRIE",13.37,11/3/21 0:00,Google Voice,Mountain View,CA,94043,Advertising,Phone Banking
836,DENVER,SCHOOL BOARD DIRECTOR,DENVER COUNTY 1 DISTRICT 3,"OLSON, CARRIE",300.0,11/4/21 0:00,Karina M Gandara,Denver,CO,80219,Consultant & Professional Services,Consulting Services
837,DENVER,SCHOOL BOARD DIRECTOR,DENVER COUNTY 1 DISTRICT 3,"OLSON, CARRIE",2000.0,11/4/21 0:00,100% De Agave,Denver,CO,80203,"Food, Beverages and Meals",Watch Party
838,DENVER,SCHOOL BOARD DIRECTOR,DENVER COUNTY 1 DISTRICT 3,"OLSON, CARRIE",70.0,11/4/21 0:00,Nicolina  Ursetta,Denver,CO,80227,Advertising,Canvassing Fee
839,DENVER,SCHOOL BOARD DIRECTOR,DENVER COUNTY 1 DISTRICT 3,"OLSON, CARRIE",60.0,11/4/21 0:00,Vinny  Ursetta,Denver,CO,80227,Advertising,Canvassing Fee
840,DENVER,SCHOOL BOARD DIRECTOR,DENVER COUNTY 1 DISTRICT 3,"OLSON, CARRIE",1516.36,11/5/21 0:00,Scale To Win Llc,Santa Ana,CA,92703,Advertising,Texting Service
841,DENVER,SCHOOL BOARD DIRECTOR,DENVER COUNTY 1 DISTRICT 3,"OLSON, CARRIE",110.0,11/5/21 0:00,Lizbeth  Cortez,Commerce City,CO,80022,Advertising,Canvassing Fee
842,DENVER,SCHOOL BOARD DIRECTOR,DENVER COUNTY 1 DISTRICT 3,"OLSON, CARRIE",0.79,11/7/21 0:00,Actblue Technical Services,Somerville,MA,2144,Fundraising Expenses,Service Fee
843,DENVER,SCHOOL BOARD DIRECTOR,DENVER COUNTY 1 DISTRICT 3,"OLSON, CARRIE",58.14,11/19/21 0:00,Facebook,Menlo Park,CA,94025,Advertising,Advertising Fee
844,DENVER,SCHOOL BOARD DIRECTOR,DENVER COUNTY 1 DISTRICT 3,"OLSON, CARRIE",2000.0,11/24/21 0:00,Emily  Hiltz,Denver,CO,80203,Consultant & Professional Services,Consulting Fee
845,DENVER,SCHOOL BOARD DIRECTOR,DENVER COUNTY 1 DISTRICT 3,"OLSON, CARRIE",4000.0,11/24/21 0:00,Alvaro M Gandara,Denver,CO,80207,Consultant & Professional Services,Consulting Service Fee
846,TELLER,SCHOOL BOARD DIRECTOR,WOODLAND PARK RE-2,"PATTERSON, SUZANNE",10.0,6/30/21 0:00,Park State Bank & Trust,Woodland Park,CO,80866,Bank Fees,Bank Maintenance Fee
847,TELLER,SCHOOL BOARD DIRECTOR,WOODLAND PARK RE-2,"PATTERSON, SUZANNE",633.0,6/30/21 0:00,"Gold Forge Designs, Llc",Woodland Park,CO,80863,Consultant & Professional Services,Website Design And Hosting
848,TELLER,SCHOOL BOARD DIRECTOR,WOODLAND PARK RE-2,"PATTERSON, SUZANNE",32.33,6/30/21 0:00,"Godaddy.Com, Llc",Scottsdale,AZ,85260,Consultant & Professional Services,Godaddy - Web Domain Registration
849,TELLER,SCHOOL BOARD DIRECTOR,WOODLAND PARK RE-2,"PATTERSON, SUZANNE",250.0,7/16/21 0:00,"Constantine Copywriting, Llc",Colorado Springs,CO,80905,Consultant & Professional Services,Initial Fee For Developing Copywriting And Material For Later Use In The Campaign.
850,TELLER,SCHOOL BOARD DIRECTOR,WOODLAND PARK RE-2,"PATTERSON, SUZANNE",72.0,7/26/21 0:00,Ute Pass Cultural Center,Woodland Park,CO,80863,Rent & Utilities,Meeting Space Rental To Host Campaign Team Meeting
851,TELLER,SCHOOL BOARD DIRECTOR,WOODLAND PARK RE-2,"PATTERSON, SUZANNE",-72.0,7/26/21 0:00,Ute Pass Cultural Center,Woodland Park,CO,80863,Rent & Utilities,Offset Due To Update Of Filed Item - Meeting Space Rental To Host Campaign Team Meeting
852,TELLER,SCHOOL BOARD DIRECTOR,WOODLAND PARK RE-2,"PATTERSON, SUZANNE",72.0,7/26/21 0:00,Ute Pass Cultural Center,Woodland Park,CO,80863,Rent & Utilities,Meeting Space Rental To Host Campaign Team Meeting - Paid By Candidates Personal Funds
853,TELLER,SCHOOL BOARD DIRECTOR,WOODLAND PARK RE-2,"PATTERSON, SUZANNE",250.0,7/27/21 0:00,"Constantine Copywriting, Llc",Colorado Springs,CO,80905,Consultant & Professional Services,Developing Web Site Content
854,TELLER,SCHOOL BOARD DIRECTOR,WOODLAND PARK RE-2,"PATTERSON, SUZANNE",84.29,7/29/21 0:00,Anderson Pack N Ship,Woodland Park,CO,80863,Advertising,Banner Sign
855,TELLER,SCHOOL BOARD DIRECTOR,WOODLAND PARK RE-2,"PATTERSON, SUZANNE",10.0,7/30/21 0:00,Park State Bank & Trust,Woodland Park,CO,80866,Bank Fees,Bank Fee
856,TELLER,SCHOOL BOARD DIRECTOR,WOODLAND PARK RE-2,"PATTERSON, SUZANNE",49.47,8/4/21 0:00,Safeway,Woodland Park,CO,80863,Miscellaneous,Snacks And Supplies For Group Meeting - Paid By Candidate - Personal Funds
857,TELLER,SCHOOL BOARD DIRECTOR,WOODLAND PARK RE-2,"PATTERSON, SUZANNE",3.37,8/4/21 0:00,Anderson Pack N Ship,Woodland Park,CO,80863,Advertising,? Cut Rack Cards To Hand Out - Paid Out Of Personal Funds By Ray Patterson (Match With Non-Monetary Contribution Of Like Amount By Ray Patterson - Same Date)
858,TELLER,SCHOOL BOARD DIRECTOR,WOODLAND PARK RE-2,"PATTERSON, SUZANNE",1.68,8/5/21 0:00,Anderson Pack N Ship,Woodland Park,CO,80863,Advertising,? Cut Rack Cards To Hand Out - Paid Out Of Personal Funds By Ray Patterson (Match With Non-Monetary Contribution Of Like Amount By Ray Patterson - Same Date)
859,TELLER,SCHOOL BOARD DIRECTOR,WOODLAND PARK RE-2,"PATTERSON, SUZANNE",1.27,8/5/21 0:00,Stripe.Com,San Francisco,CA,90103,Bank Fees,"Fees Deducted From On-Line Portal Processor (8/5/2021)
This Is Combined Fee For Two (2) Receipts Received This Date Totaling $23.00 Gross, $21.73 Net Receipts."
860,TELLER,SCHOOL BOARD DIRECTOR,WOODLAND PARK RE-2,"PATTERSON, SUZANNE",1.19,8/5/21 0:00,Paypal Credit,San Jose,CA,95131,Bank Fees,Paypal Fee Taken From Contribution 8/5/2021 - See Corresponding Contribution From Paypal This Date.
861,TELLER,SCHOOL BOARD DIRECTOR,WOODLAND PARK RE-2,"PATTERSON, SUZANNE",19.73,8/6/21 0:00,Anderson Pack N Ship,Woodland Park,CO,80863,Advertising,1 / 3 Cut Rack Cards For Handout To Petition Signers.
862,TELLER,SCHOOL BOARD DIRECTOR,WOODLAND PARK RE-2,"PATTERSON, SUZANNE",169.93,8/9/21 0:00,Anderson Pack N Ship,Woodland Park,CO,80863,Advertising,1 / 3 Cut Cards To Hand Out To Voters
863,TELLER,SCHOOL BOARD DIRECTOR,WOODLAND PARK RE-2,"PATTERSON, SUZANNE",0.84,8/13/21 0:00,Paypal Credit,San Jose,CA,95131,Bank Fees,Paypal Fee For $10 Contribution Received Same Date (08/13/2021)
864,TELLER,SCHOOL BOARD DIRECTOR,WOODLAND PARK RE-2,"PATTERSON, SUZANNE",3.2,8/16/21 0:00,Stripe.Com,San Francisco,CA,90103,Bank Fees,Stripe Fee For $100 Contribution Of D. Hubbard Of 08/16/2021
865,TELLER,SCHOOL BOARD DIRECTOR,WOODLAND PARK RE-2,"PATTERSON, SUZANNE",43.27,8/17/21 0:00,Staples - #1348,Colorado Springs,CO,80919,Advertising,Handout Cards For Candidate
866,TELLER,SCHOOL BOARD DIRECTOR,WOODLAND PARK RE-2,"PATTERSON, SUZANNE",250.0,8/17/21 0:00,"Constantine Copywriting, Llc",Colorado Springs,CO,80905,Consultant & Professional Services,Web And Social Media Communications Support
867,TELLER,SCHOOL BOARD DIRECTOR,WOODLAND PARK RE-2,"PATTERSON, SUZANNE",250.0,8/23/21 0:00,"Constantine Copywriting, Llc",Colorado Springs,CO,80905,Consultant & Professional Services,"Updates To Website, Social Media"
868,TELLER,SCHOOL BOARD DIRECTOR,WOODLAND PARK RE-2,"PATTERSON, SUZANNE",405.75,8/27/21 0:00,Colorado Canyon Signs,Colorado Springs,CO,80905,Advertising,Campaign Signs
869,TELLER,SCHOOL BOARD DIRECTOR,WOODLAND PARK RE-2,"PATTERSON, SUZANNE",415.63,8/30/21 0:00,Signs On The Cheap,Austin,TX,78758,Advertising,Yard Signs W/ Wire Stakes
870,TELLER,SCHOOL BOARD DIRECTOR,WOODLAND PARK RE-2,"PATTERSON, SUZANNE",71.31,8/31/21 0:00,Teller County Clerk & Recorder,Cripple Creek,CO,80813,Other,Acquisition Of Voter List - See Matching Contribution This Date
871,TELLER,SCHOOL BOARD DIRECTOR,WOODLAND PARK RE-2,"PATTERSON, SUZANNE",250.0,8/31/21 0:00,"Constantine Copywriting, Llc",Colorado Springs,CO,80905,Consultant & Professional Services,Consultant Services
872,TELLER,SCHOOL BOARD DIRECTOR,WOODLAND PARK RE-2,"PATTERSON, SUZANNE",10.0,8/31/21 0:00,Park State Bank & Trust,Woodland Park,CO,80866,Bank Fees,Bank Fee - August
873,TELLER,SCHOOL BOARD DIRECTOR,WOODLAND PARK RE-2,"PATTERSON, SUZANNE",166.51,9/2/21 0:00,Vista Print,Waltham,MA,2451,Advertising,Rack Cards To Hand Out.
874,TELLER,SCHOOL BOARD DIRECTOR,WOODLAND PARK RE-2,"PATTERSON, SUZANNE",1064.33,9/7/21 0:00,Signs On The Cheap,Austin,TX,78758,Advertising,Campaign Signs
875,TELLER,SCHOOL BOARD DIRECTOR,WOODLAND PARK RE-2,"PATTERSON, SUZANNE",11.9,9/7/21 0:00,Stripe.Com,San Francisco,CA,90103,Bank Fees,Stripe Fee On $400.00 Contribution Of This Date
876,TELLER,SCHOOL BOARD DIRECTOR,WOODLAND PARK RE-2,"PATTERSON, SUZANNE",108.2,9/9/21 0:00,Colorado Canyon Signs,Colorado Springs,CO,80905,Advertising,Magnetic Signs - Check #106
877,TELLER,SCHOOL BOARD DIRECTOR,WOODLAND PARK RE-2,"PATTERSON, SUZANNE",7.47,9/9/21 0:00,Paypal Credit,San Jose,CA,95131,Bank Fees,Bank Fees (Paypal) For Virginia Copeland Contribution Of 09/09/2021
878,TELLER,SCHOOL BOARD DIRECTOR,WOODLAND PARK RE-2,"PATTERSON, SUZANNE",250.0,9/10/21 0:00,"Constantine Copywriting, Llc",Colorado Springs,CO,80905,Consultant & Professional Services,Copywriting And Communications
879,TELLER,SCHOOL BOARD DIRECTOR,WOODLAND PARK RE-2,"PATTERSON, SUZANNE",250.0,9/16/21 0:00,"Constantine Copywriting, Llc",Colorado Springs,CO,80905,Consultant & Professional Services,Copywriting; Social Media
880,TELLER,SCHOOL BOARD DIRECTOR,WOODLAND PARK RE-2,"PATTERSON, SUZANNE",3.98,9/20/21 0:00,Paypal Credit,San Jose,CA,95131,Bank Fees,Paypal Fees For Davis Contribution Of This Same Date
881,TELLER,SCHOOL BOARD DIRECTOR,WOODLAND PARK RE-2,"PATTERSON, SUZANNE",8.1,9/21/21 0:00,Stripe.Com,San Francisco,CA,90103,Bank Fees,Stripe Processing Fees
882,TELLER,SCHOOL BOARD DIRECTOR,WOODLAND PARK RE-2,"PATTERSON, SUZANNE",131.25,9/23/21 0:00,Colorado Canyon Signs,Colorado Springs,CO,80905,Advertising,4X8 Group Sign
883,TELLER,SCHOOL BOARD DIRECTOR,WOODLAND PARK RE-2,"PATTERSON, SUZANNE",325.0,9/25/21 0:00,"Constantine Copywriting, Llc",Colorado Springs,CO,80905,Advertising,Copywriting And Advertising
884,TELLER,SCHOOL BOARD DIRECTOR,WOODLAND PARK RE-2,"PATTERSON, SUZANNE",1.75,9/30/21 0:00,Stripe.Com,San Francisco,CA,90103,Bank Fees,Bank Fees
885,TELLER,SCHOOL BOARD DIRECTOR,WOODLAND PARK RE-2,"PATTERSON, SUZANNE",10.0,9/30/21 0:00,Park State Bank & Trust,Woodland Park,CO,80866,Bank Fees,Bank Account Maintenance Fee
886,TELLER,SCHOOL BOARD DIRECTOR,WOODLAND PARK RE-2,"PATTERSON, SUZANNE",250.0,10/1/21 0:00,"Constantine Copywriting, Llc",Colorado Springs,CO,80905,Consultant & Professional Services,Copywriting And Social Media
887,TELLER,SCHOOL BOARD DIRECTOR,WOODLAND PARK RE-2,"PATTERSON, SUZANNE",16.88,10/1/21 0:00,Colorado Canyon Signs,Colorado Springs,CO,80905,Advertising,Holders For Yard Signs
888,TELLER,SCHOOL BOARD DIRECTOR,WOODLAND PARK RE-2,"PATTERSON, SUZANNE",45.53,10/13/21 0:00,Facebook,Colorado Springs,CO,80905,Advertising,Fb
889,TELLER,SCHOOL BOARD DIRECTOR,WOODLAND PARK RE-2,"PATTERSON, SUZANNE",200.0,10/13/21 0:00,"Constantine Copywriting, Llc",Colorado Springs,CO,80905,Consultant & Professional Services,Copywriting And Advertising
890,TELLER,SCHOOL BOARD DIRECTOR,WOODLAND PARK RE-2,"PATTERSON, SUZANNE",330.0,10/22/21 0:00,"Constantine Copywriting, Llc",Colorado Springs,CO,80905,Consultant & Professional Services,Copywriting And Internet Communications
891,TELLER,SCHOOL BOARD DIRECTOR,WOODLAND PARK RE-2,"PATTERSON, SUZANNE",1.75,10/24/21 0:00,Stripe.Com,San Francisco,CA,90103,Bank Fees,
892,TELLER,SCHOOL BOARD DIRECTOR,WOODLAND PARK RE-2,"PATTERSON, SUZANNE",10.0,10/30/21 0:00,Park State Bank & Trust,Woodland Park,CO,80866,Bank Fees,Bank Fees
893,TELLER,SCHOOL BOARD DIRECTOR,WOODLAND PARK RE-2,"PATTERSON, SUZANNE",400.0,11/5/21 0:00,"Constantine Copywriting, Llc",Colorado Springs,CO,80905,Consultant & Professional Services,Web And Fb Work
894,TELLER,SCHOOL BOARD DIRECTOR,WOODLAND PARK RE-2,"PATTERSON, SUZANNE",345.0,11/5/21 0:00,"Constantine Copywriting, Llc",Colorado Springs,CO,80905,Consultant & Professional Services,Web And Fb Work Wrapping Up Campaign
895,ARAPAHOE,SCHOOL BOARD DIRECTOR,CHERRY CREEK 5,"LEACH, BILL",17.8,6/22/21 0:00,Deluxe Checks,Shoreview,MN,55126,Office Equipment & Supplies,
896,ARAPAHOE,SCHOOL BOARD DIRECTOR,CHERRY CREEK 5,"LEACH, BILL",57.42,6/26/21 0:00,Square Inc,San Francisco,CA,94103,Bank Fees,
897,ARAPAHOE,SCHOOL BOARD DIRECTOR,CHERRY CREEK 5,"LEACH, BILL",39.0,7/8/21 0:00,Venmo,New Yor,NY,10014,Other,7820 ∑ Merchant Account Fees
898,ARAPAHOE,SCHOOL BOARD DIRECTOR,CHERRY CREEK 5,"LEACH, BILL",100.0,7/9/21 0:00,"Sws Polifi, Llc",Lafayette,CO,80026,Other,7520 ∑ Accounting Fees
899,ARAPAHOE,SCHOOL BOARD DIRECTOR,CHERRY CREEK 5,"LEACH, BILL",453.75,7/22/21 0:00,Brand Agents Inc,Denver,CO,80231,Other,6631 ∑ Apparel
900,ARAPAHOE,SCHOOL BOARD DIRECTOR,CHERRY CREEK 5,"LEACH, BILL",7.36,7/28/21 0:00,Square,San Francisco,CA,94103,Other,7820 ∑ Merchant Account Fees
901,ARAPAHOE,SCHOOL BOARD DIRECTOR,CHERRY CREEK 5,"LEACH, BILL",100.0,8/10/21 0:00,"Sws Polifi, Llc",Lafayette,CO,80026,Other,7520 ∑ Accounting Fees
902,ARAPAHOE,SCHOOL BOARD DIRECTOR,CHERRY CREEK 5,"LEACH, BILL",4950.0,9/8/21 0:00,Xcite Group,Denver,CO,80237,Advertising,Website
903,ARAPAHOE,SCHOOL BOARD DIRECTOR,CHERRY CREEK 5,"LEACH, BILL",500.0,9/8/21 0:00,Casey  Clark,Arvada,CO,80005,Other,Photography
904,ARAPAHOE,SCHOOL BOARD DIRECTOR,CHERRY CREEK 5,"LEACH, BILL",333.05,9/13/21 0:00,Fedex Office,Englewood,CO,80110,Advertising,Printing
905,ARAPAHOE,SCHOOL BOARD DIRECTOR,CHERRY CREEK 5,"LEACH, BILL",200.94,9/13/21 0:00,Dominos,Englewood,CO,80112,"Food, Beverages and Meals",
906,ARAPAHOE,SCHOOL BOARD DIRECTOR,CHERRY CREEK 5,"LEACH, BILL",441.07,10/4/21 0:00,Hampden Press,Denver,CO,80231,Advertising,Banners
907,ARAPAHOE,SCHOOL BOARD DIRECTOR,CHERRY CREEK 5,"LEACH, BILL",2026.04,10/13/21 0:00,Hampden Press,Denver,CO,80231,Advertising,Door Hangers And Yard Signs
908,ARAPAHOE,SCHOOL BOARD DIRECTOR,CHERRY CREEK 5,"LEACH, BILL",750.0,10/13/21 0:00,Jennifer Gibbons For Cherry Creek School District,Aurora,CO,80016,Consultant & Professional Services,To Pay 1/2 Of 9/2/21 Mason Riley Invoice That Jennifer Gibbons Paid In Full (Running As A Slate)
909,ARAPAHOE,SCHOOL BOARD DIRECTOR,CHERRY CREEK 5,"LEACH, BILL",432.0,10/13/21 0:00,Jennifer Gibbons For Cherry Creek School District,Aurora,CO,80016,Consultant & Professional Services,Paid Jennifeer Gibbons For 1/2 Of Mason Riley Invoice That Jennifer Paid In Full (Running As A Slate)
910,ARAPAHOE,SCHOOL BOARD DIRECTOR,CHERRY CREEK 5,"LEACH, BILL",750.0,10/13/21 0:00,Jennifer Gibbons For Cherry Creek School District,Aurora,CO,80016,Consultant & Professional Services,Paid 1/2 Of Mason Riley Invoice Dated 9/30/21 Which Jennifer Gillsons Paid In Full (Running As A Slate)
911,ARAPAHOE,SCHOOL BOARD DIRECTOR,CHERRY CREEK 5,"LEACH, BILL",109.72,10/13/21 0:00,Jennifer Gibbons For Cherry Creek School District,Aurora,CO,80016,Advertising,
912,ARAPAHOE,SCHOOL BOARD DIRECTOR,CHERRY CREEK 5,"LEACH, BILL",767.0,10/13/21 0:00,Jennifer Gibbons For Cherry Creek School District,Aurora,CO,80016,Advertising,I Paid 1/2 Of Aurora Media Advertising Invoice That Was Fully Paid By Jennifer Gibbons (Running As A Slate)
913,ARAPAHOE,SCHOOL BOARD DIRECTOR,CHERRY CREEK 5,"LEACH, BILL",400.0,10/19/21 0:00,Cherry Creek Touchdown Club,Greenwood Village,CO,80111,Advertising,Football Club Ad
914,ARAPAHOE,SCHOOL BOARD DIRECTOR,CHERRY CREEK 5,"LEACH, BILL",79.75,10/25/21 0:00,Home Depot,Greenwood Village,CO,80111,Miscellaneous,Sign Fixers
915,ARAPAHOE,SCHOOL BOARD DIRECTOR,CHERRY CREEK 5,"LEACH, BILL",55.62,11/4/21 0:00,Torchys,Greenwood Village,CO,80111,Consultant & Professional Services,
916,ARAPAHOE,SCHOOL BOARD DIRECTOR,CHERRY CREEK 5,"LEACH, BILL",419.98,11/4/21 0:00,Qdoba,Aurora,CO,80016,"Food, Beverages and Meals",
917,ARAPAHOE,SCHOOL BOARD DIRECTOR,CHERRY CREEK 5,"LEACH, BILL",3941.38,11/9/21 0:00,Advantage Direct,Bonita,FL,34135,Consultant & Professional Services,
918,ARAPAHOE,SCHOOL BOARD DIRECTOR,ADAMS-ARAPAHOE 28J,"IVEY, MARQUES",185.32,9/2/21 0:00,C&D Printing,Denver,CO,80212,Advertising,Signs Purchased Out Of Candidates Personal Credit Card.
919,ARAPAHOE,SCHOOL BOARD DIRECTOR,ADAMS-ARAPAHOE 28J,"IVEY, MARQUES",14.48,9/3/21 0:00,Stripe,San Francisco,CA,94103,Bank Fees,
920,ARAPAHOE,SCHOOL BOARD DIRECTOR,ADAMS-ARAPAHOE 28J,"IVEY, MARQUES",825.0,11/3/21 0:00,Stacey  Ivey,Aurora,CO,80018,Consultant & Professional Services,"Payment For Services Such As Getting Website And Email Address Setup, Facebook Page, Set Up, Designing, Ordering And Purchasing Walk Materials (Ie Post Cards, Signs, And Flyers), Assisting With Cutting Turf, Getting Volunteers, And Walking Door."
921,ARAPAHOE,SCHOOL BOARD DIRECTOR,ADAMS-ARAPAHOE 28J,"IVEY, MARQUES",100.2,12/30/21 0:00,Stacey  Ivey,Aurora,CO,80018,Consultant & Professional Services,The Remainder Of What Is Owed To Stacey Ivey For The Work That She Did On The Campaign For Re-Election.
922,ELBERT,SCHOOL BOARD DIRECTOR,ELIZABETH,"BOOTH, HEATHER",338.36,9/15/21 0:00,Signs On The Cheap,Austin,TX,78758,Advertising,Candidate Purchased Yard Signs With Their Own Money.
923,DENVER,SCHOOL BOARD DIRECTOR,DENVER COUNTY 1 DISTRICT 4,"QUATTLEBAUM, MICHELLE",15.0,6/18/21 0:00,William  Parson,Denver,CO,80231,Rent & Utilities,Expenditure/Donation By William Parson For Cost Related To Obtaining Domain For The Campaign Website.
924,DENVER,SCHOOL BOARD DIRECTOR,DENVER COUNTY 1 DISTRICT 4,"QUATTLEBAUM, MICHELLE",16.8,7/13/21 0:00,Actblue Technical Services,Somerville,MA,02144-3132,Bank Fees,Automatic Reduction On Contribution Check
925,DENVER,SCHOOL BOARD DIRECTOR,DENVER COUNTY 1 DISTRICT 4,"QUATTLEBAUM, MICHELLE",1.98,7/13/21 0:00,Actblue Technical Services,Somerville,MA,02144-3132,Bank Fees,Automatic Reduction On Contribution Check
926,DENVER,SCHOOL BOARD DIRECTOR,DENVER COUNTY 1 DISTRICT 4,"QUATTLEBAUM, MICHELLE",13.1,7/19/21 0:00,Intuit,Mountain View,CA,94043,Other,Quickbooks Online
927,DENVER,SCHOOL BOARD DIRECTOR,DENVER COUNTY 1 DISTRICT 4,"QUATTLEBAUM, MICHELLE",3000.0,7/21/21 0:00,"Kat Strategy, Llc",Aurora,CO,80017,Consultant & Professional Services,
928,DENVER,SCHOOL BOARD DIRECTOR,DENVER COUNTY 1 DISTRICT 4,"QUATTLEBAUM, MICHELLE",22.72,7/25/21 0:00,Actblue Technical Services,Somerville,MA,02144-3132,Bank Fees,Auto Reduction From Contribution Check
929,DENVER,SCHOOL BOARD DIRECTOR,DENVER COUNTY 1 DISTRICT 4,"QUATTLEBAUM, MICHELLE",13.84,7/26/21 0:00,Actblue Technical Services,Somerville,MA,02144-3132,Bank Fees,Auto Deduction On Contribution Check
930,DENVER,SCHOOL BOARD DIRECTOR,DENVER COUNTY 1 DISTRICT 4,"QUATTLEBAUM, MICHELLE",27.68,7/28/21 0:00,Actblue Technical Services,Somerville,MA,02144-3132,Bank Fees,Automatic Reduction On Contribution Check
931,DENVER,SCHOOL BOARD DIRECTOR,DENVER COUNTY 1 DISTRICT 4,"QUATTLEBAUM, MICHELLE",7500.0,8/1/21 0:00,"Kat Strategy, Llc",Aurora,CO,80017,Consultant & Professional Services,Campaign Services
932,DENVER,SCHOOL BOARD DIRECTOR,DENVER COUNTY 1 DISTRICT 4,"QUATTLEBAUM, MICHELLE",13.1,8/16/21 0:00,Intuit,Mountain View,CA,94043,Other,Quickbooks Online
933,DENVER,SCHOOL BOARD DIRECTOR,DENVER COUNTY 1 DISTRICT 4,"QUATTLEBAUM, MICHELLE",1633.0,8/25/21 0:00,"Kat Strategy, Llc",Aurora,CO,80017,Advertising,Literature/Walk Piece Printing
934,DENVER,SCHOOL BOARD DIRECTOR,DENVER COUNTY 1 DISTRICT 4,"QUATTLEBAUM, MICHELLE",6500.0,9/15/21 0:00,"Kat Strategy, Llc",Aurora,CO,80017,Consultant & Professional Services,Campaign Services - Paid On 09/15/21
935,DENVER,SCHOOL BOARD DIRECTOR,DENVER COUNTY 1 DISTRICT 4,"QUATTLEBAUM, MICHELLE",13.1,9/16/21 0:00,Intuit,Mountain View,CA,94043,Other,Quickbooks Online
936,DENVER,SCHOOL BOARD DIRECTOR,DENVER COUNTY 1 DISTRICT 4,"QUATTLEBAUM, MICHELLE",15.58,9/17/21 0:00,Coldstone,Denver,CO,80238,"Food, Beverages and Meals",Coldstone For Campaign Meeting.
937,DENVER,SCHOOL BOARD DIRECTOR,DENVER COUNTY 1 DISTRICT 4,"QUATTLEBAUM, MICHELLE",905.63,9/27/21 0:00,Colorado Balck Women Political Action,Denver,CO,80237,Advertising,"Campaign Luncheon, Colorado Black Women Political Action. Purchased A Table And 1/2 Page Advertisement."
938,DENVER,SCHOOL BOARD DIRECTOR,DENVER COUNTY 1 DISTRICT 4,"QUATTLEBAUM, MICHELLE",4.34,10/8/21 0:00,Dollar Tree,Aurora,CO,80011,Other,Campaign Material For Table At Colorado Black Women Political Action Luncheon. Bowls & Tissue Paper To Hold Candy Placed On The Table.
939,DENVER,SCHOOL BOARD DIRECTOR,DENVER COUNTY 1 DISTRICT 4,"QUATTLEBAUM, MICHELLE",22.97,10/8/21 0:00,Walmart Supercenter,Aurora,CO,80011,Other,Campaign Material For Table At Colorado Black Women Political Action Luncheon. Purchased Candy To Place In Bowls At My Table.
940,DENVER,SCHOOL BOARD DIRECTOR,DENVER COUNTY 1 DISTRICT 4,"QUATTLEBAUM, MICHELLE",26.2,10/18/21 0:00,Intuit,Mountain View,CA,94043,Other,Intuit Quickbooks Online
941,DENVER,SCHOOL BOARD DIRECTOR,DENVER COUNTY 1 DISTRICT 4,"QUATTLEBAUM, MICHELLE",3766.0,10/18/21 0:00,"Kat Strategy, Llc",Aurora,CO,80017,Consultant & Professional Services,Campaign Services - Paid On 10/18/21. Cashiers Checks
942,DENVER,SCHOOL BOARD DIRECTOR,DENVER COUNTY 1 DISTRICT 4,"QUATTLEBAUM, MICHELLE",1858.0,10/18/21 0:00,"Kat Strategy, Llc",Aurora,CO,80017,Other,Yard Signs
943,DENVER,SCHOOL BOARD DIRECTOR,DENVER COUNTY 1 DISTRICT 4,"QUATTLEBAUM, MICHELLE",3.0,10/29/21 0:00,First Bank,Lakewood,CO,80215,Bank Fees,Cashiers Check Fees
944,DENVER,SCHOOL BOARD DIRECTOR,DENVER COUNTY 1 DISTRICT 4,"QUATTLEBAUM, MICHELLE",29.25,11/1/21 0:00,Blooms Today,Gainsville,VA,20155,Other,Online Flower Purchase
945,DENVER,SCHOOL BOARD DIRECTOR,DENVER COUNTY 1 DISTRICT 4,"QUATTLEBAUM, MICHELLE",4000.0,11/2/21 0:00,Good Trouble Consulting,Denver,CO,80218,Consultant & Professional Services,Consultant - Cashiers Check
946,DENVER,SCHOOL BOARD DIRECTOR,DENVER COUNTY 1 DISTRICT 4,"QUATTLEBAUM, MICHELLE",1500.0,11/2/21 0:00,Chantel  Abraham,Aurora,CO,80013,Employee Services,Staff Payment
947,DENVER,SCHOOL BOARD DIRECTOR,DENVER COUNTY 1 DISTRICT 4,"QUATTLEBAUM, MICHELLE",1000.0,11/2/21 0:00,Malcolm  Quattlebaum,Denver,CO,80239,Employee Services,Staff Payment
948,DENVER,SCHOOL BOARD DIRECTOR,DENVER COUNTY 1 DISTRICT 4,"QUATTLEBAUM, MICHELLE",48.0,11/2/21 0:00,First Bank,Lakewood,CO,80215,Bank Fees,Cashiers Check Fees
949,DENVER,SCHOOL BOARD DIRECTOR,DENVER COUNTY 1 DISTRICT 4,"QUATTLEBAUM, MICHELLE",2550.0,11/2/21 0:00,Michelle D Quattlebaum,Denver,CO,80239,Other,Repayment Of Money Candidate Loaned To The Campaign.
950,DENVER,SCHOOL BOARD DIRECTOR,DENVER COUNTY 1 DISTRICT 4,"QUATTLEBAUM, MICHELLE",250.0,11/2/21 0:00,Dashawna  Jackson,Aurora,CO,80013,Other,Staff Payment
951,DENVER,SCHOOL BOARD DIRECTOR,DENVER COUNTY 1 DISTRICT 4,"QUATTLEBAUM, MICHELLE",1500.0,11/2/21 0:00,Tiffany  Caudill,Denver,CO,80123,Employee Services,Staff Payment
952,DENVER,SCHOOL BOARD DIRECTOR,DENVER COUNTY 1 DISTRICT 4,"QUATTLEBAUM, MICHELLE",650.0,11/2/21 0:00,Tyler  Drum,Denver,CO,80239,Employee Services,Staff Payment
953,DENVER,SCHOOL BOARD DIRECTOR,DENVER COUNTY 1 DISTRICT 4,"QUATTLEBAUM, MICHELLE",128.82,11/3/21 0:00,Jimmy Johns,Aurora,CO,80013,"Food, Beverages and Meals",Watch Party Food
954,DENVER,SCHOOL BOARD DIRECTOR,DENVER COUNTY 1 DISTRICT 4,"QUATTLEBAUM, MICHELLE",110.38,11/4/21 0:00,Dia Liquor Warehouse,Denver,CO,80249,"Food, Beverages and Meals",Watch Party Beverages
955,DENVER,SCHOOL BOARD DIRECTOR,DENVER COUNTY 1 DISTRICT 4,"QUATTLEBAUM, MICHELLE",966.31,11/5/21 0:00,Scale To Win,Santa Ana,CA,92703,Other,Texting Program
956,DENVER,SCHOOL BOARD DIRECTOR,DENVER COUNTY 1 DISTRICT 4,"QUATTLEBAUM, MICHELLE",673.81,11/6/21 0:00,Bonefish Grill,Greenwood Village,CO,80111,"Food, Beverages and Meals",Committee Thank You Dinner
957,DENVER,SCHOOL BOARD DIRECTOR,DENVER COUNTY 1 DISTRICT 4,"QUATTLEBAUM, MICHELLE",26.2,11/16/21 0:00,Intuit,Mountain View,CA,94043,Other,Quickbooks Online
958,WELD,SCHOOL BOARD DIRECTOR,GREELEY 6,"MATHEWS, J",169.79,8/26/21 0:00,"Sticker Mule, Llc",Amsterdam,NY,12010,Advertising,500  2.25 Round Buttons
959,WELD,SCHOOL BOARD DIRECTOR,GREELEY 6,"MATHEWS, J",-169.79,8/26/21 0:00,"Sticker Mule, Llc",Amsterdam,NY,12010,Advertising,Offset Due To Update Of Filed Item - 500  2.25 Round Buttons
960,WELD,SCHOOL BOARD DIRECTOR,GREELEY 6,"MATHEWS, J",169.79,8/26/21 0:00,"Sticker Mule, Llc",Amsterdam,NY,12010,Advertising,500  2.25 Round Buttons. This Expense Was Paid By The Candidate.
961,WELD,SCHOOL BOARD DIRECTOR,GREELEY 6,"MATHEWS, J",-169.79,8/26/21 0:00,"Sticker Mule, Llc",Amsterdam,NY,12010,Advertising,Offset Due To Update Of Filed Item - 500  2.25 Round Buttons. This Expense Was Paid By The Candidate.
962,WELD,SCHOOL BOARD DIRECTOR,GREELEY 6,"MATHEWS, J",169.79,8/26/21 0:00,"Sticker Mule, Llc",Amsterdam,NY,12010,Advertising,Candidate Paid For 500  2.25 Round Buttons At Sticker Mule
963,WELD,SCHOOL BOARD DIRECTOR,GREELEY 6,"MATHEWS, J",46.22,9/1/21 0:00,Sam'S Club,Evans,CO,80620,"Food, Beverages and Meals",Candidate Paid For M&M'S And Water For Kick-Off Party At Sam'S Club
964,WELD,SCHOOL BOARD DIRECTOR,GREELEY 6,"MATHEWS, J",2059.4,9/2/21 0:00,Minuteman Press Of Greeley,Greeley,CO,80631,Advertising,Minuteman Press Reimbursement
965,WELD,SCHOOL BOARD DIRECTOR,GREELEY 6,"MATHEWS, J",3.92,9/2/21 0:00,King Soopers,Greeley,CO,80634,"Food, Beverages and Meals",Candidate Paid For Ice At King Soopers
966,WELD,SCHOOL BOARD DIRECTOR,GREELEY 6,"MATHEWS, J",15.56,9/3/21 0:00,Wal-Mart,Greeley,CO,80631,Advertising,Candidate Paid For Shipping Labels At Wal-Mart
967,WELD,SCHOOL BOARD DIRECTOR,GREELEY 6,"MATHEWS, J",15.56,9/7/21 0:00,Wal-Mart,Greeley,CO,80631,Advertising,Candidate Paid For Shipping Labels At Wal-Mart
968,WELD,SCHOOL BOARD DIRECTOR,GREELEY 6,"MATHEWS, J",2059.4,9/14/21 0:00,Michael  Mathews,Greeley,CO,80631,Advertising,Minuteman Press Reimbursement
969,WELD,SCHOOL BOARD DIRECTOR,GREELEY 6,"MATHEWS, J",-2059.4,9/14/21 0:00,Michael  Mathews,Greeley,CO,80631,Advertising,Offset Due To Update Of Filed Item - Minuteman Press Reimbursement
970,WELD,SCHOOL BOARD DIRECTOR,GREELEY 6,"MATHEWS, J",340.29,9/17/21 0:00,Minuteman Press Of Greeley,Greeley,CO,80631,Advertising,2 Coroplast Signs Double Sided 4X8 Ft
971,WELD,SCHOOL BOARD DIRECTOR,GREELEY 6,"MATHEWS, J",-340.29,9/17/21 0:00,Minuteman Press Of Greeley,Greeley,CO,80631,Advertising,Offset Due To Update Of Filed Item - 2 Coroplast Signs Double Sided 4X8 Ft
972,WELD,SCHOOL BOARD DIRECTOR,GREELEY 6,"MATHEWS, J",340.29,9/17/21 0:00,Minuteman Press Of Greeley,Greeley,CO,80631,Advertising,Candidate Paid For 2 Coroplast Signs Double Sided 4X8 Ft
973,WELD,SCHOOL BOARD DIRECTOR,GREELEY 6,"MATHEWS, J",50.0,9/18/21 0:00,Bruce  Broderius,Greeley,CO,80634,Advertising,Bruce Broderius Contributed Sign Stands
974,WELD,SCHOOL BOARD DIRECTOR,GREELEY 6,"MATHEWS, J",19.04,9/20/21 0:00,Lowes,Greeley,CO,80634,Advertising,"Candidate Paid For Wood, Screws And Washers At Lowes"
975,WELD,SCHOOL BOARD DIRECTOR,GREELEY 6,"MATHEWS, J",1517.06,10/4/21 0:00,Consider It There,Greeley,CO,80631,Advertising,Printing And Mailing Postcards
976,WELD,SCHOOL BOARD DIRECTOR,GREELEY 6,"MATHEWS, J",168.25,11/29/21 0:00,The Success Foundation,Greeley,CO,80631,Contributions,Donation Of Remaining Campaign Funds.
977,DENVER,SCHOOL BOARD DIRECTOR,DENVER COUNTY 1 DISTRICT 4,"FASHAW, GENE",6.92,6/20/21 0:00,Act Blue,Somerville,MA,2144,Other,Actblue Fee
978,DENVER,SCHOOL BOARD DIRECTOR,DENVER COUNTY 1 DISTRICT 4,"FASHAW, GENE",63.11,6/27/21 0:00,Act Blue,Somerville,MA,2144,Other,Actblue Fee
979,DENVER,SCHOOL BOARD DIRECTOR,DENVER COUNTY 1 DISTRICT 4,"FASHAW, GENE",18.4,6/30/21 0:00,Act Blue,Somerville,MA,2144,Other,Actblue Fee
980,DENVER,SCHOOL BOARD DIRECTOR,DENVER COUNTY 1 DISTRICT 4,"FASHAW, GENE",2.0,7/1/21 0:00,,,,,Bank Fees,
981,DENVER,SCHOOL BOARD DIRECTOR,DENVER COUNTY 1 DISTRICT 4,"FASHAW, GENE",6.13,7/4/21 0:00,Act Blue,Somerville,MA,2144,Other,Actblue Fee
982,DENVER,SCHOOL BOARD DIRECTOR,DENVER COUNTY 1 DISTRICT 4,"FASHAW, GENE",0.99,7/11/21 0:00,Act Blue,Somerville,MA,2144,Other,Actblue Fee
983,DENVER,SCHOOL BOARD DIRECTOR,DENVER COUNTY 1 DISTRICT 4,"FASHAW, GENE",9.89,7/18/21 0:00,Act Blue,Somerville,MA,2144,Other,Actblue Fee
984,DENVER,SCHOOL BOARD DIRECTOR,DENVER COUNTY 1 DISTRICT 4,"FASHAW, GENE",87.05,7/24/21 0:00,Superior Printing,Denve,CO,80239,Advertising,Biz Cards/Flyers
985,DENVER,SCHOOL BOARD DIRECTOR,DENVER COUNTY 1 DISTRICT 4,"FASHAW, GENE",10.29,7/25/21 0:00,Act Blue,Somerville,MA,2144,Other,Actblue Fee
986,DENVER,SCHOOL BOARD DIRECTOR,DENVER COUNTY 1 DISTRICT 4,"FASHAW, GENE",400.0,7/30/21 0:00,Colorado Democratic Party,Denver,CO,80203,Other,Van
987,DENVER,SCHOOL BOARD DIRECTOR,DENVER COUNTY 1 DISTRICT 4,"FASHAW, GENE",5.0,7/30/21 0:00,,,,,Bank Fees,
988,DENVER,SCHOOL BOARD DIRECTOR,DENVER COUNTY 1 DISTRICT 4,"FASHAW, GENE",29.95,7/31/21 0:00,Facebook,Menlo Park,CA,94025,Advertising,
989,DENVER,SCHOOL BOARD DIRECTOR,DENVER COUNTY 1 DISTRICT 4,"FASHAW, GENE",7.91,8/1/21 0:00,Act Blue,Somerville,MA,2144,Other,Actblue Fee
990,DENVER,SCHOOL BOARD DIRECTOR,DENVER COUNTY 1 DISTRICT 4,"FASHAW, GENE",2.0,8/1/21 0:00,,,,,Bank Fees,
991,DENVER,SCHOOL BOARD DIRECTOR,DENVER COUNTY 1 DISTRICT 4,"FASHAW, GENE",40.0,8/7/21 0:00,Chicks That Print,Denver,CO,80249,Advertising,Purchased Campaign Shirts
992,DENVER,SCHOOL BOARD DIRECTOR,DENVER COUNTY 1 DISTRICT 4,"FASHAW, GENE",17.79,8/8/21 0:00,Actblue Technical Services,Somerville,MA,2144,Other,Actblue Fee
993,DENVER,SCHOOL BOARD DIRECTOR,DENVER COUNTY 1 DISTRICT 4,"FASHAW, GENE",9.88,8/15/21 0:00,Actblue Technical Services,Somerville,MA,2144,Other,Actblue Fee
994,DENVER,SCHOOL BOARD DIRECTOR,DENVER COUNTY 1 DISTRICT 4,"FASHAW, GENE",16.3,8/23/21 0:00,,,,,Other,Zoom Subscription
995,DENVER,SCHOOL BOARD DIRECTOR,DENVER COUNTY 1 DISTRICT 4,"FASHAW, GENE",0.99,8/29/21 0:00,Actblue Technical Services,Somerville,MA,2144,Other,Actblue Fee
996,DENVER,SCHOOL BOARD DIRECTOR,DENVER COUNTY 1 DISTRICT 4,"FASHAW, GENE",34.99,8/31/21 0:00,Facebook,Menlo Park,CA,94025,Advertising,Facebook Advertising
997,DENVER,SCHOOL BOARD DIRECTOR,DENVER COUNTY 1 DISTRICT 4,"FASHAW, GENE",2.0,9/1/21 0:00,,,,,Bank Fees,Paper Statement Fee
998,DENVER,SCHOOL BOARD DIRECTOR,DENVER COUNTY 1 DISTRICT 4,"FASHAW, GENE",43.45,9/5/21 0:00,Actblue Technical Services,Somerville,MA,2144,Bank Fees,Actblue Fee
999,DENVER,SCHOOL BOARD DIRECTOR,DENVER COUNTY 1 DISTRICT 4,"FASHAW, GENE",2.97,9/12/21 0:00,Actblue Technical Services,Somerville,MA,2144,Bank Fees,
1000,DENVER,SCHOOL BOARD DIRECTOR,DENVER COUNTY 1 DISTRICT 4,"FASHAW, GENE",350.0,9/17/21 0:00,Miss Millies Kitchen,Aurora,CO,80010,"Food, Beverages and Meals",
